Department Family,Entity,Date,Expense Type,Expense Area,Supplier,Transaction Number,Amount,Vat No
Department of Health,CT Revenue Funds,07/04/2015,Absorbents Non X Ray Detectable,Stoke Heath Prison Healthcare,NHS SUPPLY CHAIN,1015229915,0.01,654 4347 29
Department of Health,CT Revenue Funds,07/04/2015,Absorbents Non X Ray Detectable,South West Interdisciplinary Teams,NHS SUPPLY CHAIN,1015229915,0.01,654 4347 29
Department of Health,CT Revenue Funds,07/04/2015,Absorbents Non X Ray Detectable,Ludlow Hospital Minor Injuries Unit,NHS SUPPLY CHAIN,1015229915,0.02,654 4347 29
Department of Health,CT Revenue Funds,07/04/2015,Absorbents Non X Ray Detectable,Bridgnorth Hospital Theatre,NHS SUPPLY CHAIN,1015229915,0.02,654 4347 29
Department of Health,CT Revenue Funds,07/04/2015,Absorbents Non X Ray Detectable,South West Interdisciplinary Teams,NHS SUPPLY CHAIN,1015229915,0.02,654 4347 29
Department of Health,CT Revenue Funds,07/04/2015,Absorbents Non X Ray Detectable,South West Interdisciplinary Teams,NHS SUPPLY CHAIN,1015229915,0.08,654 4347 29
Department of Health,CT Revenue Funds,07/04/2015,Absorbents Non X Ray Detectable,Bridgnorth Hospital Inpatient Ward,NHS SUPPLY CHAIN,1015229915,0.12,654 4347 29
Department of Health,CT Revenue Funds,07/04/2015,Absorbents Non X Ray Detectable,Bridgnorth Hospital Inpatient Ward,NHS SUPPLY CHAIN,1015229915,0.2,654 4347 29
Department of Health,CT Revenue Funds,07/04/2015,Absorbents Non X Ray Detectable,South West Interdisciplinary Teams,NHS SUPPLY CHAIN,1015229915,0.23,654 4347 29
Department of Health,CT Revenue Funds,07/04/2015,Absorbents Non X Ray Detectable,Ludlow Hospital Minor Injuries Unit,NHS SUPPLY CHAIN,1015229915,0.32,654 4347 29
Department of Health,CT Revenue Funds,07/04/2015,Absorbents Non X Ray Detectable,Bridgnorth Hospital Inpatient Ward,NHS SUPPLY CHAIN,1015229915,0.58,654 4347 29
Department of Health,CT Revenue Funds,07/04/2015,Absorbents Non X Ray Detectable,Ludlow Hospital Minor Injuries Unit,NHS SUPPLY CHAIN,1015229915,0.58,654 4347 29
Department of Health,CT Revenue Funds,07/04/2015,Absorbents Non X Ray Detectable,APCS - Rheumatology,NHS SUPPLY CHAIN,1015229915,0.74,654 4347 29
Department of Health,CT Revenue Funds,07/04/2015,Absorbents Non X Ray Detectable,Bridgnorth Hospital Minor Injuries Unit,NHS SUPPLY CHAIN,1015229915,0.8,654 4347 29
Department of Health,CT Revenue Funds,07/04/2015,Absorbents Non X Ray Detectable,Shrewsbury and Atcham DAART,NHS SUPPLY CHAIN,1015229915,0.82,654 4347 29
Department of Health,CT Revenue Funds,07/04/2015,Absorbents Non X Ray Detectable,Bridgnorth Hospital Inpatient Ward,NHS SUPPLY CHAIN,1015229915,1,654 4347 29
Department of Health,CT Revenue Funds,07/04/2015,Absorbents Non X Ray Detectable,South West Interdisciplinary Teams,NHS SUPPLY CHAIN,1015229915,1.16,654 4347 29
Department of Health,CT Revenue Funds,07/04/2015,Absorbents Non X Ray Detectable,Stoke Heath Prison Healthcare,NHS SUPPLY CHAIN,1015229915,1.31,654 4347 29
Department of Health,CT Revenue Funds,07/04/2015,Absorbents Non X Ray Detectable,Bridgnorth Hospital Theatre,NHS SUPPLY CHAIN,1015229915,1.53,654 4347 29
Department of Health,CT Revenue Funds,07/04/2015,Absorbents Non X Ray Detectable,Ludlow Hospital Minor Injuries Unit,NHS SUPPLY CHAIN,1015229915,1.62,654 4347 29
Department of Health,CT Revenue Funds,07/04/2015,Absorbents Non X Ray Detectable,Ludlow Hospital Minor Injuries Unit,NHS SUPPLY CHAIN,1015229915,2.9,654 4347 29
Department of Health,CT Revenue Funds,07/04/2015,Absorbents Non X Ray Detectable,APCS - Rheumatology,NHS SUPPLY CHAIN,1015229915,3.69,654 4347 29
Department of Health,CT Revenue Funds,07/04/2015,Absorbents Non X Ray Detectable,Bridgnorth Hospital Minor Injuries Unit,NHS SUPPLY CHAIN,1015229915,4,654 4347 29
Department of Health,CT Revenue Funds,07/04/2015,Absorbents Non X Ray Detectable,Shrewsbury and Atcham DAART,NHS SUPPLY CHAIN,1015229915,4.1,654 4347 29
Department of Health,CT Revenue Funds,07/04/2015,Absorbents Non X Ray Detectable,South West Interdisciplinary Teams,NHS SUPPLY CHAIN,1015229915,5.65,654 4347 29
Department of Health,CT Revenue Funds,07/04/2015,Absorbents Non X Ray Detectable,Stoke Heath Prison Healthcare,NHS SUPPLY CHAIN,1015229915,6.54,654 4347 29
Department of Health,CT Revenue Funds,07/04/2015,Absorbents Non X Ray Detectable,Bridgnorth Hospital Theatre,NHS SUPPLY CHAIN,1015229915,7.65,654 4347 29
Department of Health,CT Revenue Funds,07/04/2015,Absorbents Non X Ray Detectable,South West Interdisciplinary Teams,NHS SUPPLY CHAIN,1015229915,28.25,654 4347 29
Department of Health,CT Revenue Funds,07/04/2015,Absorbents Non X Ray Detectable,Shrewsbury and Atcham North Interdisciplinary Teams,NHS SUPPLY CHAIN,1015233762,-0.07,654 4347 29
Department of Health,CT Revenue Funds,07/04/2015,Absorbents Non X Ray Detectable,Shrewsbury and Atcham DAART,NHS SUPPLY CHAIN,1015233762,-0.01,654 4347 29
Department of Health,CT Revenue Funds,07/04/2015,Absorbents Non X Ray Detectable,South West Interdisciplinary Teams,NHS SUPPLY CHAIN,1015233762,-0.01,654 4347 29
Department of Health,CT Revenue Funds,07/04/2015,Absorbents Non X Ray Detectable,Shrewsbury and Atcham North Interdisciplinary Teams,NHS SUPPLY CHAIN,1015233762,-0.01,654 4347 29
Department of Health,CT Revenue Funds,07/04/2015,Absorbents Non X Ray Detectable,Bridgnorth Hospital Minor Injuries Unit,NHS SUPPLY CHAIN,1015233762,0.01,654 4347 29
Department of Health,CT Revenue Funds,07/04/2015,Absorbents Non X Ray Detectable,Bridgnorth Hospital Minor Injuries Unit,NHS SUPPLY CHAIN,1015233762,0.01,654 4347 29
Department of Health,CT Revenue Funds,07/04/2015,Absorbents Non X Ray Detectable,South West Interdisciplinary Teams,NHS SUPPLY CHAIN,1015233762,0.01,654 4347 29
Department of Health,CT Revenue Funds,07/04/2015,Absorbents Non X Ray Detectable,Single Point of Referral,NHS SUPPLY CHAIN,1015233762,0.03,654 4347 29
Department of Health,CT Revenue Funds,07/04/2015,Absorbents Non X Ray Detectable,Single Point of Referral,NHS SUPPLY CHAIN,1015233762,0.13,654 4347 29
Department of Health,CT Revenue Funds,07/04/2015,Absorbents Non X Ray Detectable,Bridgnorth Hospital Minor Injuries Unit,NHS SUPPLY CHAIN,1015233762,0.23,654 4347 29
Department of Health,CT Revenue Funds,07/04/2015,Absorbents Non X Ray Detectable,Whitchurch Hospital Minor Injuries Unit,NHS SUPPLY CHAIN,1015233762,0.31,654 4347 29
Department of Health,CT Revenue Funds,07/04/2015,Absorbents Non X Ray Detectable,Shrewsbury and Atcham DAART,NHS SUPPLY CHAIN,1015233762,0.32,654 4347 29
Department of Health,CT Revenue Funds,07/04/2015,Absorbents Non X Ray Detectable,South West Interdisciplinary Teams,NHS SUPPLY CHAIN,1015233762,0.35,654 4347 29
Department of Health,CT Revenue Funds,07/04/2015,Absorbents Non X Ray Detectable,South West Interdisciplinary Teams,NHS SUPPLY CHAIN,1015233762,0.92,654 4347 29
Department of Health,CT Revenue Funds,07/04/2015,Absorbents Non X Ray Detectable,Bridgnorth Hospital Minor Injuries Unit,NHS SUPPLY CHAIN,1015233762,1.16,654 4347 29
Department of Health,CT Revenue Funds,07/04/2015,Absorbents Non X Ray Detectable,Bridgnorth Hospital Minor Injuries Unit,NHS SUPPLY CHAIN,1015233762,1.23,654 4347 29
Department of Health,CT Revenue Funds,07/04/2015,Absorbents Non X Ray Detectable,Whitchurch Hospital Minor Injuries Unit,NHS SUPPLY CHAIN,1015233762,1.56,654 4347 29
Department of Health,CT Revenue Funds,07/04/2015,Absorbents Non X Ray Detectable,Shrewsbury and Atcham DAART,NHS SUPPLY CHAIN,1015233762,1.59,654 4347 29
Department of Health,CT Revenue Funds,07/04/2015,Absorbents Non X Ray Detectable,South West Interdisciplinary Teams,NHS SUPPLY CHAIN,1015233762,1.74,654 4347 29
Department of Health,CT Revenue Funds,07/04/2015,Absorbents Non X Ray Detectable,Shrewsbury and Atcham North Interdisciplinary Teams,NHS SUPPLY CHAIN,1015233762,3.28,654 4347 29
Department of Health,CT Revenue Funds,07/04/2015,Absorbents Non X Ray Detectable,South West Interdisciplinary Teams,NHS SUPPLY CHAIN,1015233762,4.59,654 4347 29
Department of Health,CT Revenue Funds,07/04/2015,Absorbents Non X Ray Detectable,Single Point of Referral,NHS SUPPLY CHAIN,1015233762,4.64,654 4347 29
Department of Health,CT Revenue Funds,07/04/2015,Absorbents Non X Ray Detectable,Bridgnorth Hospital Minor Injuries Unit,NHS SUPPLY CHAIN,1015233762,6.12,654 4347 29
Department of Health,CT Revenue Funds,07/04/2015,Absorbents Non X Ray Detectable,Shrewsbury and Atcham North Interdisciplinary Teams,NHS SUPPLY CHAIN,1015233762,16.4,654 4347 29
Department of Health,CT Revenue Funds,07/04/2015,Absorbents Non X Ray Detectable,Single Point of Referral,NHS SUPPLY CHAIN,1015233762,23.2,654 4347 29
Department of Health,CT Revenue Funds,07/04/2015,Absorbents Non X Ray Detectable,Whitchurch Hospital Minor Injuries Unit,NHS SUPPLY CHAIN,1015237441,-0.03,654 4347 29
Department of Health,CT Revenue Funds,07/04/2015,Absorbents Non X Ray Detectable,Whitchurch Hospital Minor Injuries Unit,NHS SUPPLY CHAIN,1015237441,-0.01,654 4347 29
Department of Health,CT Revenue Funds,07/04/2015,Absorbents Non X Ray Detectable,Whitchurch Hospital Minor Injuries Unit,NHS SUPPLY CHAIN,1015237441,0.32,654 4347 29
Department of Health,CT Revenue Funds,07/04/2015,Absorbents Non X Ray Detectable,Whitchurch Hospital Inpatient Ward,NHS SUPPLY CHAIN,1015237441,0.41,654 4347 29
Department of Health,CT Revenue Funds,07/04/2015,Absorbents Non X Ray Detectable,Podiatry Services,NHS SUPPLY CHAIN,1015237441,0.74,654 4347 29
Department of Health,CT Revenue Funds,07/04/2015,Absorbents Non X Ray Detectable,Whitchurch Hospital Minor Injuries Unit,NHS SUPPLY CHAIN,1015237441,1.56,654 4347 29
Department of Health,CT Revenue Funds,07/04/2015,Absorbents Non X Ray Detectable,Whitchurch Hospital Inpatient Ward,NHS SUPPLY CHAIN,1015237441,2.05,654 4347 29
Department of Health,CT Revenue Funds,07/04/2015,Absorbents Non X Ray Detectable,Podiatry Services,NHS SUPPLY CHAIN,1015237441,3.69,654 4347 29
Department of Health,CT Revenue Funds,07/04/2015,Additions - Assets Under Construction,Balance Sheet Suspense Dental Oral Radiography Equipment,WRIGHT COTTRELL,91980249,31,
Department of Health,CT Revenue Funds,07/04/2015,Additions - Assets Under Construction,Balance Sheet Suspense Dental Oral Radiography Equipment,WRIGHT COTTRELL,91980249,111,
Department of Health,CT Revenue Funds,07/04/2015,Additions - Assets Under Construction,Balance Sheet Suspense Dental Oral Radiography Equipment,WRIGHT COTTRELL,91980249,132,
Department of Health,CT Revenue Funds,07/04/2015,Additions - Assets Under Construction,Balance Sheet Suspense Dental Oral Radiography Equipment,WRIGHT COTTRELL,91980249,150,
Department of Health,CT Revenue Funds,07/04/2015,Additions - Assets Under Construction,Balance Sheet Suspense Dental Oral Radiography Equipment,WRIGHT COTTRELL,91980249,155,
Department of Health,CT Revenue Funds,07/04/2015,Additions - Assets Under Construction,Balance Sheet Suspense Dental Oral Radiography Equipment,WRIGHT COTTRELL,91980249,333,
Department of Health,CT Revenue Funds,07/04/2015,Additions - Assets Under Construction,Balance Sheet Suspense Dental Oral Radiography Equipment,WRIGHT COTTRELL,91980249,555,
Department of Health,CT Revenue Funds,07/04/2015,Additions - Assets Under Construction,Balance Sheet Suspense Dental Oral Radiography Equipment,WRIGHT COTTRELL,91980249,660,
Department of Health,CT Revenue Funds,07/04/2015,Additions - Assets Under Construction,Balance Sheet Suspense Dental Oral Radiography Equipment,WRIGHT COTTRELL,91980249,750,
Department of Health,CT Revenue Funds,07/04/2015,Additions - Assets Under Construction,Balance Sheet Suspense Dental Oral Radiography Equipment,WRIGHT COTTRELL,91980249,1665,
Department of Health,CT Revenue Funds,07/04/2015,Additions - Assets Under Construction,Balance Sheet Suspense Dental Oral Radiography Equipment,WRIGHT COTTRELL,91980249,2915,
Department of Health,CT Revenue Funds,07/04/2015,Additions - Assets Under Construction,Balance Sheet Suspense Dental Oral Radiography Equipment,WRIGHT COTTRELL,91980249,3436,
Department of Health,CT Revenue Funds,07/04/2015,Additions - Assets Under Construction,Balance Sheet Suspense Dental Oral Radiography Equipment,WRIGHT COTTRELL,91980249,14575,
Department of Health,CT Revenue Funds,07/04/2015,Additions - Assets Under Construction,Balance Sheet Suspense Dental Oral Radiography Equipment,WRIGHT COTTRELL,91980249,17180,
Department of Health,CT Revenue Funds,07/04/2015,Additions - Assets Under Construction,Balance Sheet Suspense IT - Bomgar,SOFTCAT,INV01117086,327.27,
Department of Health,CT Revenue Funds,07/04/2015,Additions - Assets Under Construction,Balance Sheet Suspense IT - Bomgar,SOFTCAT,INV01117086,1636.33,
Department of Health,CT Revenue Funds,07/04/2015,Additions - Assets Under Construction,Balance Sheet Suspense IT - HP Wireless and IMC,MISCO COMPUTER SUPPLIES LTD,10470556,667.01,494 1756 15
Department of Health,CT Revenue Funds,07/04/2015,Additions - Assets Under Construction,Balance Sheet Suspense IT - HP Wireless and IMC,MISCO COMPUTER SUPPLIES LTD,10470556,3335.04,494 1756 15
Department of Health,CT Revenue Funds,07/04/2015,Additions - Assets Under Construction,Balance Sheet Suspense IT - HP Wireless and IMC,WT COMMUNICATIONS LTD,2197,780,669 9138 73
Department of Health,CT Revenue Funds,07/04/2015,Additions - Assets Under Construction,Balance Sheet Suspense IT - HP Wireless and IMC,WT COMMUNICATIONS LTD,2197,3900,669 9138 73
Department of Health,CT Revenue Funds,07/04/2015,Additions - Assets Under Construction,Balance Sheet Suspense IT - HP Wireless and IMC,WT COMMUNICATIONS LTD,2199,374,669 9138 73
Department of Health,CT Revenue Funds,07/04/2015,Additions - Assets Under Construction,Balance Sheet Suspense IT - HP Wireless and IMC,WT COMMUNICATIONS LTD,2199,1870,669 9138 73
Department of Health,CT Revenue Funds,07/04/2015,Additions - Assets Under Construction,Balance Sheet Suspense IT - HP Wireless and IMC,SOFTCAT,INV01117086,-143.15,
Department of Health,CT Revenue Funds,07/04/2015,Additions - Assets Under Construction,Balance Sheet Suspense IT - HP Wireless and IMC,SOFTCAT,INV01117086,-0.01,
Department of Health,CT Revenue Funds,07/04/2015,Additions - Assets Under Construction,Balance Sheet Suspense IT - HP Wireless and IMC,SOFTCAT,INV01117086,143.15,
Department of Health,CT Revenue Funds,07/04/2015,Additions - Assets Under Construction,Balance Sheet Suspense IT - HP Wireless and IMC,SOFTCAT,INV01117086,143.15,
Department of Health,CT Revenue Funds,07/04/2015,Additions - Assets Under Construction,Balance Sheet Suspense IT - HP Wireless and IMC,SOFTCAT,INV01117086,178.67,
Department of Health,CT Revenue Funds,07/04/2015,Additions - Assets Under Construction,Balance Sheet Suspense IT - HP Wireless and IMC,SOFTCAT,INV01117086,307.27,
Department of Health,CT Revenue Funds,07/04/2015,Additions - Assets Under Construction,Balance Sheet Suspense IT - HP Wireless and IMC,SOFTCAT,INV01117086,715.75,
Department of Health,CT Revenue Funds,07/04/2015,Additions - Assets Under Construction,Balance Sheet Suspense IT - HP Wireless and IMC,SOFTCAT,INV01117086,728.02,
Department of Health,CT Revenue Funds,07/04/2015,Additions - Assets Under Construction,Balance Sheet Suspense IT - HP Wireless and IMC,SOFTCAT,INV01117086,742.82,
Department of Health,CT Revenue Funds,07/04/2015,Additions - Assets Under Construction,Balance Sheet Suspense IT - HP Wireless and IMC,SOFTCAT,INV01117086,893.33,
Department of Health,CT Revenue Funds,07/04/2015,Additions - Assets Under Construction,Balance Sheet Suspense IT - HP Wireless and IMC,SOFTCAT,INV01117086,1309.06,
Department of Health,CT Revenue Funds,07/04/2015,Additions - Assets Under Construction,Balance Sheet Suspense IT - HP Wireless and IMC,SOFTCAT,INV01117086,1536.36,
Department of Health,CT Revenue Funds,07/04/2015,Additions - Assets Under Construction,Balance Sheet Suspense IT - HP Wireless and IMC,SOFTCAT,INV01117086,1584.58,
Department of Health,CT Revenue Funds,07/04/2015,Additions - Assets Under Construction,Balance Sheet Suspense IT - HP Wireless and IMC,SOFTCAT,INV01117086,1998.64,
Department of Health,CT Revenue Funds,07/04/2015,Additions - Assets Under Construction,Balance Sheet Suspense IT - HP Wireless and IMC,SOFTCAT,INV01117086,3640.08,
Department of Health,CT Revenue Funds,07/04/2015,Additions - Assets Under Construction,Balance Sheet Suspense IT - HP Wireless and IMC,SOFTCAT,INV01117086,3714.08,
Department of Health,CT Revenue Funds,07/04/2015,Additions - Assets Under Construction,Balance Sheet Suspense IT - HP Wireless and IMC,SOFTCAT,INV01117086,6545.32,
Department of Health,CT Revenue Funds,07/04/2015,Additions - Assets Under Construction,Balance Sheet Suspense IT - HP Wireless and IMC,SOFTCAT,INV01117086,7922.88,
Department of Health,CT Revenue Funds,07/04/2015,Additions - Assets Under Construction,Balance Sheet Suspense IT - HP Wireless and IMC,SOFTCAT,INV01117086,9993.2,
Department of Health,CT Revenue Funds,07/04/2015,Additions - Assets Under Construction,Balance Sheet Suspense IT - HP Wireless and IMC,SOFTCAT,INV01117086,10412.92,
Department of Health,CT Revenue Funds,07/04/2015,Additions - Assets Under Construction,Balance Sheet Suspense IT - HP Wireless and IMC,SOFTCAT,INV01117086,52064.64,
Department of Health,CT Revenue Funds,07/04/2015,Additions - Assets Under Construction,Balance Sheet Suspense IT Sophos Unified Threat Management (UTM),SOFTCAT,INV01117086,654.53,
Department of Health,CT Revenue Funds,07/04/2015,Additions - Assets Under Construction,Balance Sheet Suspense IT Sophos Unified Threat Management (UTM),SOFTCAT,INV01117086,3272.66,
Department of Health,CT Revenue Funds,07/04/2015,Additions - Assets Under Construction,Balance Sheet Suspense IT Systems - Maintenance,MISCO COMPUTER SUPPLIES LTD,10465449,-1927.99,494 1756 15
Department of Health,CT Revenue Funds,07/04/2015,Additions - Assets Under Construction,Balance Sheet Suspense IT Systems - Maintenance,MISCO COMPUTER SUPPLIES LTD,10465449,-385.6,494 1756 15
Department of Health,CT Revenue Funds,07/04/2015,Additions - Assets Under Construction,Balance Sheet Suspense IT Systems - Maintenance,MISCO COMPUTER SUPPLIES LTD,10465449,958.87,494 1756 15
Department of Health,CT Revenue Funds,07/04/2015,Additions - Assets Under Construction,Balance Sheet Suspense IT Systems - Maintenance,MISCO COMPUTER SUPPLIES LTD,10465449,4794.37,494 1756 15
Department of Health,CT Revenue Funds,07/04/2015,Additions - Assets Under Construction,Balance Sheet Suspense IT Systems - Maintenance,SOFTCAT,INV01117086,327.27,
Department of Health,CT Revenue Funds,07/04/2015,Additions - Assets Under Construction,Balance Sheet Suspense IT Systems - Maintenance,SOFTCAT,INV01117086,1636.33,
Department of Health,CT Revenue Funds,07/04/2015,Additions - Assets Under Construction,Balance Sheet Suspense Whitchurch Hospital Improvements,SOUTH STAFFORDSHIRE AND SHROPSHIRE HEALTHCARE NHS FOUNDATION TRUST,I0059506,2471.73,654 4070 46
Department of Health,CT Revenue Funds,07/04/2015,Adhesive Wound Dressings,Shrewsbury and Atcham Interdisciplinary Teams Wound Products Pilot,NHS SUPPLY CHAIN,1015229915,-0.04,654 4347 29
Department of Health,CT Revenue Funds,07/04/2015,Adhesive Wound Dressings,Ludlow Hospital Minor Injuries Unit,NHS SUPPLY CHAIN,1015229915,-0.01,654 4347 29
Department of Health,CT Revenue Funds,07/04/2015,Adhesive Wound Dressings,Shrewsbury and Atcham Interdisciplinary Teams Wound Products Pilot,NHS SUPPLY CHAIN,1015229915,-0.01,654 4347 29
Department of Health,CT Revenue Funds,07/04/2015,Adhesive Wound Dressings,Stoke Heath Prison Healthcare,NHS SUPPLY CHAIN,1015229915,-0.01,654 4347 29
Department of Health,CT Revenue Funds,07/04/2015,Adhesive Wound Dressings,Stoke Heath Prison Healthcare,NHS SUPPLY CHAIN,1015229915,-0.01,654 4347 29
Department of Health,CT Revenue Funds,07/04/2015,Adhesive Wound Dressings,South West Interdisciplinary Teams,NHS SUPPLY CHAIN,1015229915,-0.01,654 4347 29
Department of Health,CT Revenue Funds,07/04/2015,Adhesive Wound Dressings,South West Interdisciplinary Teams,NHS SUPPLY CHAIN,1015229915,-0.01,654 4347 29
Department of Health,CT Revenue Funds,07/04/2015,Adhesive Wound Dressings,Oswestry Minor Injuries Unit,NHS SUPPLY CHAIN,1015229915,-0.01,654 4347 29
Department of Health,CT Revenue Funds,07/04/2015,Adhesive Wound Dressings,Oswestry Minor Injuries Unit,NHS SUPPLY CHAIN,1015229915,-0.01,654 4347 29
Department of Health,CT Revenue Funds,07/04/2015,Adhesive Wound Dressings,Shrewsbury and Atcham Interdisciplinary Teams Wound Products Pilot,NHS SUPPLY CHAIN,1015229915,-0.01,654 4347 29
Department of Health,CT Revenue Funds,07/04/2015,Adhesive Wound Dressings,Ludlow Hospital Minor Injuries Unit,NHS SUPPLY CHAIN,1015229915,0.01,654 4347 29
Department of Health,CT Revenue Funds,07/04/2015,Adhesive Wound Dressings,Shrewsbury and Atcham Interdisciplinary Teams Wound Products Pilot,NHS SUPPLY CHAIN,1015229915,0.01,654 4347 29
Department of Health,CT Revenue Funds,07/04/2015,Adhesive Wound Dressings,Shrewsbury and Atcham Interdisciplinary Teams Wound Products Pilot,NHS SUPPLY CHAIN,1015229915,0.03,654 4347 29
Department of Health,CT Revenue Funds,07/04/2015,Adhesive Wound Dressings,Whitchurch Hospital Physiotherapy,NHS SUPPLY CHAIN,1015229915,0.1,654 4347 29
Department of Health,CT Revenue Funds,07/04/2015,Adhesive Wound Dressings,Bridgnorth Hospital Minor Injuries Unit,NHS SUPPLY CHAIN,1015229915,0.28,654 4347 29
Department of Health,CT Revenue Funds,07/04/2015,Adhesive Wound Dressings,Stoke Heath Prison Healthcare,NHS SUPPLY CHAIN,1015229915,0.3,654 4347 29
Department of Health,CT Revenue Funds,07/04/2015,Adhesive Wound Dressings,Whitchurch Hospital Physiotherapy,NHS SUPPLY CHAIN,1015229915,0.52,654 4347 29
Department of Health,CT Revenue Funds,07/04/2015,Adhesive Wound Dressings,Ludlow Hospital Minor Injuries Unit,NHS SUPPLY CHAIN,1015229915,0.91,654 4347 29
Department of Health,CT Revenue Funds,07/04/2015,Adhesive Wound Dressings,South West Interdisciplinary Teams,NHS SUPPLY CHAIN,1015229915,1.13,654 4347 29
Department of Health,CT Revenue Funds,07/04/2015,Adhesive Wound Dressings,Bridgnorth Hospital Minor Injuries Unit,NHS SUPPLY CHAIN,1015229915,1.4,654 4347 29
Department of Health,CT Revenue Funds,07/04/2015,Adhesive Wound Dressings,Stoke Heath Prison Healthcare,NHS SUPPLY CHAIN,1015229915,1.52,654 4347 29
Department of Health,CT Revenue Funds,07/04/2015,Adhesive Wound Dressings,Ludlow Hospital Minor Injuries Unit,NHS SUPPLY CHAIN,1015229915,1.7,654 4347 29
Department of Health,CT Revenue Funds,07/04/2015,Adhesive Wound Dressings,Stoke Heath Prison Healthcare,NHS SUPPLY CHAIN,1015229915,2.47,654 4347 29
Department of Health,CT Revenue Funds,07/04/2015,Adhesive Wound Dressings,Stoke Heath Prison Healthcare,NHS SUPPLY CHAIN,1015229915,3.19,654 4347 29
Department of Health,CT Revenue Funds,07/04/2015,Adhesive Wound Dressings,Shrewsbury and Atcham Interdisciplinary Teams Wound Products Pilot,NHS SUPPLY CHAIN,1015229915,3.21,654 4347 29
Department of Health,CT Revenue Funds,07/04/2015,Adhesive Wound Dressings,Oswestry Minor Injuries Unit,NHS SUPPLY CHAIN,1015229915,3.71,654 4347 29
Department of Health,CT Revenue Funds,07/04/2015,Adhesive Wound Dressings,South West Interdisciplinary Teams,NHS SUPPLY CHAIN,1015229915,3.71,654 4347 29
Department of Health,CT Revenue Funds,07/04/2015,Adhesive Wound Dressings,Shrewsbury and Atcham Interdisciplinary Teams Wound Products Pilot,NHS SUPPLY CHAIN,1015229915,4.53,654 4347 29
Department of Health,CT Revenue Funds,07/04/2015,Adhesive Wound Dressings,Ludlow Hospital Minor Injuries Unit,NHS SUPPLY CHAIN,1015229915,4.56,654 4347 29
Department of Health,CT Revenue Funds,07/04/2015,Adhesive Wound Dressings,South West Interdisciplinary Teams,NHS SUPPLY CHAIN,1015229915,5.66,654 4347 29
Department of Health,CT Revenue Funds,07/04/2015,Adhesive Wound Dressings,Oswestry Minor Injuries Unit,NHS SUPPLY CHAIN,1015229915,6.05,654 4347 29
Department of Health,CT Revenue Funds,07/04/2015,Adhesive Wound Dressings,Shrewsbury and Atcham Interdisciplinary Teams Wound Products Pilot,NHS SUPPLY CHAIN,1015229915,6.92,654 4347 29
Department of Health,CT Revenue Funds,07/04/2015,Adhesive Wound Dressings,Ludlow Hospital Minor Injuries Unit,NHS SUPPLY CHAIN,1015229915,8.49,654 4347 29
Department of Health,CT Revenue Funds,07/04/2015,Adhesive Wound Dressings,Stoke Heath Prison Healthcare,NHS SUPPLY CHAIN,1015229915,12.36,654 4347 29
Department of Health,CT Revenue Funds,07/04/2015,Adhesive Wound Dressings,Stoke Heath Prison Healthcare,NHS SUPPLY CHAIN,1015229915,15.94,654 4347 29
Department of Health,CT Revenue Funds,07/04/2015,Adhesive Wound Dressings,Shrewsbury and Atcham Interdisciplinary Teams Wound Products Pilot,NHS SUPPLY CHAIN,1015229915,16.08,654 4347 29
Department of Health,CT Revenue Funds,07/04/2015,Adhesive Wound Dressings,South West Interdisciplinary Teams,NHS SUPPLY CHAIN,1015229915,18.56,654 4347 29
Department of Health,CT Revenue Funds,07/04/2015,Adhesive Wound Dressings,Oswestry Minor Injuries Unit,NHS SUPPLY CHAIN,1015229915,18.56,654 4347 29
Department of Health,CT Revenue Funds,07/04/2015,Adhesive Wound Dressings,Shrewsbury and Atcham Interdisciplinary Teams Wound Products Pilot,NHS SUPPLY CHAIN,1015229915,22.64,654 4347 29
Department of Health,CT Revenue Funds,07/04/2015,Adhesive Wound Dressings,Oswestry Minor Injuries Unit,NHS SUPPLY CHAIN,1015229915,30.24,654 4347 29
Department of Health,CT Revenue Funds,07/04/2015,Adhesive Wound Dressings,Shrewsbury and Atcham Interdisciplinary Teams Wound Products Pilot,NHS SUPPLY CHAIN,1015229915,34.64,654 4347 29
Department of Health,CT Revenue Funds,07/04/2015,Adhesive Wound Dressings,Whitchurch Hospital Minor Injuries Unit,NHS SUPPLY CHAIN,1015233762,-0.01,654 4347 29
Department of Health,CT Revenue Funds,07/04/2015,Adhesive Wound Dressings,Bridgnorth Hospital Inpatient Ward,NHS SUPPLY CHAIN,1015233762,-0.01,654 4347 29
Department of Health,CT Revenue Funds,07/04/2015,Adhesive Wound Dressings,Shrewsbury and Atcham Interdisciplinary Teams Wound Products Pilot,NHS SUPPLY CHAIN,1015233762,-0.01,654 4347 29
Department of Health,CT Revenue Funds,07/04/2015,Adhesive Wound Dressings,North West Shropshire Interdisciplinary Teams,NHS SUPPLY CHAIN,1015233762,0.01,654 4347 29
Department of Health,CT Revenue Funds,07/04/2015,Adhesive Wound Dressings,South West Interdisciplinary Teams,NHS SUPPLY CHAIN,1015233762,0.01,654 4347 29
Department of Health,CT Revenue Funds,07/04/2015,Adhesive Wound Dressings,Community Nursing Team 4,NHS SUPPLY CHAIN,1015233762,0.01,654 4347 29
Department of Health,CT Revenue Funds,07/04/2015,Adhesive Wound Dressings,Shrewsbury and Atcham DAART,NHS SUPPLY CHAIN,1015233762,0.07,654 4347 29
Department of Health,CT Revenue Funds,07/04/2015,Adhesive Wound Dressings,Bridgnorth Hospital Inpatient Ward,NHS SUPPLY CHAIN,1015233762,0.07,654 4347 29
Department of Health,CT Revenue Funds,07/04/2015,Adhesive Wound Dressings,Ludlow Hospital Inpatient Wards,NHS SUPPLY CHAIN,1015233762,0.1,654 4347 29
Department of Health,CT Revenue Funds,07/04/2015,Adhesive Wound Dressings,Shrewsbury and Atcham Interdisciplinary Teams Wound Products Pilot,NHS SUPPLY CHAIN,1015233762,0.11,654 4347 29
Department of Health,CT Revenue Funds,07/04/2015,Adhesive Wound Dressings,Bridgnorth Hospital Inpatient Ward,NHS SUPPLY CHAIN,1015233762,0.35,654 4347 29
Department of Health,CT Revenue Funds,07/04/2015,Adhesive Wound Dressings,Shrewsbury and Atcham DAART,NHS SUPPLY CHAIN,1015233762,0.35,654 4347 29
Department of Health,CT Revenue Funds,07/04/2015,Adhesive Wound Dressings,Bridgnorth Hospital Minor Injuries Unit,NHS SUPPLY CHAIN,1015233762,0.35,654 4347 29
Department of Health,CT Revenue Funds,07/04/2015,Adhesive Wound Dressings,Whitchurch Hospital Minor Injuries Unit,NHS SUPPLY CHAIN,1015233762,0.46,654 4347 29
Department of Health,CT Revenue Funds,07/04/2015,Adhesive Wound Dressings,Bridgnorth Hospital Minor Injuries Unit,NHS SUPPLY CHAIN,1015233762,0.46,654 4347 29
Department of Health,CT Revenue Funds,07/04/2015,Adhesive Wound Dressings,Ludlow Hospital Inpatient Wards,NHS SUPPLY CHAIN,1015233762,0.52,654 4347 29
Department of Health,CT Revenue Funds,07/04/2015,Adhesive Wound Dressings,Shrewsbury and Atcham Interdisciplinary Teams Wound Products Pilot,NHS SUPPLY CHAIN,1015233762,0.55,654 4347 29
Department of Health,CT Revenue Funds,07/04/2015,Adhesive Wound Dressings,Bridgnorth Hospital Minor Injuries Unit,NHS SUPPLY CHAIN,1015233762,0.57,654 4347 29
Department of Health,CT Revenue Funds,07/04/2015,Adhesive Wound Dressings,Shrewsbury and Atcham Interdisciplinary Teams Wound Products Pilot,NHS SUPPLY CHAIN,1015233762,0.8,654 4347 29
Department of Health,CT Revenue Funds,07/04/2015,Adhesive Wound Dressings,North West Shropshire Interdisciplinary Teams,NHS SUPPLY CHAIN,1015233762,0.91,654 4347 29
Department of Health,CT Revenue Funds,07/04/2015,Adhesive Wound Dressings,South West Interdisciplinary Teams,NHS SUPPLY CHAIN,1015233762,0.91,654 4347 29
Department of Health,CT Revenue Funds,07/04/2015,Adhesive Wound Dressings,Whitchurch Hospital Minor Injuries Unit,NHS SUPPLY CHAIN,1015233762,1.13,654 4347 29
Department of Health,CT Revenue Funds,07/04/2015,Adhesive Wound Dressings,Community Nursing Team 4,NHS SUPPLY CHAIN,1015233762,1.37,654 4347 29
Department of Health,CT Revenue Funds,07/04/2015,Adhesive Wound Dressings,Bridgnorth Hospital Minor Injuries Unit,NHS SUPPLY CHAIN,1015233762,1.75,654 4347 29
Department of Health,CT Revenue Funds,07/04/2015,Adhesive Wound Dressings,Bridgnorth Hospital Inpatient Ward,NHS SUPPLY CHAIN,1015233762,1.97,654 4347 29
Department of Health,CT Revenue Funds,07/04/2015,Adhesive Wound Dressings,Bridgnorth Hospital Minor Injuries Unit,NHS SUPPLY CHAIN,1015233762,2.02,654 4347 29
Department of Health,CT Revenue Funds,07/04/2015,Adhesive Wound Dressings,Whitchurch Hospital Minor Injuries Unit,NHS SUPPLY CHAIN,1015233762,2.28,654 4347 29
Department of Health,CT Revenue Funds,07/04/2015,Adhesive Wound Dressings,Bridgnorth Hospital Minor Injuries Unit,NHS SUPPLY CHAIN,1015233762,2.28,654 4347 29
Department of Health,CT Revenue Funds,07/04/2015,Adhesive Wound Dressings,Bridgnorth Hospital Minor Injuries Unit,NHS SUPPLY CHAIN,1015233762,2.83,654 4347 29
Department of Health,CT Revenue Funds,07/04/2015,Adhesive Wound Dressings,Shrewsbury and Atcham Interdisciplinary Teams Wound Products Pilot,NHS SUPPLY CHAIN,1015233762,3.21,654 4347 29
Department of Health,CT Revenue Funds,07/04/2015,Adhesive Wound Dressings,Shrewsbury and Atcham Interdisciplinary Teams Wound Products Pilot,NHS SUPPLY CHAIN,1015233762,4.02,654 4347 29
Department of Health,CT Revenue Funds,07/04/2015,Adhesive Wound Dressings,North West Shropshire Interdisciplinary Teams,NHS SUPPLY CHAIN,1015233762,4.56,654 4347 29
Department of Health,CT Revenue Funds,07/04/2015,Adhesive Wound Dressings,South West Interdisciplinary Teams,NHS SUPPLY CHAIN,1015233762,4.56,654 4347 29
Department of Health,CT Revenue Funds,07/04/2015,Adhesive Wound Dressings,Whitchurch Hospital Minor Injuries Unit,NHS SUPPLY CHAIN,1015233762,5.66,654 4347 29
Department of Health,CT Revenue Funds,07/04/2015,Adhesive Wound Dressings,Community Nursing Team 4,NHS SUPPLY CHAIN,1015233762,6.84,654 4347 29
Department of Health,CT Revenue Funds,07/04/2015,Adhesive Wound Dressings,Bridgnorth Hospital Inpatient Ward,NHS SUPPLY CHAIN,1015233762,9.86,654 4347 29
Department of Health,CT Revenue Funds,07/04/2015,Adhesive Wound Dressings,Bridgnorth Hospital Minor Injuries Unit,NHS SUPPLY CHAIN,1015233762,10.08,654 4347 29
Department of Health,CT Revenue Funds,07/04/2015,Adhesive Wound Dressings,Shrewsbury and Atcham Interdisciplinary Teams Wound Products Pilot,NHS SUPPLY CHAIN,1015233762,16.08,654 4347 29
Department of Health,CT Revenue Funds,07/04/2015,Adhesive Wound Dressings,Community Nursing Team 4,NHS SUPPLY CHAIN,1015237441,-0.01,654 4347 29
Department of Health,CT Revenue Funds,07/04/2015,Adhesive Wound Dressings,Whitchurch Hospital Physiotherapy,NHS SUPPLY CHAIN,1015237441,0.1,654 4347 29
Department of Health,CT Revenue Funds,07/04/2015,Adhesive Wound Dressings,Whitchurch Hospital Physiotherapy,NHS SUPPLY CHAIN,1015237441,0.15,654 4347 29
Department of Health,CT Revenue Funds,07/04/2015,Adhesive Wound Dressings,Whitchurch Hospital Physiotherapy,NHS SUPPLY CHAIN,1015237441,0.52,654 4347 29
Department of Health,CT Revenue Funds,07/04/2015,Adhesive Wound Dressings,Whitchurch Hospital Physiotherapy,NHS SUPPLY CHAIN,1015237441,0.76,654 4347 29
Department of Health,CT Revenue Funds,07/04/2015,Adhesive Wound Dressings,Community Nursing Team 4,NHS SUPPLY CHAIN,1015237441,2.96,654 4347 29
Department of Health,CT Revenue Funds,07/04/2015,Adhesive Wound Dressings,Community Nursing Team 4,NHS SUPPLY CHAIN,1015237441,14.79,654 4347 29
Department of Health,CT Revenue Funds,07/04/2015,Advertising,Breast Feeding Lead,UNICEF UK BABY FRIENDLY INITATIVE,SI0005734,-80,
Department of Health,CT Revenue Funds,07/04/2015,Advertising,Breast Feeding Lead,UNICEF UK BABY FRIENDLY INITATIVE,SI0005734,-44,
Department of Health,CT Revenue Funds,07/04/2015,Advertising,Breast Feeding Lead,UNICEF UK BABY FRIENDLY INITATIVE,SI0005734,-16,
Department of Health,CT Revenue Funds,07/04/2015,Advertising,Breast Feeding Lead,UNICEF UK BABY FRIENDLY INITATIVE,SI0005734,60,
Department of Health,CT Revenue Funds,07/04/2015,Advertising,Breast Feeding Lead,UNICEF UK BABY FRIENDLY INITATIVE,SI0005734,300,
Department of Health,CT Revenue Funds,07/04/2015,Agency Admin & Clerical,Ludlow Hospital Outpatients,WORKING SOLUTIONS (MERCIA) LTD,13681,20.3,647 8654 86
Department of Health,CT Revenue Funds,07/04/2015,Agency Admin & Clerical,Ludlow Hospital Outpatients,WORKING SOLUTIONS (MERCIA) LTD,13681,101.5,647 8654 86
Department of Health,CT Revenue Funds,07/04/2015,Agency Admin & Clerical,Ludlow Hospital Outpatients,WORKING SOLUTIONS (MERCIA) LTD,13693,24.36,647 8654 86
Department of Health,CT Revenue Funds,07/04/2015,Agency Admin & Clerical,Ludlow Hospital Outpatients,WORKING SOLUTIONS (MERCIA) LTD,13693,121.8,647 8654 86
Department of Health,CT Revenue Funds,07/04/2015,Agency Admin & Clerical,Premises Management,PEAKE PROPERTY MANAGEMENT LTD,2,5479.16,
Department of Health,CT Revenue Funds,07/04/2015,Agency Admin & Clerical,"Management Accounting, Contracting & Costing",AXON RESOURCING LTD,66304,276.26,
Department of Health,CT Revenue Funds,07/04/2015,Agency Admin & Clerical,"Management Accounting, Contracting & Costing",AXON RESOURCING LTD,66304,1381.3,
Department of Health,CT Revenue Funds,07/04/2015,Agency Admin & Clerical,Oswestry Primary Care Centre,PERTEMPS,P657872,45.77,844 2788 00
Department of Health,CT Revenue Funds,07/04/2015,Agency Admin & Clerical,Oswestry Primary Care Centre,PERTEMPS,P657872,228.83,844 2788 00
Department of Health,CT Revenue Funds,07/04/2015,Agency Admin & Clerical,Shrewsbury and Atcham DAART,PERTEMPS,P660020,40.48,844 2788 00
Department of Health,CT Revenue Funds,07/04/2015,Agency Admin & Clerical,Shrewsbury and Atcham DAART,PERTEMPS,P660020,202.42,844 2788 00
Department of Health,CT Revenue Funds,07/04/2015,Agency Admin & Clerical,Shrewsbury and Atcham DAART,PERTEMPS,P661324,46.73,844 2788 00
Department of Health,CT Revenue Funds,07/04/2015,Agency Admin & Clerical,Shrewsbury and Atcham DAART,PERTEMPS,P661324,233.67,844 2788 00
Department of Health,CT Revenue Funds,07/04/2015,Agency Admin & Clerical,Premises Management,PERTEMPS,P661325,65.21,844 2788 00
Department of Health,CT Revenue Funds,07/04/2015,Agency Admin & Clerical,Premises Management,PERTEMPS,P661325,326.03,844 2788 00
Department of Health,CT Revenue Funds,07/04/2015,Agency Consultants,Telford Child Psychiatry,INTERACT MEDICAL,127749,799.84,650 7780 24
Department of Health,CT Revenue Funds,07/04/2015,Agency Consultants,Telford Child Psychiatry,INTERACT MEDICAL,127749,3999.2,650 7780 24
Department of Health,CT Revenue Funds,07/04/2015,Agency Consultants,Telford Child Psychiatry,INTERACT MEDICAL,127750,21.76,650 7780 24
Department of Health,CT Revenue Funds,07/04/2015,Agency Consultants,Telford Child Psychiatry,INTERACT MEDICAL,127750,108.79,650 7780 24
Department of Health,CT Revenue Funds,07/04/2015,Agency Consultants,Telford Child Psychiatry,INTERACT MEDICAL,127756,989.8,650 7780 24
Department of Health,CT Revenue Funds,07/04/2015,Agency Consultants,Telford Child Psychiatry,INTERACT MEDICAL,127756,4949.01,650 7780 24
Department of Health,CT Revenue Funds,07/04/2015,Agency Consultants,Shropshire Community Paediatric Medical Staff,SURGI-CALL LOCUMS,141820,848,935 4637 04
Department of Health,CT Revenue Funds,07/04/2015,Agency Consultants,Shropshire Community Paediatric Medical Staff,SURGI-CALL LOCUMS,141820,4240,935 4637 04
Department of Health,CT Revenue Funds,07/04/2015,Agency Consultants,Shropshire Community Paediatric Medical Staff,SURGI-CALL LOCUMS,141821,5.43,935 4637 04
Department of Health,CT Revenue Funds,07/04/2015,Agency Consultants,Shropshire Community Paediatric Medical Staff,SURGI-CALL LOCUMS,141821,27.16,935 4637 04
Department of Health,CT Revenue Funds,07/04/2015,Agency Consultants,Shropshire Child Psychiatry,PSYCHIATRY PEOPLE,PP112126,947.69,
Department of Health,CT Revenue Funds,07/04/2015,Agency Consultants,Shropshire Child Psychiatry,PSYCHIATRY PEOPLE,PP112126,4738.43,
Department of Health,CT Revenue Funds,07/04/2015,Agency Hlthcare Assistants & Support Staff,North East Shropshire Interdisciplinary Teams,SEVEN RESOURCING LTD,109798,86.54,
Department of Health,CT Revenue Funds,07/04/2015,Agency Hlthcare Assistants & Support Staff,North East Shropshire Interdisciplinary Teams,SEVEN RESOURCING LTD,109798,432.7,
Department of Health,CT Revenue Funds,07/04/2015,Agency Hlthcare Assistants & Support Staff,Whitchurch Hospital Inpatient Ward,THORNBURY NURSING SERVICES LTD,2754134,353.97,676 2854 93
Department of Health,CT Revenue Funds,07/04/2015,Agency Hlthcare Assistants & Support Staff,Bridgnorth Hospital Inpatient Ward,THORNBURY NURSING SERVICES LTD,2785848,286.78,676 2854 93
Department of Health,CT Revenue Funds,07/04/2015,Agency Hlthcare Assistants & Support Staff,Ludlow Hospital Inpatient Wards,THORNBURY NURSING SERVICES LTD,2785992,274.97,676 2854 93
Department of Health,CT Revenue Funds,07/04/2015,Agency Hlthcare Assistants & Support Staff,Ludlow Hospital Inpatient Wards,THORNBURY NURSING SERVICES LTD,2785995,469.9,676 2854 93
Department of Health,CT Revenue Funds,07/04/2015,Agency Hlthcare Assistants & Support Staff,Whitchurch Hospital Inpatient Ward,THORNBURY NURSING SERVICES LTD,2786246,575.2,676 2854 93
Department of Health,CT Revenue Funds,07/04/2015,Agency Hlthcare Assistants & Support Staff,Whitchurch Hospital Inpatient Ward,THORNBURY NURSING SERVICES LTD,2786247,436.94,676 2854 93
Department of Health,CT Revenue Funds,07/04/2015,Agency Hlthcare Assistants & Support Staff,Bishops Castle Hospital Inpatient Ward,THORNBURY NURSING SERVICES LTD,2787237,320.47,676 2854 93
Department of Health,CT Revenue Funds,07/04/2015,Agency Hlthcare Assistants & Support Staff,Bishops Castle Hospital Inpatient Ward,THORNBURY NURSING SERVICES LTD,2787238,103,676 2854 93
Department of Health,CT Revenue Funds,07/04/2015,Agency Hlthcare Assistants & Support Staff,Bishops Castle Hospital Inpatient Ward,THORNBURY NURSING SERVICES LTD,2787239,103,676 2854 93
Department of Health,CT Revenue Funds,07/04/2015,Agency Hlthcare Assistants & Support Staff,Bridgnorth Hospital Inpatient Ward,THORNBURY NURSING SERVICES LTD,2787250,301.77,676 2854 93
Department of Health,CT Revenue Funds,07/04/2015,Agency Hlthcare Assistants & Support Staff,Bridgnorth Hospital Inpatient Ward,THORNBURY NURSING SERVICES LTD,2787252,315.88,676 2854 93
Department of Health,CT Revenue Funds,07/04/2015,Agency Hlthcare Assistants & Support Staff,Ludlow Hospital Inpatient Wards,THORNBURY NURSING SERVICES LTD,2787542,278.78,676 2854 93
Department of Health,CT Revenue Funds,07/04/2015,Agency Hlthcare Assistants & Support Staff,Ludlow Hospital Inpatient Wards,THORNBURY NURSING SERVICES LTD,2787544,256.6,676 2854 93
Department of Health,CT Revenue Funds,07/04/2015,Agency Hlthcare Assistants & Support Staff,Ludlow Hospital Inpatient Wards,THORNBURY NURSING SERVICES LTD,2787545,338.67,676 2854 93
Department of Health,CT Revenue Funds,07/04/2015,Agency Hlthcare Assistants & Support Staff,Whitchurch Hospital Inpatient Ward,THORNBURY NURSING SERVICES LTD,2788159,7.28,676 2854 93
Department of Health,CT Revenue Funds,07/04/2015,Agency Hlthcare Assistants & Support Staff,Whitchurch Hospital Inpatient Ward,THORNBURY NURSING SERVICES LTD,2788160,467.08,676 2854 93
Department of Health,CT Revenue Funds,07/04/2015,Agency Hlthcare Assistants & Support Staff,Bishops Castle Hospital Inpatient Ward,THORNBURY NURSING SERVICES LTD,2788451,232.47,676 2854 93
Department of Health,CT Revenue Funds,07/04/2015,Agency Hlthcare Assistants & Support Staff,Bishops Castle Hospital Inpatient Ward,THORNBURY NURSING SERVICES LTD,2788454,365.73,676 2854 93
Department of Health,CT Revenue Funds,07/04/2015,Agency Hlthcare Assistants & Support Staff,Bridgnorth Hospital Inpatient Ward,THORNBURY NURSING SERVICES LTD,2788475,323.89,676 2854 93
Department of Health,CT Revenue Funds,07/04/2015,Agency Hlthcare Assistants & Support Staff,Ludlow Hospital Inpatient Wards,THORNBURY NURSING SERVICES LTD,2788889,282.86,676 2854 93
Department of Health,CT Revenue Funds,07/04/2015,Agency Hlthcare Assistants & Support Staff,Ludlow Hospital Inpatient Wards,THORNBURY NURSING SERVICES LTD,2788891,341.93,676 2854 93
Department of Health,CT Revenue Funds,07/04/2015,Agency Hlthcare Assistants & Support Staff,Bridgnorth Hospital Inpatient Ward,THORNBURY NURSING SERVICES LTD,2790307,743.54,676 2854 93
Department of Health,CT Revenue Funds,07/04/2015,Agency Hlthcare Assistants & Support Staff,Whitchurch Hospital Inpatient Ward,THORNBURY NURSING SERVICES LTD,2790309,486.7,676 2854 93
Department of Health,CT Revenue Funds,07/04/2015,Agency Hlthcare Assistants & Support Staff,Bishops Castle Hospital Inpatient Ward,THORNBURY NURSING SERVICES LTD,2793728,477.43,676 2854 93
Department of Health,CT Revenue Funds,07/04/2015,Agency Hlthcare Assistants & Support Staff,Bridgnorth Hospital Inpatient Ward,THORNBURY NURSING SERVICES LTD,2793768,236.01,676 2854 93
Department of Health,CT Revenue Funds,07/04/2015,Agency Hlthcare Assistants & Support Staff,Bridgnorth Hospital Inpatient Ward,THORNBURY NURSING SERVICES LTD,2793770,486.82,676 2854 93
Department of Health,CT Revenue Funds,07/04/2015,Agency Hlthcare Assistants & Support Staff,Bridgnorth Hospital Inpatient Ward,THORNBURY NURSING SERVICES LTD,2793771,318.12,676 2854 93
Department of Health,CT Revenue Funds,07/04/2015,Agency Hlthcare Assistants & Support Staff,Ludlow Hospital Inpatient Wards,THORNBURY NURSING SERVICES LTD,2794952,530.69,676 2854 93
Department of Health,CT Revenue Funds,07/04/2015,Agency Hlthcare Assistants & Support Staff,Ludlow Hospital Inpatient Wards,THORNBURY NURSING SERVICES LTD,2794954,509.79,676 2854 93
Department of Health,CT Revenue Funds,07/04/2015,Agency Hlthcare Assistants & Support Staff,Ludlow Hospital Inpatient Wards,THORNBURY NURSING SERVICES LTD,2794958,103,676 2854 93
Department of Health,CT Revenue Funds,07/04/2015,Agency Hlthcare Assistants & Support Staff,Whitchurch Hospital Inpatient Ward,THORNBURY NURSING SERVICES LTD,2797176,480.02,676 2854 93
Department of Health,CT Revenue Funds,07/04/2015,Agency Hlthcare Assistants & Support Staff,Whitchurch Hospital Inpatient Ward,ID MEDICAL,312637,64,733 7385 18
Department of Health,CT Revenue Funds,07/04/2015,Agency Hlthcare Assistants & Support Staff,Whitchurch Hospital Inpatient Ward,ID MEDICAL,312637,320,733 7385 18
Department of Health,CT Revenue Funds,07/04/2015,Agency Hlthcare Assistants & Support Staff,Whitchurch Hospital Inpatient Ward,ID MEDICAL,312638,63.4,733 7385 18
Department of Health,CT Revenue Funds,07/04/2015,Agency Hlthcare Assistants & Support Staff,Whitchurch Hospital Inpatient Ward,ID MEDICAL,312638,317,733 7385 18
Department of Health,CT Revenue Funds,07/04/2015,Agency Hlthcare Assistants & Support Staff,Whitchurch Hospital Inpatient Ward,ID MEDICAL,314551,36,733 7385 18
Department of Health,CT Revenue Funds,07/04/2015,Agency Hlthcare Assistants & Support Staff,Whitchurch Hospital Inpatient Ward,ID MEDICAL,314551,180,733 7385 18
Department of Health,CT Revenue Funds,07/04/2015,Agency Hlthcare Assistants & Support Staff,Whitchurch Hospital Inpatient Ward,ID MEDICAL,314552,40,733 7385 18
Department of Health,CT Revenue Funds,07/04/2015,Agency Hlthcare Assistants & Support Staff,Whitchurch Hospital Inpatient Ward,ID MEDICAL,314552,200,733 7385 18
Department of Health,CT Revenue Funds,07/04/2015,Agency Hlthcare Assistants & Support Staff,Whitchurch Hospital Inpatient Ward,ID MEDICAL,314553,32,733 7385 18
Department of Health,CT Revenue Funds,07/04/2015,Agency Hlthcare Assistants & Support Staff,Whitchurch Hospital Inpatient Ward,ID MEDICAL,314553,160,733 7385 18
Department of Health,CT Revenue Funds,07/04/2015,Agency Hlthcare Assistants & Support Staff,Ludlow Hospital Inpatient Wards,ID MEDICAL,314642,36.4,733 7385 18
Department of Health,CT Revenue Funds,07/04/2015,Agency Hlthcare Assistants & Support Staff,Ludlow Hospital Inpatient Wards,ID MEDICAL,314642,182,733 7385 18
Department of Health,CT Revenue Funds,07/04/2015,Agency Hlthcare Assistants & Support Staff,Ludlow Hospital Inpatient Wards,ID MEDICAL,314646,36.4,733 7385 18
Department of Health,CT Revenue Funds,07/04/2015,Agency Hlthcare Assistants & Support Staff,Ludlow Hospital Inpatient Wards,ID MEDICAL,314646,182,733 7385 18
Department of Health,CT Revenue Funds,07/04/2015,Agency Hlthcare Assistants & Support Staff,ICS South East,PIERS MEADOWS RECRUITMENT,5011786,38.02,946 2606 12
Department of Health,CT Revenue Funds,07/04/2015,Agency Hlthcare Assistants & Support Staff,ICS South East,PIERS MEADOWS RECRUITMENT,5011786,133.95,946 2606 12
Department of Health,CT Revenue Funds,07/04/2015,Agency Hlthcare Assistants & Support Staff,ICS South East,PIERS MEADOWS RECRUITMENT,5011786,669.75,946 2606 12
Department of Health,CT Revenue Funds,07/04/2015,Agency Hlthcare Assistants & Support Staff,ICS South East,PIERS MEADOWS RECRUITMENT,5012485,71.68,946 2606 12
Department of Health,CT Revenue Funds,07/04/2015,Agency Hlthcare Assistants & Support Staff,ICS South East,PIERS MEADOWS RECRUITMENT,5012485,133.95,946 2606 12
Department of Health,CT Revenue Funds,07/04/2015,Agency Hlthcare Assistants & Support Staff,ICS South East,PIERS MEADOWS RECRUITMENT,5012485,669.75,946 2606 12
Department of Health,CT Revenue Funds,07/04/2015,Agency Hlthcare Assistants & Support Staff,ICS South East,PIERS MEADOWS RECRUITMENT,5013210,82.77,946 2606 12
Department of Health,CT Revenue Funds,07/04/2015,Agency Hlthcare Assistants & Support Staff,ICS South East,PIERS MEADOWS RECRUITMENT,5013210,107.16,946 2606 12
Department of Health,CT Revenue Funds,07/04/2015,Agency Hlthcare Assistants & Support Staff,ICS South East,PIERS MEADOWS RECRUITMENT,5013210,535.8,946 2606 12
Department of Health,CT Revenue Funds,07/04/2015,Agency Hlthcare Assistants & Support Staff,ICS South East,PIERS MEADOWS RECRUITMENT,5020805,81.54,946 2606 12
Department of Health,CT Revenue Funds,07/04/2015,Agency Hlthcare Assistants & Support Staff,ICS South East,PIERS MEADOWS RECRUITMENT,5020805,133.95,946 2606 12
Department of Health,CT Revenue Funds,07/04/2015,Agency Hlthcare Assistants & Support Staff,ICS South East,PIERS MEADOWS RECRUITMENT,5020805,669.75,946 2606 12
Department of Health,CT Revenue Funds,07/04/2015,Agency Hlthcare Assistants & Support Staff,ICS South East,PIERS MEADOWS RECRUITMENT,5021486,77.06,946 2606 12
Department of Health,CT Revenue Funds,07/04/2015,Agency Hlthcare Assistants & Support Staff,ICS South East,PIERS MEADOWS RECRUITMENT,5021486,133.95,946 2606 12
Department of Health,CT Revenue Funds,07/04/2015,Agency Hlthcare Assistants & Support Staff,ICS South East,PIERS MEADOWS RECRUITMENT,5021486,669.75,946 2606 12
Department of Health,CT Revenue Funds,07/04/2015,Agency Hlthcare Assistants & Support Staff,ICS South East,PIERS MEADOWS RECRUITMENT,5022885,209.72,946 2606 12
Department of Health,CT Revenue Funds,07/04/2015,Agency Hlthcare Assistants & Support Staff,ICS South East,PIERS MEADOWS RECRUITMENT,5022885,242.9,946 2606 12
Department of Health,CT Revenue Funds,07/04/2015,Agency Hlthcare Assistants & Support Staff,ICS South East,PIERS MEADOWS RECRUITMENT,5022885,1214.48,946 2606 12
Department of Health,CT Revenue Funds,07/04/2015,Agency Hlthcare Assistants & Support Staff,ICS South East,PIERS MEADOWS RECRUITMENT,5030791,64.12,946 2606 12
Department of Health,CT Revenue Funds,07/04/2015,Agency Hlthcare Assistants & Support Staff,ICS South East,PIERS MEADOWS RECRUITMENT,5030791,107.16,946 2606 12
Department of Health,CT Revenue Funds,07/04/2015,Agency Hlthcare Assistants & Support Staff,ICS South East,PIERS MEADOWS RECRUITMENT,5030791,535.8,946 2606 12
Department of Health,CT Revenue Funds,07/04/2015,Agency Hlthcare Assistants & Support Staff,ICS South East,PIERS MEADOWS RECRUITMENT,5031492,85.79,946 2606 12
Department of Health,CT Revenue Funds,07/04/2015,Agency Hlthcare Assistants & Support Staff,ICS South East,PIERS MEADOWS RECRUITMENT,5031492,114.3,946 2606 12
Department of Health,CT Revenue Funds,07/04/2015,Agency Hlthcare Assistants & Support Staff,ICS South East,PIERS MEADOWS RECRUITMENT,5031492,571.52,946 2606 12
Department of Health,CT Revenue Funds,07/04/2015,Agency Hlthcare Assistants & Support Staff,ICS South East,PIERS MEADOWS RECRUITMENT,5032996,83.55,946 2606 12
Department of Health,CT Revenue Funds,07/04/2015,Agency Hlthcare Assistants & Support Staff,ICS South East,PIERS MEADOWS RECRUITMENT,5032996,133.95,946 2606 12
Department of Health,CT Revenue Funds,07/04/2015,Agency Hlthcare Assistants & Support Staff,ICS South East,PIERS MEADOWS RECRUITMENT,5032996,669.75,946 2606 12
Department of Health,CT Revenue Funds,07/04/2015,Agency Hlthcare Assistants & Support Staff,Bridgnorth Hospital Inpatient Ward,ID MEDICAL,5556,176.34,733 7385 18
Department of Health,CT Revenue Funds,07/04/2015,Agency Hlthcare Assistants & Support Staff,Bridgnorth Hospital Inpatient Ward,ID MEDICAL,5556,881.72,733 7385 18
Department of Health,CT Revenue Funds,07/04/2015,Agency Hlthcare Assistants & Support Staff,Whitchurch Hospital Inpatient Ward,ID MEDICAL,5662,28,733 7385 18
Department of Health,CT Revenue Funds,07/04/2015,Agency Hlthcare Assistants & Support Staff,Whitchurch Hospital Inpatient Ward,ID MEDICAL,5662,140,733 7385 18
Department of Health,CT Revenue Funds,07/04/2015,Agency Hlthcare Assistants & Support Staff,Whitchurch Hospital Inpatient Ward,ID MEDICAL,5744,50,733 7385 18
Department of Health,CT Revenue Funds,07/04/2015,Agency Hlthcare Assistants & Support Staff,Whitchurch Hospital Inpatient Ward,ID MEDICAL,5744,250,733 7385 18
Department of Health,CT Revenue Funds,07/04/2015,Agency Hlthcare Assistants & Support Staff,Whitchurch Hospital Inpatient Ward,ID MEDICAL,5746,308,733 7385 18
Department of Health,CT Revenue Funds,07/04/2015,Agency Hlthcare Assistants & Support Staff,Whitchurch Hospital Inpatient Ward,ID MEDICAL,5746,1540,733 7385 18
Department of Health,CT Revenue Funds,07/04/2015,Agency Hlthcare Assistants & Support Staff,Bishops Castle Hospital Inpatient Ward,ID MEDICAL,5750,10,733 7385 18
Department of Health,CT Revenue Funds,07/04/2015,Agency Hlthcare Assistants & Support Staff,Bishops Castle Hospital Inpatient Ward,ID MEDICAL,5750,50,733 7385 18
Department of Health,CT Revenue Funds,07/04/2015,Agency Hlthcare Assistants & Support Staff,Bridgnorth Hospital Inpatient Ward,ID MEDICAL,5753,47.5,733 7385 18
Department of Health,CT Revenue Funds,07/04/2015,Agency Hlthcare Assistants & Support Staff,Bridgnorth Hospital Inpatient Ward,ID MEDICAL,5753,237.5,733 7385 18
Department of Health,CT Revenue Funds,07/04/2015,Agency Hlthcare Assistants & Support Staff,Ludlow Hospital Inpatient Wards,ID MEDICAL,5766,150,733 7385 18
Department of Health,CT Revenue Funds,07/04/2015,Agency Hlthcare Assistants & Support Staff,Ludlow Hospital Inpatient Wards,ID MEDICAL,5766,750,733 7385 18
Department of Health,CT Revenue Funds,07/04/2015,Agency Hlthcare Assistants & Support Staff,Ludlow Hospital Inpatient Wards,ID MEDICAL,5769,57.5,733 7385 18
Department of Health,CT Revenue Funds,07/04/2015,Agency Hlthcare Assistants & Support Staff,Ludlow Hospital Inpatient Wards,ID MEDICAL,5769,287.5,733 7385 18
Department of Health,CT Revenue Funds,07/04/2015,Agency Hlthcare Assistants & Support Staff,Stoke Heath Prison Healthcare,ID MEDICAL,5844,241.15,733 7385 18
Department of Health,CT Revenue Funds,07/04/2015,Agency Hlthcare Assistants & Support Staff,Stoke Heath Prison Healthcare,ID MEDICAL,5844,1205.75,733 7385 18
Department of Health,CT Revenue Funds,07/04/2015,Agency Hlthcare Assistants & Support Staff,Stoke Heath Prison Healthcare,ID MEDICAL,5845,115,733 7385 18
Department of Health,CT Revenue Funds,07/04/2015,Agency Hlthcare Assistants & Support Staff,Stoke Heath Prison Healthcare,ID MEDICAL,5845,575,733 7385 18
Department of Health,CT Revenue Funds,07/04/2015,Agency Hlthcare Assistants & Support Staff,Whitchurch Hospital Inpatient Ward,ID MEDICAL,5848,45.5,733 7385 18
Department of Health,CT Revenue Funds,07/04/2015,Agency Hlthcare Assistants & Support Staff,Whitchurch Hospital Inpatient Ward,ID MEDICAL,5848,227.5,733 7385 18
Department of Health,CT Revenue Funds,07/04/2015,Agency Hlthcare Assistants & Support Staff,Whitchurch Hospital Inpatient Ward,ID MEDICAL,5849,57.5,733 7385 18
Department of Health,CT Revenue Funds,07/04/2015,Agency Hlthcare Assistants & Support Staff,Whitchurch Hospital Inpatient Ward,ID MEDICAL,5849,287.5,733 7385 18
Department of Health,CT Revenue Funds,07/04/2015,Agency Hlthcare Assistants & Support Staff,Whitchurch Hospital Inpatient Ward,ID MEDICAL,5852,50,733 7385 18
Department of Health,CT Revenue Funds,07/04/2015,Agency Hlthcare Assistants & Support Staff,Whitchurch Hospital Inpatient Ward,ID MEDICAL,5852,250,733 7385 18
Department of Health,CT Revenue Funds,07/04/2015,Agency Hlthcare Assistants & Support Staff,Bridgnorth Hospital Inpatient Ward,ID MEDICAL,5868,20.78,733 7385 18
Department of Health,CT Revenue Funds,07/04/2015,Agency Hlthcare Assistants & Support Staff,Bridgnorth Hospital Inpatient Ward,ID MEDICAL,5868,103.88,733 7385 18
Department of Health,CT Revenue Funds,07/04/2015,Agency Hlthcare Assistants & Support Staff,Ludlow Hospital Inpatient Wards,ID MEDICAL,5878,100,733 7385 18
Department of Health,CT Revenue Funds,07/04/2015,Agency Hlthcare Assistants & Support Staff,Ludlow Hospital Inpatient Wards,ID MEDICAL,5878,500,733 7385 18
Department of Health,CT Revenue Funds,07/04/2015,Agency Hlthcare Assistants & Support Staff,Bridgnorth Hospital Inpatient Ward,ID MEDICAL,5940,92.77,733 7385 18
Department of Health,CT Revenue Funds,07/04/2015,Agency Hlthcare Assistants & Support Staff,Bridgnorth Hospital Inpatient Ward,ID MEDICAL,5940,463.85,733 7385 18
Department of Health,CT Revenue Funds,07/04/2015,Agency Hlthcare Assistants & Support Staff,Whitchurch Hospital Inpatient Ward,ID MEDICAL,5979,50,733 7385 18
Department of Health,CT Revenue Funds,07/04/2015,Agency Hlthcare Assistants & Support Staff,Whitchurch Hospital Inpatient Ward,ID MEDICAL,5979,250,733 7385 18
Department of Health,CT Revenue Funds,07/04/2015,Agency Hlthcare Assistants & Support Staff,Ludlow Hospital Inpatient Wards,ID MEDICAL,5986,20.73,733 7385 18
Department of Health,CT Revenue Funds,07/04/2015,Agency Hlthcare Assistants & Support Staff,Ludlow Hospital Inpatient Wards,ID MEDICAL,5986,103.65,733 7385 18
Department of Health,CT Revenue Funds,07/04/2015,Agency Hlthcare Assistants & Support Staff,Stoke Heath Prison Healthcare,ID MEDICAL,5991,62.1,733 7385 18
Department of Health,CT Revenue Funds,07/04/2015,Agency Hlthcare Assistants & Support Staff,Stoke Heath Prison Healthcare,ID MEDICAL,5991,310.5,733 7385 18
Department of Health,CT Revenue Funds,07/04/2015,Agency Medical Other,Substance Misuse Teams,MED TEAM PRIMARY CARE SERVICES LIMITED,66718,507.5,932 3488 18
Department of Health,CT Revenue Funds,07/04/2015,Agency Medical Other,Substance Misuse Teams,MED TEAM PRIMARY CARE SERVICES LIMITED,66718,2537.5,932 3488 18
Department of Health,CT Revenue Funds,07/04/2015,Agency Nursing,Shropshire Community Paediatric Medical Staff,RANDSTAD CARE LTD,1906913,224.03,
Department of Health,CT Revenue Funds,07/04/2015,Agency Nursing,Shropshire Community Paediatric Medical Staff,RANDSTAD CARE LTD,1906914,231.75,
Department of Health,CT Revenue Funds,07/04/2015,Agency Nursing,Shropshire Community Paediatric Medical Staff,RANDSTAD CARE LTD,1906915,10.72,
Department of Health,CT Revenue Funds,07/04/2015,Agency Nursing,Shropshire Community Paediatric Medical Staff,RANDSTAD CARE LTD,1906915,53.6,
Department of Health,CT Revenue Funds,07/04/2015,Agency Nursing,Shropshire Community Paediatric Medical Staff,RANDSTAD CARE LTD,1906916,5.9,
Department of Health,CT Revenue Funds,07/04/2015,Agency Nursing,Shropshire Community Paediatric Medical Staff,RANDSTAD CARE LTD,1906916,29.48,
Department of Health,CT Revenue Funds,07/04/2015,Agency Nursing,Shropshire Community Paediatric Medical Staff,RANDSTAD CARE LTD,1908573,231.75,
Department of Health,CT Revenue Funds,07/04/2015,Agency Nursing,Shropshire Community Paediatric Medical Staff,RANDSTAD CARE LTD,1908574,5.9,
Department of Health,CT Revenue Funds,07/04/2015,Agency Nursing,Shropshire Community Paediatric Medical Staff,RANDSTAD CARE LTD,1908574,29.48,
Department of Health,CT Revenue Funds,07/04/2015,Agency Nursing,Bridgnorth Hospital Inpatient Ward,THORNBURY NURSING SERVICES LTD,2785846,543.6,676 2854 93
Department of Health,CT Revenue Funds,07/04/2015,Agency Nursing,Bridgnorth Hospital Inpatient Ward,THORNBURY NURSING SERVICES LTD,2785847,394.38,676 2854 93
Department of Health,CT Revenue Funds,07/04/2015,Agency Nursing,Ludlow Hospital Inpatient Wards,THORNBURY NURSING SERVICES LTD,2785993,567.74,676 2854 93
Department of Health,CT Revenue Funds,07/04/2015,Agency Nursing,Ludlow Hospital Inpatient Wards,THORNBURY NURSING SERVICES LTD,2785994,747.46,676 2854 93
Department of Health,CT Revenue Funds,07/04/2015,Agency Nursing,Ludlow Hospital Inpatient Wards,THORNBURY NURSING SERVICES LTD,2785996,549.2,676 2854 93
Department of Health,CT Revenue Funds,07/04/2015,Agency Nursing,Whitchurch Hospital Inpatient Ward,THORNBURY NURSING SERVICES LTD,2786244,445.2,676 2854 93
Department of Health,CT Revenue Funds,07/04/2015,Agency Nursing,Whitchurch Hospital Inpatient Ward,THORNBURY NURSING SERVICES LTD,2786245,665.21,676 2854 93
Department of Health,CT Revenue Funds,07/04/2015,Agency Nursing,Bishops Castle Hospital Inpatient Ward,THORNBURY NURSING SERVICES LTD,2787236,453.91,676 2854 93
Department of Health,CT Revenue Funds,07/04/2015,Agency Nursing,Bridgnorth Hospital Inpatient Ward,THORNBURY NURSING SERVICES LTD,2787249,506.68,676 2854 93
Department of Health,CT Revenue Funds,07/04/2015,Agency Nursing,Bridgnorth Hospital Inpatient Ward,THORNBURY NURSING SERVICES LTD,2787251,612.62,676 2854 93
Department of Health,CT Revenue Funds,07/04/2015,Agency Nursing,Bridgnorth Hospital Inpatient Ward,THORNBURY NURSING SERVICES LTD,2787253,103,676 2854 93
Department of Health,CT Revenue Funds,07/04/2015,Agency Nursing,Ludlow Hospital Inpatient Wards,THORNBURY NURSING SERVICES LTD,2787543,435.36,676 2854 93
Department of Health,CT Revenue Funds,07/04/2015,Agency Nursing,Ludlow Hospital Minor Injuries Unit,THORNBURY NURSING SERVICES LTD,2787546,894.74,676 2854 93
Department of Health,CT Revenue Funds,07/04/2015,Agency Nursing,Ludlow Hospital Inpatient Wards,THORNBURY NURSING SERVICES LTD,2787547,963.13,676 2854 93
Department of Health,CT Revenue Funds,07/04/2015,Agency Nursing,Ludlow Hospital Inpatient Wards,THORNBURY NURSING SERVICES LTD,2787548,695.3,676 2854 93
Department of Health,CT Revenue Funds,07/04/2015,Agency Nursing,Bishops Castle Hospital Inpatient Ward,THORNBURY NURSING SERVICES LTD,2788447,795.67,676 2854 93
Department of Health,CT Revenue Funds,07/04/2015,Agency Nursing,Bishops Castle Hospital Inpatient Ward,THORNBURY NURSING SERVICES LTD,2788448,339.25,676 2854 93
Department of Health,CT Revenue Funds,07/04/2015,Agency Nursing,Bishops Castle Hospital Inpatient Ward,THORNBURY NURSING SERVICES LTD,2788449,444.22,676 2854 93
Department of Health,CT Revenue Funds,07/04/2015,Agency Nursing,Bishops Castle Hospital Inpatient Ward,THORNBURY NURSING SERVICES LTD,2788450,479.51,676 2854 93
Department of Health,CT Revenue Funds,07/04/2015,Agency Nursing,Bishops Castle Hospital Inpatient Ward,THORNBURY NURSING SERVICES LTD,2788452,746.35,676 2854 93
Department of Health,CT Revenue Funds,07/04/2015,Agency Nursing,Bishops Castle Hospital Inpatient Ward,THORNBURY NURSING SERVICES LTD,2788453,746.35,676 2854 93
Department of Health,CT Revenue Funds,07/04/2015,Agency Nursing,Bridgnorth Hospital Inpatient Ward,THORNBURY NURSING SERVICES LTD,2788470,406.8,676 2854 93
Department of Health,CT Revenue Funds,07/04/2015,Agency Nursing,Bridgnorth Hospital Inpatient Ward,THORNBURY NURSING SERVICES LTD,2788471,514.87,676 2854 93
Department of Health,CT Revenue Funds,07/04/2015,Agency Nursing,Bridgnorth Hospital Inpatient Ward,THORNBURY NURSING SERVICES LTD,2788472,434.85,676 2854 93
Department of Health,CT Revenue Funds,07/04/2015,Agency Nursing,Bridgnorth Hospital Inpatient Ward,THORNBURY NURSING SERVICES LTD,2788473,597.51,676 2854 93
Department of Health,CT Revenue Funds,07/04/2015,Agency Nursing,Bridgnorth Hospital Inpatient Ward,THORNBURY NURSING SERVICES LTD,2788474,425.59,676 2854 93
Department of Health,CT Revenue Funds,07/04/2015,Agency Nursing,Ludlow Hospital Inpatient Wards,THORNBURY NURSING SERVICES LTD,2788890,675.57,676 2854 93
Department of Health,CT Revenue Funds,07/04/2015,Agency Nursing,Ludlow Hospital Inpatient Wards,THORNBURY NURSING SERVICES LTD,2788892,365.99,676 2854 93
Department of Health,CT Revenue Funds,07/04/2015,Agency Nursing,Ludlow Hospital Inpatient Wards,THORNBURY NURSING SERVICES LTD,2788893,439.36,676 2854 93
Department of Health,CT Revenue Funds,07/04/2015,Agency Nursing,Ludlow Hospital Inpatient Wards,THORNBURY NURSING SERVICES LTD,2788894,569.98,676 2854 93
Department of Health,CT Revenue Funds,07/04/2015,Agency Nursing,Ludlow Hospital Inpatient Wards,THORNBURY NURSING SERVICES LTD,2788895,543.38,676 2854 93
Department of Health,CT Revenue Funds,07/04/2015,Agency Nursing,Ludlow Hospital Inpatient Wards,THORNBURY NURSING SERVICES LTD,2788896,543.38,676 2854 93
Department of Health,CT Revenue Funds,07/04/2015,Agency Nursing,Whitchurch Hospital Inpatient Ward,THORNBURY NURSING SERVICES LTD,2790311,722.77,676 2854 93
Department of Health,CT Revenue Funds,07/04/2015,Agency Nursing,Bishops Castle Hospital Inpatient Ward,THORNBURY NURSING SERVICES LTD,2793729,460.32,676 2854 93
Department of Health,CT Revenue Funds,07/04/2015,Agency Nursing,Bishops Castle Hospital Inpatient Ward,THORNBURY NURSING SERVICES LTD,2793730,818.79,676 2854 93
Department of Health,CT Revenue Funds,07/04/2015,Agency Nursing,Bridgnorth Hospital Inpatient Ward,THORNBURY NURSING SERVICES LTD,2793765,421.52,676 2854 93
Department of Health,CT Revenue Funds,07/04/2015,Agency Nursing,Bridgnorth Hospital Inpatient Ward,THORNBURY NURSING SERVICES LTD,2793766,531.25,676 2854 93
Department of Health,CT Revenue Funds,07/04/2015,Agency Nursing,Bridgnorth Hospital Inpatient Ward,THORNBURY NURSING SERVICES LTD,2793767,517.53,676 2854 93
Department of Health,CT Revenue Funds,07/04/2015,Agency Nursing,Bridgnorth Hospital Inpatient Ward,THORNBURY NURSING SERVICES LTD,2793769,624.43,676 2854 93
Department of Health,CT Revenue Funds,07/04/2015,Agency Nursing,Ludlow Hospital Inpatient Wards,THORNBURY NURSING SERVICES LTD,2794956,451.53,676 2854 93
Department of Health,CT Revenue Funds,07/04/2015,Agency Nursing,Ludlow Hospital Inpatient Wards,THORNBURY NURSING SERVICES LTD,2794960,437.6,676 2854 93
Department of Health,CT Revenue Funds,07/04/2015,Agency Nursing,Whitchurch Hospital Inpatient Ward,THORNBURY NURSING SERVICES LTD,2797177,745.22,676 2854 93
Department of Health,CT Revenue Funds,07/04/2015,Agency Nursing,Whitchurch Hospital Inpatient Ward,THORNBURY NURSING SERVICES LTD,2797178,728.98,676 2854 93
Department of Health,CT Revenue Funds,07/04/2015,Agency Nursing,Whitchurch Hospital Inpatient Ward,ID MEDICAL,312636,1782.25,733 7385 18
Department of Health,CT Revenue Funds,07/04/2015,Agency Nursing,Whitchurch Hospital Inpatient Ward,ID MEDICAL,314550,1412.5,733 7385 18
Department of Health,CT Revenue Funds,07/04/2015,Agency Nursing,Ludlow Hospital Inpatient Wards,ID MEDICAL,314643,1520,733 7385 18
Department of Health,CT Revenue Funds,07/04/2015,Agency Nursing,Ludlow Hospital Inpatient Wards,ID MEDICAL,314644,600,733 7385 18
Department of Health,CT Revenue Funds,07/04/2015,Agency Nursing,Ludlow Hospital Inpatient Wards,ID MEDICAL,314645,600,733 7385 18
Department of Health,CT Revenue Funds,07/04/2015,Agency Nursing,Oswestry Minor Injuries Unit,HALLAM MEDICAL,35007,955.5,
Department of Health,CT Revenue Funds,07/04/2015,Agency Nursing,Whitchurch Hospital Minor Injuries Unit,ID MEDICAL,4628,875,733 7385 18
Department of Health,CT Revenue Funds,07/04/2015,Agency Nursing,Whitchurch Hospital Inpatient Ward,ID MEDICAL,5449,6037.5,733 7385 18
Department of Health,CT Revenue Funds,07/04/2015,Agency Nursing,Ludlow Hospital Inpatient Wards,ID MEDICAL,5568,1020,733 7385 18
Department of Health,CT Revenue Funds,07/04/2015,Agency Nursing,Whitchurch Hospital Inpatient Ward,ID MEDICAL,5661,437.5,733 7385 18
Department of Health,CT Revenue Funds,07/04/2015,Agency Nursing,Whitchurch Hospital Inpatient Ward,ID MEDICAL,5745,1140,733 7385 18
Department of Health,CT Revenue Funds,07/04/2015,Agency Nursing,Bishops Castle Hospital Inpatient Ward,ID MEDICAL,5751,2090,733 7385 18
Department of Health,CT Revenue Funds,07/04/2015,Agency Nursing,Bishops Castle Hospital Inpatient Ward,ID MEDICAL,5752,380,733 7385 18
Department of Health,CT Revenue Funds,07/04/2015,Agency Nursing,Ludlow Hospital Inpatient Wards,ID MEDICAL,5767,1558,733 7385 18
Department of Health,CT Revenue Funds,07/04/2015,Agency Nursing,Ludlow Hospital Inpatient Wards,ID MEDICAL,5768,380,733 7385 18
Department of Health,CT Revenue Funds,07/04/2015,Agency Nursing,Ludlow Hospital Inpatient Wards,ID MEDICAL,5770,285,733 7385 18
Department of Health,CT Revenue Funds,07/04/2015,Agency Nursing,Ludlow Hospital Inpatient Wards,ID MEDICAL,5771,849.5,733 7385 18
Department of Health,CT Revenue Funds,07/04/2015,Agency Nursing,Ludlow Hospital Inpatient Wards,ID MEDICAL,5772,380,733 7385 18
Department of Health,CT Revenue Funds,07/04/2015,Agency Nursing,Ludlow Hospital Inpatient Wards,ID MEDICAL,5773,240,733 7385 18
Department of Health,CT Revenue Funds,07/04/2015,Agency Nursing,Ludlow Hospital Inpatient Wards,ID MEDICAL,5774,460,733 7385 18
Department of Health,CT Revenue Funds,07/04/2015,Agency Nursing,Oswestry Minor Injuries Unit,ID MEDICAL,5775,702.97,733 7385 18
Department of Health,CT Revenue Funds,07/04/2015,Agency Nursing,Whitchurch Hospital Inpatient Ward,ID MEDICAL,5846,2360,733 7385 18
Department of Health,CT Revenue Funds,07/04/2015,Agency Nursing,Whitchurch Hospital Inpatient Ward,ID MEDICAL,5847,1350,733 7385 18
Department of Health,CT Revenue Funds,07/04/2015,Agency Nursing,Whitchurch Hospital Inpatient Ward,ID MEDICAL,5850,546,733 7385 18
Department of Health,CT Revenue Funds,07/04/2015,Agency Nursing,Whitchurch Hospital Inpatient Ward,ID MEDICAL,5851,1980,733 7385 18
Department of Health,CT Revenue Funds,07/04/2015,Agency Nursing,Ludlow Hospital Inpatient Wards,ID MEDICAL,5879,380,733 7385 18
Department of Health,CT Revenue Funds,07/04/2015,Agency Nursing,Ludlow Hospital Inpatient Wards,ID MEDICAL,5880,547.5,733 7385 18
Department of Health,CT Revenue Funds,07/04/2015,Agency Nursing,Whitchurch Hospital Inpatient Ward,ID MEDICAL,5978,1350,733 7385 18
Department of Health,CT Revenue Funds,07/04/2015,Agency Nursing,Shropshire Primary CAMHS Service,HCL SOCIAL CARE,HSOC5392469,310.83,
Department of Health,CT Revenue Funds,07/04/2015,Agency Nursing,Shropshire Primary CAMHS Service,HCL SOCIAL CARE,HSOC5392469,1554.15,
Department of Health,CT Revenue Funds,07/04/2015,Agency Nursing,CAMHS Team (T&W),HCL SOCIAL CARE,HSOC5394169,9.34,
Department of Health,CT Revenue Funds,07/04/2015,Agency Nursing,CAMHS Team (T&W),HCL SOCIAL CARE,HSOC5394169,46.72,
Department of Health,CT Revenue Funds,07/04/2015,Agency Nursing,CAMHS Team (T&W),HCL SOCIAL CARE,HSOC5394170,293.33,
Department of Health,CT Revenue Funds,07/04/2015,Agency Nursing,CAMHS Team (T&W),HCL SOCIAL CARE,HSOC5394170,1466.63,
Department of Health,CT Revenue Funds,07/04/2015,Agency Nursing,Shropshire CAMHS Team,HCL SOCIAL CARE,HSOC5394171,295.15,
Department of Health,CT Revenue Funds,07/04/2015,Agency Nursing,Shropshire CAMHS Team,HCL SOCIAL CARE,HSOC5394171,1475.76,
Department of Health,CT Revenue Funds,07/04/2015,Agency Nursing,CAMHS Team (T&W),HCL SOCIAL CARE,HSOC5394172,1400.08,
Department of Health,CT Revenue Funds,07/04/2015,Agency Nursing,CAMHS Team (T&W),HCL SOCIAL CARE,HSOC5394173,16.9,
Department of Health,CT Revenue Funds,07/04/2015,Agency Nursing,CAMHS Team (T&W),HCL SOCIAL CARE,HSOC5394173,84.48,
Department of Health,CT Revenue Funds,07/04/2015,Agency Nursing,Shropshire Primary CAMHS Service,HCL SOCIAL CARE,HSOC5394562,310.83,
Department of Health,CT Revenue Funds,07/04/2015,Agency Nursing,Shropshire Primary CAMHS Service,HCL SOCIAL CARE,HSOC5394562,1554.15,
Department of Health,CT Revenue Funds,07/04/2015,Agency Nursing,Shropshire CAMHS Team,JCJ LTD,SWP5394242,296,
Department of Health,CT Revenue Funds,07/04/2015,Agency Nursing,Shropshire CAMHS Team,JCJ LTD,SWP5394242,1480,
Department of Health,CT Revenue Funds,07/04/2015,Agency Nursing,Stoke Heath Prison Healthcare,AMG NURSING & CARE SERVICES,W0014683,1524.47,909 7863 74
Department of Health,CT Revenue Funds,07/04/2015,Agency PAMs,ICS Central,SANCTUARY PERSONNEL LTD,00374029,-1050,
Department of Health,CT Revenue Funds,07/04/2015,Agency PAMs,ICS Central,SANCTUARY PERSONNEL LTD,00374029,-210,
Department of Health,CT Revenue Funds,07/04/2015,Agency PAMs,ICS Central,SANCTUARY PERSONNEL LTD,00374029,210,
Department of Health,CT Revenue Funds,07/04/2015,Agency PAMs,Respiratory Liaison Nurses (T&W),SANCTUARY PERSONNEL LTD,00374029,210,
Department of Health,CT Revenue Funds,07/04/2015,Agency PAMs,ICS Central,SANCTUARY PERSONNEL LTD,00374029,1050,
Department of Health,CT Revenue Funds,07/04/2015,Agency PAMs,Respiratory Liaison Nurses (T&W),SANCTUARY PERSONNEL LTD,00374029,1050,
Department of Health,CT Revenue Funds,07/04/2015,Agency PAMs,Respiratory Liaison Nurses (T&W),SANCTUARY PERSONNEL LTD,00376150,196,
Department of Health,CT Revenue Funds,07/04/2015,Agency PAMs,Respiratory Liaison Nurses (T&W),SANCTUARY PERSONNEL LTD,00376150,980,
Department of Health,CT Revenue Funds,07/04/2015,Agency PAMs,Respiratory Liaison Nurses (T&W),SANCTUARY PERSONNEL LTD,00378237,273,
Department of Health,CT Revenue Funds,07/04/2015,Agency PAMs,Respiratory Liaison Nurses (T&W),SANCTUARY PERSONNEL LTD,00378237,1365,
Department of Health,CT Revenue Funds,07/04/2015,Agency PAMs,Respiratory Liaison Nurses (T&W),SANCTUARY PERSONNEL LTD,00380190,280,
Department of Health,CT Revenue Funds,07/04/2015,Agency PAMs,Respiratory Liaison Nurses (T&W),SANCTUARY PERSONNEL LTD,00380190,1400,
Department of Health,CT Revenue Funds,07/04/2015,Agency PAMs,Respiratory Liaison Nurses (T&W),SANCTUARY PERSONNEL LTD,00382300,255.5,
Department of Health,CT Revenue Funds,07/04/2015,Agency PAMs,Respiratory Liaison Nurses (T&W),SANCTUARY PERSONNEL LTD,00382300,1277.5,
Department of Health,CT Revenue Funds,07/04/2015,Agency PAMs,ICS Central,SEVEN RESOURCING LTD,109145,197.99,
Department of Health,CT Revenue Funds,07/04/2015,Agency PAMs,ICS Central,SEVEN RESOURCING LTD,109145,989.97,
Department of Health,CT Revenue Funds,07/04/2015,Agency PAMs,ICS Central,SEVEN RESOURCING LTD,109224,451.18,
Department of Health,CT Revenue Funds,07/04/2015,Agency PAMs,ICS Central,SEVEN RESOURCING LTD,109224,2255.89,
Department of Health,CT Revenue Funds,07/04/2015,Agency PAMs,ICS North East,SEVEN RESOURCING LTD,109331,486.56,
Department of Health,CT Revenue Funds,07/04/2015,Agency PAMs,ICS North East,SEVEN RESOURCING LTD,109331,2432.82,
Department of Health,CT Revenue Funds,07/04/2015,Agency PAMs,Ludlow Hospital Occupational Therapy,SEVEN RESOURCING LTD,109352,333.84,
Department of Health,CT Revenue Funds,07/04/2015,Agency PAMs,Ludlow Hospital Occupational Therapy,SEVEN RESOURCING LTD,109352,1669.2,
Department of Health,CT Revenue Funds,07/04/2015,Agency PAMs,South East Interdisciplinary Teams,SEVEN RESOURCING LTD,109522,41.02,
Department of Health,CT Revenue Funds,07/04/2015,Agency PAMs,North East Shropshire Interdisciplinary Teams,SEVEN RESOURCING LTD,109522,61.52,
Department of Health,CT Revenue Funds,07/04/2015,Agency PAMs,South East Interdisciplinary Teams,SEVEN RESOURCING LTD,109522,205.08,
Department of Health,CT Revenue Funds,07/04/2015,Agency PAMs,North East Shropshire Interdisciplinary Teams,SEVEN RESOURCING LTD,109522,307.63,
Department of Health,CT Revenue Funds,07/04/2015,Agency PAMs,ICS North East,SEVEN RESOURCING LTD,109556,205.46,
Department of Health,CT Revenue Funds,07/04/2015,Agency PAMs,ICS North East,SEVEN RESOURCING LTD,109556,1027.31,
Department of Health,CT Revenue Funds,07/04/2015,Agency PAMs,Ludlow Hospital Occupational Therapy,SEVEN RESOURCING LTD,109638,304.54,
Department of Health,CT Revenue Funds,07/04/2015,Agency PAMs,Ludlow Hospital Occupational Therapy,SEVEN RESOURCING LTD,109638,1522.71,
Department of Health,CT Revenue Funds,07/04/2015,Agency PAMs,ICS North East,SEVEN RESOURCING LTD,109691,489.7,
Department of Health,CT Revenue Funds,07/04/2015,Agency PAMs,ICS North East,SEVEN RESOURCING LTD,109691,2448.47,
Department of Health,CT Revenue Funds,07/04/2015,Agency PAMs,Ludlow Hospital Occupational Therapy,SEVEN RESOURCING LTD,109708,479.46,
Department of Health,CT Revenue Funds,07/04/2015,Agency PAMs,Ludlow Hospital Occupational Therapy,SEVEN RESOURCING LTD,109708,2397.3,
Department of Health,CT Revenue Funds,07/04/2015,Agency PAMs,ICS Central,SEVEN RESOURCING LTD,109711,397.31,
Department of Health,CT Revenue Funds,07/04/2015,Agency PAMs,ICS Central,SEVEN RESOURCING LTD,109711,1986.53,
Department of Health,CT Revenue Funds,07/04/2015,Agency PAMs,ICS North East,SEVEN RESOURCING LTD,109716,200.22,
Department of Health,CT Revenue Funds,07/04/2015,Agency PAMs,ICS North East,SEVEN RESOURCING LTD,109716,1001.1,
Department of Health,CT Revenue Funds,07/04/2015,Agency PAMs,Ludlow Hospital Occupational Therapy,SEVEN RESOURCING LTD,109808,332.04,
Department of Health,CT Revenue Funds,07/04/2015,Agency PAMs,Ludlow Hospital Occupational Therapy,SEVEN RESOURCING LTD,109808,1660.2,
Department of Health,CT Revenue Funds,07/04/2015,Agency PAMs,ICS Central,CARE4HEALTH LTD,138035,-869.65,
Department of Health,CT Revenue Funds,07/04/2015,Agency PAMs,ICS Central,CARE4HEALTH LTD,138035,-173.93,
Department of Health,CT Revenue Funds,07/04/2015,Agency PAMs,ICS Central,CARE4HEALTH LTD,138035,173.93,
Department of Health,CT Revenue Funds,07/04/2015,Agency PAMs,ICS North East,CARE4HEALTH LTD,138035,173.93,
Department of Health,CT Revenue Funds,07/04/2015,Agency PAMs,ICS Central,CARE4HEALTH LTD,138035,869.65,
Department of Health,CT Revenue Funds,07/04/2015,Agency PAMs,ICS North East,CARE4HEALTH LTD,138035,869.65,
Department of Health,CT Revenue Funds,07/04/2015,Agency PAMs,ICS Central,CARE4HEALTH LTD,138036,-407.62,
Department of Health,CT Revenue Funds,07/04/2015,Agency PAMs,ICS Central,CARE4HEALTH LTD,138036,-81.52,
Department of Health,CT Revenue Funds,07/04/2015,Agency PAMs,ICS Central,CARE4HEALTH LTD,138036,81.52,
Department of Health,CT Revenue Funds,07/04/2015,Agency PAMs,ICS North East,CARE4HEALTH LTD,138036,81.52,
Department of Health,CT Revenue Funds,07/04/2015,Agency PAMs,ICS Central,CARE4HEALTH LTD,138036,407.62,
Department of Health,CT Revenue Funds,07/04/2015,Agency PAMs,ICS North East,CARE4HEALTH LTD,138036,407.62,
Department of Health,CT Revenue Funds,07/04/2015,Agency PAMs,ICS Central,CARE4HEALTH LTD,138037,-566.82,
Department of Health,CT Revenue Funds,07/04/2015,Agency PAMs,ICS Central,CARE4HEALTH LTD,138037,-113.36,
Department of Health,CT Revenue Funds,07/04/2015,Agency PAMs,ICS Central,CARE4HEALTH LTD,138037,113.36,
Department of Health,CT Revenue Funds,07/04/2015,Agency PAMs,ICS North East,CARE4HEALTH LTD,138037,113.36,
Department of Health,CT Revenue Funds,07/04/2015,Agency PAMs,ICS Central,CARE4HEALTH LTD,138037,566.82,
Department of Health,CT Revenue Funds,07/04/2015,Agency PAMs,ICS North East,CARE4HEALTH LTD,138037,566.82,
Department of Health,CT Revenue Funds,07/04/2015,Agency PAMs,ICS North East,CARE4HEALTH LTD,138085,164.28,
Department of Health,CT Revenue Funds,07/04/2015,Agency PAMs,ICS North East,CARE4HEALTH LTD,138085,821.39,
Department of Health,CT Revenue Funds,07/04/2015,Agency PAMs,ICS North East,CARE4HEALTH LTD,138086,-457.98,
Department of Health,CT Revenue Funds,07/04/2015,Agency PAMs,ICS North East,CARE4HEALTH LTD,138086,-91.6,
Department of Health,CT Revenue Funds,07/04/2015,Agency PAMs,Bridgnorth Hospital Inpatient Ward,CARE4HEALTH LTD,138086,91.6,
Department of Health,CT Revenue Funds,07/04/2015,Agency PAMs,ICS North East,CARE4HEALTH LTD,138086,91.6,
Department of Health,CT Revenue Funds,07/04/2015,Agency PAMs,Bridgnorth Hospital Inpatient Ward,CARE4HEALTH LTD,138086,457.98,
Department of Health,CT Revenue Funds,07/04/2015,Agency PAMs,ICS North East,CARE4HEALTH LTD,138086,457.98,
Department of Health,CT Revenue Funds,07/04/2015,Agency PAMs,ICS North East,CARE4HEALTH LTD,138128,-581.22,
Department of Health,CT Revenue Funds,07/04/2015,Agency PAMs,ICS North East,CARE4HEALTH LTD,138128,-116.24,
Department of Health,CT Revenue Funds,07/04/2015,Agency PAMs,North West Shropshire Interdisciplinary Teams,CARE4HEALTH LTD,138128,116.24,
Department of Health,CT Revenue Funds,07/04/2015,Agency PAMs,ICS North East,CARE4HEALTH LTD,138128,116.24,
Department of Health,CT Revenue Funds,07/04/2015,Agency PAMs,North West Shropshire Interdisciplinary Teams,CARE4HEALTH LTD,138128,581.22,
Department of Health,CT Revenue Funds,07/04/2015,Agency PAMs,ICS North East,CARE4HEALTH LTD,138128,581.22,
Department of Health,CT Revenue Funds,07/04/2015,Agency PAMs,Bridgnorth Hospital Inpatient Ward,CARE4HEALTH LTD,138129,89.52,
Department of Health,CT Revenue Funds,07/04/2015,Agency PAMs,Bridgnorth Hospital Inpatient Ward,CARE4HEALTH LTD,138129,447.61,
Department of Health,CT Revenue Funds,07/04/2015,Agency PAMs,Nurse Liaison Intermediate Care (T&W),MEDI CONNECT RECRUITMENT,15458,202.61,973 5565 79
Department of Health,CT Revenue Funds,07/04/2015,Agency PAMs,Nurse Liaison Intermediate Care (T&W),MEDI CONNECT RECRUITMENT,15458,1013.05,973 5565 79
Department of Health,CT Revenue Funds,07/04/2015,Agency PAMs,North East Shropshire Interdisciplinary Teams,PULSE,2776137,193.19,676 2854 93
Department of Health,CT Revenue Funds,07/04/2015,Agency PAMs,North East Shropshire Interdisciplinary Teams,PULSE,2776137,965.93,676 2854 93
Department of Health,CT Revenue Funds,07/04/2015,Agency PAMs,Shropshire CAMHS Team,PULSE,2791797,283.58,676 2854 93
Department of Health,CT Revenue Funds,07/04/2015,Agency PAMs,Shropshire CAMHS Team,PULSE,2791797,1417.88,676 2854 93
Department of Health,CT Revenue Funds,07/04/2015,Agency PAMs,Shropshire Child Comm Physiotherapy,RIG MEDICAL RECRUIT LTD,5074471,137.71,928 2047 24
Department of Health,CT Revenue Funds,07/04/2015,Agency PAMs,Shropshire Child Comm Physiotherapy,RIG MEDICAL RECRUIT LTD,5074471,688.56,928 2047 24
Department of Health,CT Revenue Funds,07/04/2015,Agency PAMs,Shropshire Child Comm Physiotherapy,RIG MEDICAL RECRUIT LTD,5074749,69.07,928 2047 24
Department of Health,CT Revenue Funds,07/04/2015,Agency PAMs,Shropshire Child Comm Physiotherapy,RIG MEDICAL RECRUIT LTD,5074749,345.36,928 2047 24
Department of Health,CT Revenue Funds,07/04/2015,Agency PAMs,ICS Central,LONDON TEACHING POOL LTD,532435,275.43,
Department of Health,CT Revenue Funds,07/04/2015,Agency PAMs,ICS Central,LONDON TEACHING POOL LTD,532435,1377.13,
Department of Health,CT Revenue Funds,07/04/2015,ANAES : Accessories & Equipment,ICS Central,NHS SUPPLY CHAIN,1015229915,-0.05,654 4347 29
Department of Health,CT Revenue Funds,07/04/2015,ANAES : Accessories & Equipment,Community Childrens Nurses,NHS SUPPLY CHAIN,1015229915,-0.01,654 4347 29
Department of Health,CT Revenue Funds,07/04/2015,ANAES : Accessories & Equipment,ICS Central,NHS SUPPLY CHAIN,1015229915,-0.01,654 4347 29
Department of Health,CT Revenue Funds,07/04/2015,ANAES : Accessories & Equipment,Bridgnorth Hospital Inpatient Ward,NHS SUPPLY CHAIN,1015229915,0.01,654 4347 29
Department of Health,CT Revenue Funds,07/04/2015,ANAES : Accessories & Equipment,ICS Central,NHS SUPPLY CHAIN,1015229915,0.01,654 4347 29
Department of Health,CT Revenue Funds,07/04/2015,ANAES : Accessories & Equipment,ICS Central,NHS SUPPLY CHAIN,1015229915,0.01,654 4347 29
Department of Health,CT Revenue Funds,07/04/2015,ANAES : Accessories & Equipment,ICS Central,NHS SUPPLY CHAIN,1015229915,0.01,654 4347 29
Department of Health,CT Revenue Funds,07/04/2015,ANAES : Accessories & Equipment,ICS Central,NHS SUPPLY CHAIN,1015229915,0.02,654 4347 29
Department of Health,CT Revenue Funds,07/04/2015,ANAES : Accessories & Equipment,Community Childrens Nurses,NHS SUPPLY CHAIN,1015229915,0.1,654 4347 29
Department of Health,CT Revenue Funds,07/04/2015,ANAES : Accessories & Equipment,ICS Central,NHS SUPPLY CHAIN,1015229915,0.33,654 4347 29
Department of Health,CT Revenue Funds,07/04/2015,ANAES : Accessories & Equipment,Community Childrens Nurses,NHS SUPPLY CHAIN,1015229915,0.51,654 4347 29
Department of Health,CT Revenue Funds,07/04/2015,ANAES : Accessories & Equipment,ICS Central,NHS SUPPLY CHAIN,1015229915,0.75,654 4347 29
Department of Health,CT Revenue Funds,07/04/2015,ANAES : Accessories & Equipment,ICS Central,NHS SUPPLY CHAIN,1015229915,0.75,654 4347 29
Department of Health,CT Revenue Funds,07/04/2015,ANAES : Accessories & Equipment,ICS Central,NHS SUPPLY CHAIN,1015229915,0.75,654 4347 29
Department of Health,CT Revenue Funds,07/04/2015,ANAES : Accessories & Equipment,Bridgnorth Hospital Inpatient Ward,NHS SUPPLY CHAIN,1015229915,1.01,654 4347 29
Department of Health,CT Revenue Funds,07/04/2015,ANAES : Accessories & Equipment,ICS Central,NHS SUPPLY CHAIN,1015229915,1.61,654 4347 29
Department of Health,CT Revenue Funds,07/04/2015,ANAES : Accessories & Equipment,ICS Central,NHS SUPPLY CHAIN,1015229915,3.76,654 4347 29
Department of Health,CT Revenue Funds,07/04/2015,ANAES : Accessories & Equipment,ICS Central,NHS SUPPLY CHAIN,1015229915,3.76,654 4347 29
Department of Health,CT Revenue Funds,07/04/2015,ANAES : Accessories & Equipment,ICS Central,NHS SUPPLY CHAIN,1015229915,3.76,654 4347 29
Department of Health,CT Revenue Funds,07/04/2015,ANAES : Accessories & Equipment,ICS Central,NHS SUPPLY CHAIN,1015229915,3.96,654 4347 29
Department of Health,CT Revenue Funds,07/04/2015,ANAES : Accessories & Equipment,DO NOT USE Telford & Wrekin Dental USE WM910,NHS SUPPLY CHAIN,1015229915,4.71,654 4347 29
Department of Health,CT Revenue Funds,07/04/2015,ANAES : Accessories & Equipment,Bridgnorth Hospital Inpatient Ward,NHS SUPPLY CHAIN,1015229915,5.04,654 4347 29
Department of Health,CT Revenue Funds,07/04/2015,ANAES : Accessories & Equipment,ICS Central,NHS SUPPLY CHAIN,1015229915,19.8,654 4347 29
Department of Health,CT Revenue Funds,07/04/2015,ANAES : Accessories & Equipment,Community Childrens Nurses,NHS SUPPLY CHAIN,1015229915,23.11,654 4347 29
Department of Health,CT Revenue Funds,07/04/2015,ANAES : Accessories & Equipment,DO NOT USE Telford & Wrekin Dental USE WM910,NHS SUPPLY CHAIN,1015229915,23.53,654 4347 29
Department of Health,CT Revenue Funds,07/04/2015,ANAES : Accessories & Equipment,Community Childrens Nurses,NHS SUPPLY CHAIN,1015229915,62.12,654 4347 29
Department of Health,CT Revenue Funds,07/04/2015,ANAES : Accessories & Equipment,Community Childrens Nurses,NHS SUPPLY CHAIN,1015229915,115.56,654 4347 29
Department of Health,CT Revenue Funds,07/04/2015,ANAES : Accessories & Equipment,Community Childrens Nurses,NHS SUPPLY CHAIN,1015229915,310.59,654 4347 29
Department of Health,CT Revenue Funds,07/04/2015,ANAES : Accessories & Equipment,DO NOT USE Telford & Wrekin Dental USE WM910,NHS SUPPLY CHAIN,1015233762,-0.06,654 4347 29
Department of Health,CT Revenue Funds,07/04/2015,ANAES : Accessories & Equipment,C Arms Dental Practice,NHS SUPPLY CHAIN,1015233762,-0.01,654 4347 29
Department of Health,CT Revenue Funds,07/04/2015,ANAES : Accessories & Equipment,DO NOT USE Telford & Wrekin Dental USE WM910,NHS SUPPLY CHAIN,1015233762,-0.01,654 4347 29
Department of Health,CT Revenue Funds,07/04/2015,ANAES : Accessories & Equipment,DO NOT USE Telford & Wrekin Dental USE WM910,NHS SUPPLY CHAIN,1015233762,0.01,654 4347 29
Department of Health,CT Revenue Funds,07/04/2015,ANAES : Accessories & Equipment,DO NOT USE Telford & Wrekin Dental USE WM910,NHS SUPPLY CHAIN,1015233762,0.03,654 4347 29
Department of Health,CT Revenue Funds,07/04/2015,ANAES : Accessories & Equipment,Community Childrens Nurses,NHS SUPPLY CHAIN,1015233762,0.08,654 4347 29
Department of Health,CT Revenue Funds,07/04/2015,ANAES : Accessories & Equipment,DO NOT USE Telford & Wrekin Dental USE WM910,NHS SUPPLY CHAIN,1015233762,0.1,654 4347 29
Department of Health,CT Revenue Funds,07/04/2015,ANAES : Accessories & Equipment,Community Childrens Nurses,NHS SUPPLY CHAIN,1015233762,0.4,654 4347 29
Department of Health,CT Revenue Funds,07/04/2015,ANAES : Accessories & Equipment,DO NOT USE Telford & Wrekin Dental USE WM910,NHS SUPPLY CHAIN,1015233762,0.48,654 4347 29
Department of Health,CT Revenue Funds,07/04/2015,ANAES : Accessories & Equipment,Ludlow Hospital Inpatient Wards,NHS SUPPLY CHAIN,1015233762,1.06,654 4347 29
Department of Health,CT Revenue Funds,07/04/2015,ANAES : Accessories & Equipment,Ludlow Hospital Inpatient Wards,NHS SUPPLY CHAIN,1015233762,1.06,654 4347 29
Department of Health,CT Revenue Funds,07/04/2015,ANAES : Accessories & Equipment,Ludlow Hospital Inpatient Wards,NHS SUPPLY CHAIN,1015233762,1.06,654 4347 29
Department of Health,CT Revenue Funds,07/04/2015,ANAES : Accessories & Equipment,DO NOT USE Telford & Wrekin Dental USE WM910,NHS SUPPLY CHAIN,1015233762,2.13,654 4347 29
Department of Health,CT Revenue Funds,07/04/2015,ANAES : Accessories & Equipment,C Arms Dental Practice,NHS SUPPLY CHAIN,1015233762,2.17,654 4347 29
Department of Health,CT Revenue Funds,07/04/2015,ANAES : Accessories & Equipment,C Arms Dental Practice,NHS SUPPLY CHAIN,1015233762,2.46,654 4347 29
Department of Health,CT Revenue Funds,07/04/2015,ANAES : Accessories & Equipment,DO NOT USE Telford & Wrekin Dental USE WM910,NHS SUPPLY CHAIN,1015233762,2.96,654 4347 29
Department of Health,CT Revenue Funds,07/04/2015,ANAES : Accessories & Equipment,DO NOT USE Telford & Wrekin Dental USE WM910,NHS SUPPLY CHAIN,1015233762,4.97,654 4347 29
Department of Health,CT Revenue Funds,07/04/2015,ANAES : Accessories & Equipment,Ludlow Hospital Inpatient Wards,NHS SUPPLY CHAIN,1015233762,5.29,654 4347 29
Department of Health,CT Revenue Funds,07/04/2015,ANAES : Accessories & Equipment,Ludlow Hospital Inpatient Wards,NHS SUPPLY CHAIN,1015233762,5.29,654 4347 29
Department of Health,CT Revenue Funds,07/04/2015,ANAES : Accessories & Equipment,Ludlow Hospital Inpatient Wards,NHS SUPPLY CHAIN,1015233762,5.29,654 4347 29
Department of Health,CT Revenue Funds,07/04/2015,ANAES : Accessories & Equipment,DO NOT USE Telford & Wrekin Dental USE WM910,NHS SUPPLY CHAIN,1015233762,8.11,654 4347 29
Department of Health,CT Revenue Funds,07/04/2015,ANAES : Accessories & Equipment,DO NOT USE Telford & Wrekin Dental USE WM910,NHS SUPPLY CHAIN,1015233762,10.65,654 4347 29
Department of Health,CT Revenue Funds,07/04/2015,ANAES : Accessories & Equipment,C Arms Dental Practice,NHS SUPPLY CHAIN,1015233762,10.84,654 4347 29
Department of Health,CT Revenue Funds,07/04/2015,ANAES : Accessories & Equipment,Community Childrens Nurses,NHS SUPPLY CHAIN,1015233762,11.98,654 4347 29
Department of Health,CT Revenue Funds,07/04/2015,ANAES : Accessories & Equipment,C Arms Dental Practice,NHS SUPPLY CHAIN,1015233762,12.32,654 4347 29
Department of Health,CT Revenue Funds,07/04/2015,ANAES : Accessories & Equipment,DO NOT USE Telford & Wrekin Dental USE WM910,NHS SUPPLY CHAIN,1015233762,14.8,654 4347 29
Department of Health,CT Revenue Funds,07/04/2015,ANAES : Accessories & Equipment,DO NOT USE Telford & Wrekin Dental USE WM910,NHS SUPPLY CHAIN,1015233762,24.85,654 4347 29
Department of Health,CT Revenue Funds,07/04/2015,ANAES : Accessories & Equipment,DO NOT USE Telford & Wrekin Dental USE WM910,NHS SUPPLY CHAIN,1015233762,40.56,654 4347 29
Department of Health,CT Revenue Funds,07/04/2015,ANAES : Accessories & Equipment,Community Childrens Nurses,NHS SUPPLY CHAIN,1015233762,48.72,654 4347 29
Department of Health,CT Revenue Funds,07/04/2015,ANAES : Accessories & Equipment,Community Childrens Nurses,NHS SUPPLY CHAIN,1015233762,59.89,654 4347 29
Department of Health,CT Revenue Funds,07/04/2015,ANAES : Accessories & Equipment,Community Childrens Nurses,NHS SUPPLY CHAIN,1015233762,243.6,654 4347 29
Department of Health,CT Revenue Funds,07/04/2015,ANAES : Accessories & Equipment,Whitchurch Hospital Minor Injuries Unit,NHS SUPPLY CHAIN,1015237441,-0.01,654 4347 29
Department of Health,CT Revenue Funds,07/04/2015,ANAES : Accessories & Equipment,Whitchurch Hospital Minor Injuries Unit,NHS SUPPLY CHAIN,1015237441,0.4,654 4347 29
Department of Health,CT Revenue Funds,07/04/2015,ANAES : Accessories & Equipment,Whitchurch Hospital Minor Injuries Unit,NHS SUPPLY CHAIN,1015237441,2.01,654 4347 29
Department of Health,CT Revenue Funds,07/04/2015,ANAES : Accessories & Equipment,South West Interdisciplinary Teams,NHS SUPPLY CHAIN,1015237441,14.18,654 4347 29
Department of Health,CT Revenue Funds,07/04/2015,ANAES : Accessories & Equipment,South West Interdisciplinary Teams,NHS SUPPLY CHAIN,1015237441,70.88,654 4347 29
Department of Health,CT Revenue Funds,07/04/2015,ANAES : Accessories & Equipment,Podiatry Services,FISHER & PAYKEL HEALTHCARE LTD,10256478,3.46,
Department of Health,CT Revenue Funds,07/04/2015,ANAES : Accessories & Equipment,Podiatry Services,FISHER & PAYKEL HEALTHCARE LTD,10256478,4,
Department of Health,CT Revenue Funds,07/04/2015,ANAES : Accessories & Equipment,Podiatry Services,FISHER & PAYKEL HEALTHCARE LTD,10256478,17.3,
Department of Health,CT Revenue Funds,07/04/2015,ANAES : Accessories & Equipment,Podiatry Services,FISHER & PAYKEL HEALTHCARE LTD,10256478,20,
Department of Health,CT Revenue Funds,07/04/2015,ANAES : Accessories & Equipment,Podiatry Services,FISHER & PAYKEL HEALTHCARE LTD,10256478,52.8,
Department of Health,CT Revenue Funds,07/04/2015,ANAES : Accessories & Equipment,Podiatry Services,FISHER & PAYKEL HEALTHCARE LTD,10256478,264,
Department of Health,CT Revenue Funds,07/04/2015,ANAES : Accessories & Equipment,Podiatry Services,FISHER & PAYKEL HEALTHCARE LTD,10256478,400,
Department of Health,CT Revenue Funds,07/04/2015,ANAES : Accessories & Equipment,Podiatry Services,FISHER & PAYKEL HEALTHCARE LTD,10256478,495,
Department of Health,CT Revenue Funds,07/04/2015,ANAES : Accessories & Equipment,Podiatry Services,FISHER & PAYKEL HEALTHCARE LTD,10256478,2000,
Department of Health,CT Revenue Funds,07/04/2015,ANAES : Accessories & Equipment,Podiatry Services,FISHER & PAYKEL HEALTHCARE LTD,10256478,2475,
Department of Health,CT Revenue Funds,07/04/2015,Analysers,Stoke Heath Prison Healthcare,NHS SUPPLY CHAIN,1015229915,0.22,654 4347 29
Department of Health,CT Revenue Funds,07/04/2015,Analysers,Stoke Heath Prison Healthcare,NHS SUPPLY CHAIN,1015229915,1.12,654 4347 29
Department of Health,CT Revenue Funds,07/04/2015,Analysers,Single Point of Referral,NHS SUPPLY CHAIN,1015233762,-0.03,654 4347 29
Department of Health,CT Revenue Funds,07/04/2015,Analysers,Single Point of Referral,NHS SUPPLY CHAIN,1015233762,-0.01,654 4347 29
Department of Health,CT Revenue Funds,07/04/2015,Analysers,Single Point of Referral,NHS SUPPLY CHAIN,1015233762,-0.01,654 4347 29
Department of Health,CT Revenue Funds,07/04/2015,Analysers,South West Interdisciplinary Teams,NHS SUPPLY CHAIN,1015233762,0.01,654 4347 29
Department of Health,CT Revenue Funds,07/04/2015,Analysers,Ludlow Hospital Inpatient Wards,NHS SUPPLY CHAIN,1015233762,0.22,654 4347 29
Department of Health,CT Revenue Funds,07/04/2015,Analysers,Single Point of Referral,NHS SUPPLY CHAIN,1015233762,0.45,654 4347 29
Department of Health,CT Revenue Funds,07/04/2015,Analysers,Ludlow Hospital Inpatient Wards,NHS SUPPLY CHAIN,1015233762,0.57,654 4347 29
Department of Health,CT Revenue Funds,07/04/2015,Analysers,Ludlow Hospital Inpatient Wards,NHS SUPPLY CHAIN,1015233762,0.87,654 4347 29
Department of Health,CT Revenue Funds,07/04/2015,Analysers,Ludlow Hospital Inpatient Wards,NHS SUPPLY CHAIN,1015233762,1.12,654 4347 29
Department of Health,CT Revenue Funds,07/04/2015,Analysers,South West Interdisciplinary Teams,NHS SUPPLY CHAIN,1015233762,1.8,654 4347 29
Department of Health,CT Revenue Funds,07/04/2015,Analysers,South West Interdisciplinary Teams,NHS SUPPLY CHAIN,1015233762,2.08,654 4347 29
Department of Health,CT Revenue Funds,07/04/2015,Analysers,Single Point of Referral,NHS SUPPLY CHAIN,1015233762,2.24,654 4347 29
Department of Health,CT Revenue Funds,07/04/2015,Analysers,Ludlow Hospital Inpatient Wards,NHS SUPPLY CHAIN,1015233762,2.85,654 4347 29
Department of Health,CT Revenue Funds,07/04/2015,Analysers,South West Interdisciplinary Teams,NHS SUPPLY CHAIN,1015233762,4.15,654 4347 29
Department of Health,CT Revenue Funds,07/04/2015,Analysers,Ludlow Hospital Inpatient Wards,NHS SUPPLY CHAIN,1015233762,4.33,654 4347 29
Department of Health,CT Revenue Funds,07/04/2015,Analysers,Single Point of Referral,NHS SUPPLY CHAIN,1015233762,8.74,654 4347 29
Department of Health,CT Revenue Funds,07/04/2015,Analysers,South West Interdisciplinary Teams,NHS SUPPLY CHAIN,1015233762,9.02,654 4347 29
Department of Health,CT Revenue Funds,07/04/2015,Analysers,South West Interdisciplinary Teams,NHS SUPPLY CHAIN,1015233762,10.38,654 4347 29
Department of Health,CT Revenue Funds,07/04/2015,Analysers,South West Interdisciplinary Teams,NHS SUPPLY CHAIN,1015233762,20.76,654 4347 29
Department of Health,CT Revenue Funds,07/04/2015,Analysers,Single Point of Referral,NHS SUPPLY CHAIN,1015233762,43.7,654 4347 29
Department of Health,CT Revenue Funds,07/04/2015,Bags Sacks,Bishops Castle Hospital Inpatient Ward,NHS SUPPLY CHAIN,1015229915,-0.03,654 4347 29
Department of Health,CT Revenue Funds,07/04/2015,Bags Sacks,Bishops Castle Hospital Domestics,NHS SUPPLY CHAIN,1015229915,-0.02,654 4347 29
Department of Health,CT Revenue Funds,07/04/2015,Bags Sacks,Bridgnorth Hospital Inpatient Ward,NHS SUPPLY CHAIN,1015229915,-0.02,654 4347 29
Department of Health,CT Revenue Funds,07/04/2015,Bags Sacks,Bishops Castle Hospital Inpatient Ward,NHS SUPPLY CHAIN,1015229915,-0.01,654 4347 29
Department of Health,CT Revenue Funds,07/04/2015,Bags Sacks,North East Shropshire Interdisciplinary Teams,NHS SUPPLY CHAIN,1015229915,0.01,654 4347 29
Department of Health,CT Revenue Funds,07/04/2015,Bags Sacks,Bridgnorth Hospital Hotel Services,NHS SUPPLY CHAIN,1015229915,0.01,654 4347 29
Department of Health,CT Revenue Funds,07/04/2015,Bags Sacks,Bishops Castle Hospital Inpatient Ward,NHS SUPPLY CHAIN,1015229915,0.01,654 4347 29
Department of Health,CT Revenue Funds,07/04/2015,Bags Sacks,M Drayton Dental Practice,NHS SUPPLY CHAIN,1015229915,0.01,654 4347 29
Department of Health,CT Revenue Funds,07/04/2015,Bags Sacks,Community Equipment Stores,NHS SUPPLY CHAIN,1015229915,0.01,654 4347 29
Department of Health,CT Revenue Funds,07/04/2015,Bags Sacks,Whitchurch Hospital Inpatient Ward,NHS SUPPLY CHAIN,1015229915,0.02,654 4347 29
Department of Health,CT Revenue Funds,07/04/2015,Bags Sacks,Whitchurch Hospital Hotel Services,NHS SUPPLY CHAIN,1015229915,0.02,654 4347 29
Department of Health,CT Revenue Funds,07/04/2015,Bags Sacks,Ludlow Hospital Hotel Services,NHS SUPPLY CHAIN,1015229915,0.02,654 4347 29
Department of Health,CT Revenue Funds,07/04/2015,Bags Sacks,Community Equipment Stores,NHS SUPPLY CHAIN,1015229915,0.07,654 4347 29
Department of Health,CT Revenue Funds,07/04/2015,Bags Sacks,Community Equipment Stores,NHS SUPPLY CHAIN,1015229915,0.24,654 4347 29
Department of Health,CT Revenue Funds,07/04/2015,Bags Sacks,Whitchurch Hospital Hotel Services,NHS SUPPLY CHAIN,1015229915,0.32,654 4347 29
Department of Health,CT Revenue Funds,07/04/2015,Bags Sacks,Immunisations and Vaccinations,NHS SUPPLY CHAIN,1015229915,0.39,654 4347 29
Department of Health,CT Revenue Funds,07/04/2015,Bags Sacks,Whitchurch Hospital Minor Injuries Unit,NHS SUPPLY CHAIN,1015229915,0.53,654 4347 29
Department of Health,CT Revenue Funds,07/04/2015,Bags Sacks,Community Childrens Nurses,NHS SUPPLY CHAIN,1015229915,0.7,654 4347 29
Department of Health,CT Revenue Funds,07/04/2015,Bags Sacks,South West Interdisciplinary Teams,NHS SUPPLY CHAIN,1015229915,0.76,654 4347 29
Department of Health,CT Revenue Funds,07/04/2015,Bags Sacks,Shrewsbury and Atcham DAART,NHS SUPPLY CHAIN,1015229915,0.78,654 4347 29
Department of Health,CT Revenue Funds,07/04/2015,Bags Sacks,South West Interdisciplinary Teams,NHS SUPPLY CHAIN,1015229915,0.8,654 4347 29
Department of Health,CT Revenue Funds,07/04/2015,Bags Sacks,M Drayton Dental Practice,NHS SUPPLY CHAIN,1015229915,1.14,654 4347 29
Department of Health,CT Revenue Funds,07/04/2015,Bags Sacks,Community Equipment Stores,NHS SUPPLY CHAIN,1015229915,1.21,654 4347 29
Department of Health,CT Revenue Funds,07/04/2015,Bags Sacks,Bishops Castle Hospital Domestics,NHS SUPPLY CHAIN,1015229915,1.3,654 4347 29
Department of Health,CT Revenue Funds,07/04/2015,Bags Sacks,North East Shropshire Interdisciplinary Teams,NHS SUPPLY CHAIN,1015229915,1.4,654 4347 29
Department of Health,CT Revenue Funds,07/04/2015,Bags Sacks,Ludlow Hospital Hotel Services,NHS SUPPLY CHAIN,1015229915,1.42,654 4347 29
Department of Health,CT Revenue Funds,07/04/2015,Bags Sacks,Whitchurch Hospital Hotel Services,NHS SUPPLY CHAIN,1015229915,1.58,654 4347 29
Department of Health,CT Revenue Funds,07/04/2015,Bags Sacks,Whitchurch Hospital Hotel Services,NHS SUPPLY CHAIN,1015229915,1.59,654 4347 29
Department of Health,CT Revenue Funds,07/04/2015,Bags Sacks,Bishops Castle Hospital Inpatient Ward,NHS SUPPLY CHAIN,1015229915,1.72,654 4347 29
Department of Health,CT Revenue Funds,07/04/2015,Bags Sacks,Immunisations and Vaccinations,NHS SUPPLY CHAIN,1015229915,1.93,654 4347 29
Department of Health,CT Revenue Funds,07/04/2015,Bags Sacks,Community Equipment Stores,NHS SUPPLY CHAIN,1015229915,2.19,654 4347 29
Department of Health,CT Revenue Funds,07/04/2015,Bags Sacks,Bishops Castle Hospital Inpatient Ward,NHS SUPPLY CHAIN,1015229915,2.27,654 4347 29
Department of Health,CT Revenue Funds,07/04/2015,Bags Sacks,North East Shropshire Interdisciplinary Teams,NHS SUPPLY CHAIN,1015229915,2.43,654 4347 29
Department of Health,CT Revenue Funds,07/04/2015,Bags Sacks,Whitchurch Hospital Minor Injuries Unit,NHS SUPPLY CHAIN,1015229915,2.67,654 4347 29
Department of Health,CT Revenue Funds,07/04/2015,Bags Sacks,Ludlow Hospital Inpatient Wards,NHS SUPPLY CHAIN,1015229915,2.78,654 4347 29
Department of Health,CT Revenue Funds,07/04/2015,Bags Sacks,Bridgnorth Hospital Hotel Services,NHS SUPPLY CHAIN,1015229915,2.82,654 4347 29
Department of Health,CT Revenue Funds,07/04/2015,Bags Sacks,Community Childrens Nurses,NHS SUPPLY CHAIN,1015229915,3.5,654 4347 29
Department of Health,CT Revenue Funds,07/04/2015,Bags Sacks,Bridgnorth Hospital Hotel Services,NHS SUPPLY CHAIN,1015229915,3.69,654 4347 29
Department of Health,CT Revenue Funds,07/04/2015,Bags Sacks,South West Interdisciplinary Teams,NHS SUPPLY CHAIN,1015229915,3.78,654 4347 29
Department of Health,CT Revenue Funds,07/04/2015,Bags Sacks,Shrewsbury and Atcham DAART,NHS SUPPLY CHAIN,1015229915,3.89,654 4347 29
Department of Health,CT Revenue Funds,07/04/2015,Bags Sacks,South West Interdisciplinary Teams,NHS SUPPLY CHAIN,1015229915,3.99,654 4347 29
Department of Health,CT Revenue Funds,07/04/2015,Bags Sacks,Bridgnorth Hospital Inpatient Ward,NHS SUPPLY CHAIN,1015229915,5.14,654 4347 29
Department of Health,CT Revenue Funds,07/04/2015,Bags Sacks,M Drayton Dental Practice,NHS SUPPLY CHAIN,1015229915,5.67,654 4347 29
Department of Health,CT Revenue Funds,07/04/2015,Bags Sacks,Whitchurch Hospital Inpatient Ward,NHS SUPPLY CHAIN,1015229915,6.03,654 4347 29
Department of Health,CT Revenue Funds,07/04/2015,Bags Sacks,Bishops Castle Hospital Domestics,NHS SUPPLY CHAIN,1015229915,6.52,654 4347 29
Department of Health,CT Revenue Funds,07/04/2015,Bags Sacks,North East Shropshire Interdisciplinary Teams,NHS SUPPLY CHAIN,1015229915,7,654 4347 29
Department of Health,CT Revenue Funds,07/04/2015,Bags Sacks,Ludlow Hospital Hotel Services,NHS SUPPLY CHAIN,1015229915,7.08,654 4347 29
Department of Health,CT Revenue Funds,07/04/2015,Bags Sacks,Whitchurch Hospital Hotel Services,NHS SUPPLY CHAIN,1015229915,7.9,654 4347 29
Department of Health,CT Revenue Funds,07/04/2015,Bags Sacks,Bishops Castle Hospital Inpatient Ward,NHS SUPPLY CHAIN,1015229915,8.58,654 4347 29
Department of Health,CT Revenue Funds,07/04/2015,Bags Sacks,Community Equipment Stores,NHS SUPPLY CHAIN,1015229915,10.92,654 4347 29
Department of Health,CT Revenue Funds,07/04/2015,Bags Sacks,Community Equipment Stores,NHS SUPPLY CHAIN,1015229915,10.92,654 4347 29
Department of Health,CT Revenue Funds,07/04/2015,Bags Sacks,Bishops Castle Hospital Inpatient Ward,NHS SUPPLY CHAIN,1015229915,11.34,654 4347 29
Department of Health,CT Revenue Funds,07/04/2015,Bags Sacks,North East Shropshire Interdisciplinary Teams,NHS SUPPLY CHAIN,1015229915,12.12,654 4347 29
Department of Health,CT Revenue Funds,07/04/2015,Bags Sacks,Ludlow Hospital Inpatient Wards,NHS SUPPLY CHAIN,1015229915,13.92,654 4347 29
Department of Health,CT Revenue Funds,07/04/2015,Bags Sacks,Bridgnorth Hospital Hotel Services,NHS SUPPLY CHAIN,1015229915,14.11,654 4347 29
Department of Health,CT Revenue Funds,07/04/2015,Bags Sacks,Bridgnorth Hospital Hotel Services,NHS SUPPLY CHAIN,1015229915,18.45,654 4347 29
Department of Health,CT Revenue Funds,07/04/2015,Bags Sacks,Bridgnorth Hospital Inpatient Ward,NHS SUPPLY CHAIN,1015229915,25.72,654 4347 29
Department of Health,CT Revenue Funds,07/04/2015,Bags Sacks,Whitchurch Hospital Inpatient Ward,NHS SUPPLY CHAIN,1015229915,30.15,654 4347 29
Department of Health,CT Revenue Funds,07/04/2015,Bags Sacks,Community Equipment Stores,NHS SUPPLY CHAIN,1015229915,54.6,654 4347 29
Department of Health,CT Revenue Funds,07/04/2015,Bags Sacks,Community Equipment Stores,NHS SUPPLY CHAIN,1015233762,-0.12,654 4347 29
Department of Health,CT Revenue Funds,07/04/2015,Bags Sacks,Whitchurch Hospital Hotel Services,NHS SUPPLY CHAIN,1015233762,-0.08,654 4347 29
Department of Health,CT Revenue Funds,07/04/2015,Bags Sacks,Bridgnorth Hospital Hotel Services,NHS SUPPLY CHAIN,1015233762,-0.05,654 4347 29
Department of Health,CT Revenue Funds,07/04/2015,Bags Sacks,Bishops Castle Hospital Domestics,NHS SUPPLY CHAIN,1015233762,-0.04,654 4347 29
Department of Health,CT Revenue Funds,07/04/2015,Bags Sacks,Whitchurch Hospital Hotel Services,NHS SUPPLY CHAIN,1015233762,-0.03,654 4347 29
Department of Health,CT Revenue Funds,07/04/2015,Bags Sacks,Community Nursing Team 1,NHS SUPPLY CHAIN,1015233762,-0.03,654 4347 29
Department of Health,CT Revenue Funds,07/04/2015,Bags Sacks,Community Equipment Stores,NHS SUPPLY CHAIN,1015233762,-0.02,654 4347 29
Department of Health,CT Revenue Funds,07/04/2015,Bags Sacks,Whitchurch Hospital Hotel Services,NHS SUPPLY CHAIN,1015233762,-0.02,654 4347 29
Department of Health,CT Revenue Funds,07/04/2015,Bags Sacks,Bridgnorth Hospital Hotel Services,NHS SUPPLY CHAIN,1015233762,-0.01,654 4347 29
Department of Health,CT Revenue Funds,07/04/2015,Bags Sacks,Community Nursing Team 1,NHS SUPPLY CHAIN,1015233762,-0.01,654 4347 29
Department of Health,CT Revenue Funds,07/04/2015,Bags Sacks,Bishops Castle Hospital Domestics,NHS SUPPLY CHAIN,1015233762,-0.01,654 4347 29
Department of Health,CT Revenue Funds,07/04/2015,Bags Sacks,Whitchurch Hospital Hotel Services,NHS SUPPLY CHAIN,1015233762,-0.01,654 4347 29
Department of Health,CT Revenue Funds,07/04/2015,Bags Sacks,Ludlow Hospital Inpatient Wards,NHS SUPPLY CHAIN,1015233762,0.01,654 4347 29
Department of Health,CT Revenue Funds,07/04/2015,Bags Sacks,Shrewsbury and Atcham North Interdisciplinary Teams,NHS SUPPLY CHAIN,1015233762,0.01,654 4347 29
Department of Health,CT Revenue Funds,07/04/2015,Bags Sacks,Whitchurch Hospital Catering,NHS SUPPLY CHAIN,1015233762,0.02,654 4347 29
Department of Health,CT Revenue Funds,07/04/2015,Bags Sacks,Shrewsbury and Atcham North Interdisciplinary Teams,NHS SUPPLY CHAIN,1015233762,0.02,654 4347 29
Department of Health,CT Revenue Funds,07/04/2015,Bags Sacks,Bridgnorth Hospital Hotel Services,NHS SUPPLY CHAIN,1015233762,0.02,654 4347 29
Department of Health,CT Revenue Funds,07/04/2015,Bags Sacks,Bridgnorth Hospital Hotel Services,NHS SUPPLY CHAIN,1015233762,0.12,654 4347 29
Department of Health,CT Revenue Funds,07/04/2015,Bags Sacks,Ludlow Hospital Inpatient Wards,NHS SUPPLY CHAIN,1015233762,0.16,654 4347 29
Department of Health,CT Revenue Funds,07/04/2015,Bags Sacks,Community Nursing Team 1,NHS SUPPLY CHAIN,1015233762,0.17,654 4347 29
Department of Health,CT Revenue Funds,07/04/2015,Bags Sacks,Podiatry Services,NHS SUPPLY CHAIN,1015233762,0.29,654 4347 29
Department of Health,CT Revenue Funds,07/04/2015,Bags Sacks,Podiatry Services,NHS SUPPLY CHAIN,1015233762,0.29,654 4347 29
Department of Health,CT Revenue Funds,07/04/2015,Bags Sacks,Ludlow Hospital Minor Injuries Unit,NHS SUPPLY CHAIN,1015233762,0.29,654 4347 29
Department of Health,CT Revenue Funds,07/04/2015,Bags Sacks,Bridgnorth Hospital Hotel Services,NHS SUPPLY CHAIN,1015233762,0.74,654 4347 29
Department of Health,CT Revenue Funds,07/04/2015,Bags Sacks,Ludlow Hospital Inpatient Wards,NHS SUPPLY CHAIN,1015233762,0.8,654 4347 29
Department of Health,CT Revenue Funds,07/04/2015,Bags Sacks,Ludlow Hospital Inpatient Wards,NHS SUPPLY CHAIN,1015233762,0.8,654 4347 29
Department of Health,CT Revenue Funds,07/04/2015,Bags Sacks,Community Nursing Team 1,NHS SUPPLY CHAIN,1015233762,0.85,654 4347 29
Department of Health,CT Revenue Funds,07/04/2015,Bags Sacks,South West Interdisciplinary Teams,NHS SUPPLY CHAIN,1015233762,0.87,654 4347 29
Department of Health,CT Revenue Funds,07/04/2015,Bags Sacks,Ludlow Hospital Inpatient Wards,NHS SUPPLY CHAIN,1015233762,0.96,654 4347 29
Department of Health,CT Revenue Funds,07/04/2015,Bags Sacks,Ludlow Hospital Inpatient Wards,NHS SUPPLY CHAIN,1015233762,1.28,654 4347 29
Department of Health,CT Revenue Funds,07/04/2015,Bags Sacks,Podiatry Services,NHS SUPPLY CHAIN,1015233762,1.43,654 4347 29
Department of Health,CT Revenue Funds,07/04/2015,Bags Sacks,Podiatry Services,NHS SUPPLY CHAIN,1015233762,1.43,654 4347 29
Department of Health,CT Revenue Funds,07/04/2015,Bags Sacks,Ludlow Hospital Minor Injuries Unit,NHS SUPPLY CHAIN,1015233762,1.43,654 4347 29
Department of Health,CT Revenue Funds,07/04/2015,Bags Sacks,Ludlow Hospital Inpatient Wards,NHS SUPPLY CHAIN,1015233762,2.27,654 4347 29
Department of Health,CT Revenue Funds,07/04/2015,Bags Sacks,Shrewsbury and Atcham North Interdisciplinary Teams,NHS SUPPLY CHAIN,1015233762,2.61,654 4347 29
Department of Health,CT Revenue Funds,07/04/2015,Bags Sacks,Bishops Castle Hospital Domestics,NHS SUPPLY CHAIN,1015233762,2.61,654 4347 29
Department of Health,CT Revenue Funds,07/04/2015,Bags Sacks,Shrewsbury and Atcham North Interdisciplinary Teams,NHS SUPPLY CHAIN,1015233762,2.73,654 4347 29
Department of Health,CT Revenue Funds,07/04/2015,Bags Sacks,Whitchurch Hospital Hotel Services,NHS SUPPLY CHAIN,1015233762,2.74,654 4347 29
Department of Health,CT Revenue Funds,07/04/2015,Bags Sacks,Community Nursing Team 1,NHS SUPPLY CHAIN,1015233762,3.3,654 4347 29
Department of Health,CT Revenue Funds,07/04/2015,Bags Sacks,Community Equipment Stores,NHS SUPPLY CHAIN,1015233762,3.5,654 4347 29
Department of Health,CT Revenue Funds,07/04/2015,Bags Sacks,Whitchurch Hospital Hotel Services,NHS SUPPLY CHAIN,1015233762,3.6,654 4347 29
Department of Health,CT Revenue Funds,07/04/2015,Bags Sacks,Bridgnorth Hospital Hotel Services,NHS SUPPLY CHAIN,1015233762,3.66,654 4347 29
Department of Health,CT Revenue Funds,07/04/2015,Bags Sacks,Bridgnorth Hospital Hotel Services,NHS SUPPLY CHAIN,1015233762,3.66,654 4347 29
Department of Health,CT Revenue Funds,07/04/2015,Bags Sacks,Ludlow Hospital Inpatient Wards,NHS SUPPLY CHAIN,1015233762,3.99,654 4347 29
Department of Health,CT Revenue Funds,07/04/2015,Bags Sacks,Whitchurch Hospital Catering,NHS SUPPLY CHAIN,1015233762,4.06,654 4347 29
Department of Health,CT Revenue Funds,07/04/2015,Bags Sacks,South West Interdisciplinary Teams,NHS SUPPLY CHAIN,1015233762,4.34,654 4347 29
Department of Health,CT Revenue Funds,07/04/2015,Bags Sacks,Ludlow Hospital Inpatient Wards,NHS SUPPLY CHAIN,1015233762,4.78,654 4347 29
Department of Health,CT Revenue Funds,07/04/2015,Bags Sacks,Community Nursing Team 1,NHS SUPPLY CHAIN,1015233762,4.96,654 4347 29
Department of Health,CT Revenue Funds,07/04/2015,Bags Sacks,Whitchurch Hospital Administration,NHS SUPPLY CHAIN,1015233762,5.83,654 4347 29
Department of Health,CT Revenue Funds,07/04/2015,Bags Sacks,Ludlow Hospital Inpatient Wards,NHS SUPPLY CHAIN,1015233762,6.4,654 4347 29
Department of Health,CT Revenue Funds,07/04/2015,Bags Sacks,Whitchurch Hospital Hotel Services,NHS SUPPLY CHAIN,1015233762,8.74,654 4347 29
Department of Health,CT Revenue Funds,07/04/2015,Bags Sacks,Ludlow Hospital Inpatient Wards,NHS SUPPLY CHAIN,1015233762,11.34,654 4347 29
Department of Health,CT Revenue Funds,07/04/2015,Bags Sacks,Shrewsbury and Atcham North Interdisciplinary Teams,NHS SUPPLY CHAIN,1015233762,13.02,654 4347 29
Department of Health,CT Revenue Funds,07/04/2015,Bags Sacks,Bishops Castle Hospital Domestics,NHS SUPPLY CHAIN,1015233762,13.04,654 4347 29
Department of Health,CT Revenue Funds,07/04/2015,Bags Sacks,Shrewsbury and Atcham North Interdisciplinary Teams,NHS SUPPLY CHAIN,1015233762,13.65,654 4347 29
Department of Health,CT Revenue Funds,07/04/2015,Bags Sacks,Whitchurch Hospital Hotel Services,NHS SUPPLY CHAIN,1015233762,13.7,654 4347 29
Department of Health,CT Revenue Funds,07/04/2015,Bags Sacks,Community Nursing Team 1,NHS SUPPLY CHAIN,1015233762,16.52,654 4347 29
Department of Health,CT Revenue Funds,07/04/2015,Bags Sacks,Community Equipment Stores,NHS SUPPLY CHAIN,1015233762,17.5,654 4347 29
Department of Health,CT Revenue Funds,07/04/2015,Bags Sacks,Whitchurch Hospital Hotel Services,NHS SUPPLY CHAIN,1015233762,18,654 4347 29
Department of Health,CT Revenue Funds,07/04/2015,Bags Sacks,Bridgnorth Hospital Hotel Services,NHS SUPPLY CHAIN,1015233762,18.3,654 4347 29
Department of Health,CT Revenue Funds,07/04/2015,Bags Sacks,Community Equipment Stores,NHS SUPPLY CHAIN,1015233762,19.82,654 4347 29
Department of Health,CT Revenue Funds,07/04/2015,Bags Sacks,Whitchurch Hospital Catering,NHS SUPPLY CHAIN,1015233762,20.28,654 4347 29
Department of Health,CT Revenue Funds,07/04/2015,Bags Sacks,Community Nursing Team 1,NHS SUPPLY CHAIN,1015233762,24.78,654 4347 29
Department of Health,CT Revenue Funds,07/04/2015,Bags Sacks,Whitchurch Hospital Administration,NHS SUPPLY CHAIN,1015233762,29.17,654 4347 29
Department of Health,CT Revenue Funds,07/04/2015,Bags Sacks,Whitchurch Hospital Hotel Services,NHS SUPPLY CHAIN,1015233762,43.68,654 4347 29
Department of Health,CT Revenue Funds,07/04/2015,Bags Sacks,Community Equipment Stores,NHS SUPPLY CHAIN,1015233762,99.12,654 4347 29
Department of Health,CT Revenue Funds,07/04/2015,Bags Sacks,Whitchurch Hospital Inpatient Ward,NHS SUPPLY CHAIN,1015237441,-0.05,654 4347 29
Department of Health,CT Revenue Funds,07/04/2015,Bags Sacks,Whitchurch Hospital Inpatient Ward,NHS SUPPLY CHAIN,1015237441,-0.03,654 4347 29
Department of Health,CT Revenue Funds,07/04/2015,Bags Sacks,Whitchurch Hospital Inpatient Ward,NHS SUPPLY CHAIN,1015237441,-0.01,654 4347 29
Department of Health,CT Revenue Funds,07/04/2015,Bags Sacks,Whitchurch Hospital Inpatient Ward,NHS SUPPLY CHAIN,1015237441,-0.01,654 4347 29
Department of Health,CT Revenue Funds,07/04/2015,Bags Sacks,Whitchurch Hospital Inpatient Ward,NHS SUPPLY CHAIN,1015237441,0.02,654 4347 29
Department of Health,CT Revenue Funds,07/04/2015,Bags Sacks,Whitchurch Hospital Inpatient Ward,NHS SUPPLY CHAIN,1015237441,2.74,654 4347 29
Department of Health,CT Revenue Funds,07/04/2015,Bags Sacks,Whitchurch Hospital Inpatient Ward,NHS SUPPLY CHAIN,1015237441,3.3,654 4347 29
Department of Health,CT Revenue Funds,07/04/2015,Bags Sacks,Whitchurch Hospital Inpatient Ward,NHS SUPPLY CHAIN,1015237441,3.66,654 4347 29
Department of Health,CT Revenue Funds,07/04/2015,Bags Sacks,Whitchurch Hospital Inpatient Ward,NHS SUPPLY CHAIN,1015237441,7.24,654 4347 29
Department of Health,CT Revenue Funds,07/04/2015,Bags Sacks,Whitchurch Hospital Inpatient Ward,NHS SUPPLY CHAIN,1015237441,13.7,654 4347 29
Department of Health,CT Revenue Funds,07/04/2015,Bags Sacks,Whitchurch Hospital Inpatient Ward,NHS SUPPLY CHAIN,1015237441,16.5,654 4347 29
Department of Health,CT Revenue Funds,07/04/2015,Bags Sacks,Whitchurch Hospital Inpatient Ward,NHS SUPPLY CHAIN,1015237441,18.3,654 4347 29
Department of Health,CT Revenue Funds,07/04/2015,Bags Sacks,Whitchurch Hospital Inpatient Ward,NHS SUPPLY CHAIN,1015237441,36.18,654 4347 29
Department of Health,CT Revenue Funds,07/04/2015,Bags Sacks,Community Equipment Stores,KEY INDUSTRIAL EQUIPMENT LTD,I0579599,152,
Department of Health,CT Revenue Funds,07/04/2015,Bags Sacks,Community Equipment Stores,KEY INDUSTRIAL EQUIPMENT LTD,I0579599,760,
Department of Health,CT Revenue Funds,07/04/2015,Bed Accessories,Community Equipment Stores,OTS LTD,0000007820,155.94,
Department of Health,CT Revenue Funds,07/04/2015,Bed Accessories,Community Equipment Stores,OTS LTD,0000007820,155.94,
Department of Health,CT Revenue Funds,07/04/2015,Bed Accessories,Community Equipment Stores,OTS LTD,0000007820,779.7,
Department of Health,CT Revenue Funds,07/04/2015,Bed Accessories,Community Equipment Stores,OTS LTD,0000007820,779.7,
Department of Health,CT Revenue Funds,07/04/2015,Bed Accessories,Community Equipment Stores,MOUNTWAY LTD,0000021807,1.78,
Department of Health,CT Revenue Funds,07/04/2015,Bed Accessories,Community Equipment Stores,MOUNTWAY LTD,0000021807,8.9,
Department of Health,CT Revenue Funds,07/04/2015,Bed Accessories,Community Equipment Stores,MOUNTWAY LTD,0000021807,89,
Department of Health,CT Revenue Funds,07/04/2015,Bed Accessories,Community Equipment Stores,MOUNTWAY LTD,0000021807,345,
Department of Health,CT Revenue Funds,07/04/2015,Bed Accessories,Community Equipment Stores,MOUNTWAY LTD,0000021807,445,
Department of Health,CT Revenue Funds,07/04/2015,Bed Accessories,Community Equipment Stores,MOUNTWAY LTD,0000021807,1725,
Department of Health,CT Revenue Funds,07/04/2015,Bed Accessories,Community Equipment Stores,NHS SUPPLY CHAIN,1015233762,-0.02,654 4347 29
Department of Health,CT Revenue Funds,07/04/2015,Bed Accessories,Community Equipment Stores,NHS SUPPLY CHAIN,1015233762,185.58,654 4347 29
Department of Health,CT Revenue Funds,07/04/2015,Bed Accessories,Community Equipment Stores,NHS SUPPLY CHAIN,1015233762,927.9,654 4347 29
Department of Health,CT Revenue Funds,07/04/2015,Bed Accessories,Community Equipment Stores,HOSPITAL DIRECT (MARKETING) LTD,48563,2.99,752 7823 12
Department of Health,CT Revenue Funds,07/04/2015,Bed Accessories,Community Equipment Stores,HOSPITAL DIRECT (MARKETING) LTD,48563,14.95,752 7823 12
Department of Health,CT Revenue Funds,07/04/2015,Bed Accessories,Community Equipment Stores,HANDICARE LTD,SIN405197,64,
Department of Health,CT Revenue Funds,07/04/2015,Bed Accessories,Community Equipment Stores,HANDICARE LTD,SIN405197,320,
Department of Health,CT Revenue Funds,07/04/2015,Bed Accessories,Community Equipment Stores,HANDICARE LTD,SIN405362,57.68,
Department of Health,CT Revenue Funds,07/04/2015,Bed Accessories,Community Equipment Stores,HANDICARE LTD,SIN405362,288.4,
Department of Health,CT Revenue Funds,07/04/2015,Bedding & Linen : Disposable,Ludlow Hospital Inpatient Wards,NHS SUPPLY CHAIN,1015237441,0.15,654 4347 29
Department of Health,CT Revenue Funds,07/04/2015,Bedding & Linen : Disposable,Ludlow Hospital Inpatient Wards,NHS SUPPLY CHAIN,1015237441,0.77,654 4347 29
Department of Health,CT Revenue Funds,07/04/2015,Bedding & Linen : Non-Disposable,Continence Services,NHS SUPPLY CHAIN,1015229915,-0.8,654 4347 29
Department of Health,CT Revenue Funds,07/04/2015,Bedding & Linen : Non-Disposable,Continence Services,NHS SUPPLY CHAIN,1015229915,-0.16,654 4347 29
Department of Health,CT Revenue Funds,07/04/2015,Bedding & Linen : Non-Disposable,Whitchurch Hospital Inpatient Ward,NHS SUPPLY CHAIN,1015229915,-0.01,654 4347 29
Department of Health,CT Revenue Funds,07/04/2015,Bedding & Linen : Non-Disposable,Bishops Castle Hospital Inpatient Ward,NHS SUPPLY CHAIN,1015229915,-0.01,654 4347 29
Department of Health,CT Revenue Funds,07/04/2015,Bedding & Linen : Non-Disposable,Whitchurch Hospital Inpatient Ward,NHS SUPPLY CHAIN,1015229915,0.01,654 4347 29
Department of Health,CT Revenue Funds,07/04/2015,Bedding & Linen : Non-Disposable,Whitchurch Hospital Inpatient Ward,NHS SUPPLY CHAIN,1015229915,0.01,654 4347 29
Department of Health,CT Revenue Funds,07/04/2015,Bedding & Linen : Non-Disposable,Bridgnorth Hospital Inpatient Ward,NHS SUPPLY CHAIN,1015229915,0.01,654 4347 29
Department of Health,CT Revenue Funds,07/04/2015,Bedding & Linen : Non-Disposable,Bridgnorth Hospital Inpatient Ward,NHS SUPPLY CHAIN,1015229915,0.01,654 4347 29
Department of Health,CT Revenue Funds,07/04/2015,Bedding & Linen : Non-Disposable,Bishops Castle Hospital Inpatient Ward,NHS SUPPLY CHAIN,1015229915,0.01,654 4347 29
Department of Health,CT Revenue Funds,07/04/2015,Bedding & Linen : Non-Disposable,Continence Services,NHS SUPPLY CHAIN,1015229915,0.01,654 4347 29
Department of Health,CT Revenue Funds,07/04/2015,Bedding & Linen : Non-Disposable,Continence Services,NHS SUPPLY CHAIN,1015229915,0.03,654 4347 29
Department of Health,CT Revenue Funds,07/04/2015,Bedding & Linen : Non-Disposable,Whitchurch Hospital Inpatient Ward,NHS SUPPLY CHAIN,1015229915,0.06,654 4347 29
Department of Health,CT Revenue Funds,07/04/2015,Bedding & Linen : Non-Disposable,Bridgnorth Hospital Inpatient Ward,NHS SUPPLY CHAIN,1015229915,0.06,654 4347 29
Department of Health,CT Revenue Funds,07/04/2015,Bedding & Linen : Non-Disposable,Continence Services,NHS SUPPLY CHAIN,1015229915,0.07,654 4347 29
Department of Health,CT Revenue Funds,07/04/2015,Bedding & Linen : Non-Disposable,Continence Services,NHS SUPPLY CHAIN,1015229915,0.13,654 4347 29
Department of Health,CT Revenue Funds,07/04/2015,Bedding & Linen : Non-Disposable,Whitchurch Hospital Inpatient Ward,NHS SUPPLY CHAIN,1015229915,0.29,654 4347 29
Department of Health,CT Revenue Funds,07/04/2015,Bedding & Linen : Non-Disposable,Bridgnorth Hospital Inpatient Ward,NHS SUPPLY CHAIN,1015229915,0.29,654 4347 29
Department of Health,CT Revenue Funds,07/04/2015,Bedding & Linen : Non-Disposable,Whitchurch Hospital Inpatient Ward,NHS SUPPLY CHAIN,1015229915,1.95,654 4347 29
Department of Health,CT Revenue Funds,07/04/2015,Bedding & Linen : Non-Disposable,Bridgnorth Hospital Inpatient Ward,NHS SUPPLY CHAIN,1015229915,1.95,654 4347 29
Department of Health,CT Revenue Funds,07/04/2015,Bedding & Linen : Non-Disposable,Shrewsbury and Atcham DAART,NHS SUPPLY CHAIN,1015229915,2.24,654 4347 29
Department of Health,CT Revenue Funds,07/04/2015,Bedding & Linen : Non-Disposable,Bridgnorth Hospital Inpatient Ward,NHS SUPPLY CHAIN,1015229915,2.3,654 4347 29
Department of Health,CT Revenue Funds,07/04/2015,Bedding & Linen : Non-Disposable,Bishops Castle Hospital Inpatient Ward,NHS SUPPLY CHAIN,1015229915,2.73,654 4347 29
Department of Health,CT Revenue Funds,07/04/2015,Bedding & Linen : Non-Disposable,Bishops Castle Hospital Inpatient Ward,NHS SUPPLY CHAIN,1015229915,3.02,654 4347 29
Department of Health,CT Revenue Funds,07/04/2015,Bedding & Linen : Non-Disposable,Whitchurch Hospital Inpatient Ward,NHS SUPPLY CHAIN,1015229915,3.91,654 4347 29
Department of Health,CT Revenue Funds,07/04/2015,Bedding & Linen : Non-Disposable,Bridgnorth Hospital Inpatient Ward,NHS SUPPLY CHAIN,1015229915,3.91,654 4347 29
Department of Health,CT Revenue Funds,07/04/2015,Bedding & Linen : Non-Disposable,Whitchurch Hospital Inpatient Ward,NHS SUPPLY CHAIN,1015229915,4.09,654 4347 29
Department of Health,CT Revenue Funds,07/04/2015,Bedding & Linen : Non-Disposable,Whitchurch Hospital Inpatient Ward,NHS SUPPLY CHAIN,1015229915,4.91,654 4347 29
Department of Health,CT Revenue Funds,07/04/2015,Bedding & Linen : Non-Disposable,Whitchurch Hospital Inpatient Ward,NHS SUPPLY CHAIN,1015229915,9.78,654 4347 29
Department of Health,CT Revenue Funds,07/04/2015,Bedding & Linen : Non-Disposable,Bridgnorth Hospital Inpatient Ward,NHS SUPPLY CHAIN,1015229915,9.78,654 4347 29
Department of Health,CT Revenue Funds,07/04/2015,Bedding & Linen : Non-Disposable,Shrewsbury and Atcham DAART,NHS SUPPLY CHAIN,1015229915,11.2,654 4347 29
Department of Health,CT Revenue Funds,07/04/2015,Bedding & Linen : Non-Disposable,Bridgnorth Hospital Inpatient Ward,NHS SUPPLY CHAIN,1015229915,11.49,654 4347 29
Department of Health,CT Revenue Funds,07/04/2015,Bedding & Linen : Non-Disposable,Bishops Castle Hospital Inpatient Ward,NHS SUPPLY CHAIN,1015229915,13.64,654 4347 29
Department of Health,CT Revenue Funds,07/04/2015,Bedding & Linen : Non-Disposable,Bishops Castle Hospital Inpatient Ward,NHS SUPPLY CHAIN,1015229915,15.09,654 4347 29
Department of Health,CT Revenue Funds,07/04/2015,Bedding & Linen : Non-Disposable,Whitchurch Hospital Inpatient Ward,NHS SUPPLY CHAIN,1015229915,19.56,654 4347 29
Department of Health,CT Revenue Funds,07/04/2015,Bedding & Linen : Non-Disposable,Bridgnorth Hospital Inpatient Ward,NHS SUPPLY CHAIN,1015229915,19.56,654 4347 29
Department of Health,CT Revenue Funds,07/04/2015,Bedding & Linen : Non-Disposable,Whitchurch Hospital Inpatient Ward,NHS SUPPLY CHAIN,1015229915,20.46,654 4347 29
Department of Health,CT Revenue Funds,07/04/2015,Bedding & Linen : Non-Disposable,Whitchurch Hospital Inpatient Ward,NHS SUPPLY CHAIN,1015229915,24.52,654 4347 29
Department of Health,CT Revenue Funds,07/04/2015,Bedding & Linen : Non-Disposable,Continence Services,NHS SUPPLY CHAIN,1015229915,70.32,654 4347 29
Department of Health,CT Revenue Funds,07/04/2015,Bedding & Linen : Non-Disposable,Continence Services,NHS SUPPLY CHAIN,1015229915,78.24,654 4347 29
Department of Health,CT Revenue Funds,07/04/2015,Bedding & Linen : Non-Disposable,Continence Services,NHS SUPPLY CHAIN,1015229915,327.36,654 4347 29
Department of Health,CT Revenue Funds,07/04/2015,Bedding & Linen : Non-Disposable,Continence Services,NHS SUPPLY CHAIN,1015229915,351.6,654 4347 29
Department of Health,CT Revenue Funds,07/04/2015,Bedding & Linen : Non-Disposable,Continence Services,NHS SUPPLY CHAIN,1015229915,391.2,654 4347 29
Department of Health,CT Revenue Funds,07/04/2015,Bedding & Linen : Non-Disposable,Continence Services,NHS SUPPLY CHAIN,1015229915,1636.8,654 4347 29
Department of Health,CT Revenue Funds,07/04/2015,Bedding & Linen : Non-Disposable,Continence Services,NHS SUPPLY CHAIN,1015233762,-0.3,654 4347 29
Department of Health,CT Revenue Funds,07/04/2015,Bedding & Linen : Non-Disposable,Continence Services,NHS SUPPLY CHAIN,1015233762,-0.06,654 4347 29
Department of Health,CT Revenue Funds,07/04/2015,Bedding & Linen : Non-Disposable,Ludlow Hospital Inpatient Wards,NHS SUPPLY CHAIN,1015233762,-0.02,654 4347 29
Department of Health,CT Revenue Funds,07/04/2015,Bedding & Linen : Non-Disposable,Bridgnorth Hospital Inpatient Ward,NHS SUPPLY CHAIN,1015233762,0.01,654 4347 29
Department of Health,CT Revenue Funds,07/04/2015,Bedding & Linen : Non-Disposable,Ludlow Hospital Inpatient Wards,NHS SUPPLY CHAIN,1015233762,0.01,654 4347 29
Department of Health,CT Revenue Funds,07/04/2015,Bedding & Linen : Non-Disposable,Bishops Castle Hospital Inpatient Ward,NHS SUPPLY CHAIN,1015233762,0.01,654 4347 29
Department of Health,CT Revenue Funds,07/04/2015,Bedding & Linen : Non-Disposable,Bridgnorth Hospital Inpatient Ward,NHS SUPPLY CHAIN,1015233762,0.06,654 4347 29
Department of Health,CT Revenue Funds,07/04/2015,Bedding & Linen : Non-Disposable,Bridgnorth Hospital Inpatient Ward,NHS SUPPLY CHAIN,1015233762,0.29,654 4347 29
Department of Health,CT Revenue Funds,07/04/2015,Bedding & Linen : Non-Disposable,Whitchurch Hospital Minor Injuries Unit,NHS SUPPLY CHAIN,1015233762,1.35,654 4347 29
Department of Health,CT Revenue Funds,07/04/2015,Bedding & Linen : Non-Disposable,Bridgnorth Hospital Inpatient Ward,NHS SUPPLY CHAIN,1015233762,1.95,654 4347 29
Department of Health,CT Revenue Funds,07/04/2015,Bedding & Linen : Non-Disposable,Bishops Castle Hospital Inpatient Ward,NHS SUPPLY CHAIN,1015233762,2.01,654 4347 29
Department of Health,CT Revenue Funds,07/04/2015,Bedding & Linen : Non-Disposable,Bishops Castle Hospital Inpatient Ward,NHS SUPPLY CHAIN,1015233762,2.05,654 4347 29
Department of Health,CT Revenue Funds,07/04/2015,Bedding & Linen : Non-Disposable,Bridgnorth Hospital Inpatient Ward,NHS SUPPLY CHAIN,1015233762,3.91,654 4347 29
Department of Health,CT Revenue Funds,07/04/2015,Bedding & Linen : Non-Disposable,Whitchurch Hospital Minor Injuries Unit,NHS SUPPLY CHAIN,1015233762,6.75,654 4347 29
Department of Health,CT Revenue Funds,07/04/2015,Bedding & Linen : Non-Disposable,Ludlow Hospital Inpatient Wards,NHS SUPPLY CHAIN,1015233762,7.83,654 4347 29
Department of Health,CT Revenue Funds,07/04/2015,Bedding & Linen : Non-Disposable,Ludlow Hospital Inpatient Wards,NHS SUPPLY CHAIN,1015233762,8.18,654 4347 29
Department of Health,CT Revenue Funds,07/04/2015,Bedding & Linen : Non-Disposable,Bridgnorth Hospital Inpatient Ward,NHS SUPPLY CHAIN,1015233762,9.78,654 4347 29
Department of Health,CT Revenue Funds,07/04/2015,Bedding & Linen : Non-Disposable,Bishops Castle Hospital Inpatient Ward,NHS SUPPLY CHAIN,1015233762,10.06,654 4347 29
Department of Health,CT Revenue Funds,07/04/2015,Bedding & Linen : Non-Disposable,Bishops Castle Hospital Inpatient Ward,NHS SUPPLY CHAIN,1015233762,10.23,654 4347 29
Department of Health,CT Revenue Funds,07/04/2015,Bedding & Linen : Non-Disposable,Bridgnorth Hospital Inpatient Ward,NHS SUPPLY CHAIN,1015233762,19.56,654 4347 29
Department of Health,CT Revenue Funds,07/04/2015,Bedding & Linen : Non-Disposable,Ludlow Hospital Inpatient Wards,NHS SUPPLY CHAIN,1015233762,39.12,654 4347 29
Department of Health,CT Revenue Funds,07/04/2015,Bedding & Linen : Non-Disposable,Ludlow Hospital Inpatient Wards,NHS SUPPLY CHAIN,1015233762,40.92,654 4347 29
Department of Health,CT Revenue Funds,07/04/2015,Bedding & Linen : Non-Disposable,Continence Services,NHS SUPPLY CHAIN,1015233762,122.76,654 4347 29
Department of Health,CT Revenue Funds,07/04/2015,Bedding & Linen : Non-Disposable,Continence Services,NHS SUPPLY CHAIN,1015233762,613.8,654 4347 29
Department of Health,CT Revenue Funds,07/04/2015,Bedding & Linen : Non-Disposable,Whitchurch Hospital Inpatient Ward,NHS SUPPLY CHAIN,1015237441,0.01,654 4347 29
Department of Health,CT Revenue Funds,07/04/2015,Bedding & Linen : Non-Disposable,Whitchurch Hospital Inpatient Ward,NHS SUPPLY CHAIN,1015237441,0.02,654 4347 29
Department of Health,CT Revenue Funds,07/04/2015,Bedding & Linen : Non-Disposable,Whitchurch Hospital Inpatient Ward,NHS SUPPLY CHAIN,1015237441,4.91,654 4347 29
Department of Health,CT Revenue Funds,07/04/2015,Bedding & Linen : Non-Disposable,Whitchurch Hospital Inpatient Ward,NHS SUPPLY CHAIN,1015237441,11.74,654 4347 29
Department of Health,CT Revenue Funds,07/04/2015,Bedding & Linen : Non-Disposable,Whitchurch Hospital Inpatient Ward,NHS SUPPLY CHAIN,1015237441,24.52,654 4347 29
Department of Health,CT Revenue Funds,07/04/2015,Bedding & Linen : Non-Disposable,Whitchurch Hospital Inpatient Ward,NHS SUPPLY CHAIN,1015237441,58.68,654 4347 29
Department of Health,CT Revenue Funds,07/04/2015,Beds,Community Equipment Stores,SIDHIL LTD,568313,1070,461 1277 66
Department of Health,CT Revenue Funds,07/04/2015,Beds,Community Equipment Stores,SIDHIL LTD,568313,5350,461 1277 66
Department of Health,CT Revenue Funds,07/04/2015,Beverages,Ludlow Hospital Catering,NHS SUPPLY CHAIN,1015229915,7.32,654 4347 29
Department of Health,CT Revenue Funds,07/04/2015,Beverages,Ludlow Hospital Catering,NHS SUPPLY CHAIN,1015229915,16.9,654 4347 29
Department of Health,CT Revenue Funds,07/04/2015,Beverages,Bridgnorth Hospital Theatre,NHS SUPPLY CHAIN,1015233762,1.39,654 4347 29
Department of Health,CT Revenue Funds,07/04/2015,Beverages,Ludlow Hospital Catering,NHS SUPPLY CHAIN,1015233762,8.45,654 4347 29
Department of Health,CT Revenue Funds,07/04/2015,Beverages,Chairman and Chief Executives Office,NHS SUPPLY CHAIN,1015233762,10.67,654 4347 29
Department of Health,CT Revenue Funds,07/04/2015,Beverages,Bridgnorth Hospital Theatre,NHS SUPPLY CHAIN,1015233762,15.06,654 4347 29
Department of Health,CT Revenue Funds,07/04/2015,Beverages,Whitchurch Hospital Catering,NHS SUPPLY CHAIN,1015233762,45.84,654 4347 29
Department of Health,CT Revenue Funds,07/04/2015,Blood Products,Whitchurch Hospital Inpatient Ward,SHREWSBURY AND TELFORD HOSPITAL NHS TRUST,10097635,34,
Department of Health,CT Revenue Funds,07/04/2015,Blood Products,Ludlow Hospital Inpatient Wards,SHREWSBURY AND TELFORD HOSPITAL NHS TRUST,10097635,583.7,
Department of Health,CT Revenue Funds,07/04/2015,Blood Products,Bridgnorth Hospital Inpatient Ward,SHREWSBURY AND TELFORD HOSPITAL NHS TRUST,10097635,923.7,
Department of Health,CT Revenue Funds,07/04/2015,Blood Transfusions,Oswestry DAART,ROBERT JONES AND AGNES HUNT NHS FT,20073148,4264.75,654 9380 06
Department of Health,CT Revenue Funds,07/04/2015,"Books, Journals & Subscriptions",Shropshire FNP,NCT SHOP,206120,-2.98,
Department of Health,CT Revenue Funds,07/04/2015,"Books, Journals & Subscriptions",Shropshire FNP,NCT SHOP,206120,-2.98,
Department of Health,CT Revenue Funds,07/04/2015,"Books, Journals & Subscriptions",Shropshire FNP,NCT SHOP,206120,0.5,
Department of Health,CT Revenue Funds,07/04/2015,"Books, Journals & Subscriptions",Shropshire FNP,NCT SHOP,206120,0.5,
Department of Health,CT Revenue Funds,07/04/2015,"Books, Journals & Subscriptions",Shropshire FNP,NCT SHOP,206120,2.48,
Department of Health,CT Revenue Funds,07/04/2015,"Books, Journals & Subscriptions",Shropshire FNP,NCT SHOP,206120,2.48,
Department of Health,CT Revenue Funds,07/04/2015,"Books, Journals & Subscriptions",Shropshire FNP,NCT SHOP,206120,2.48,
Department of Health,CT Revenue Funds,07/04/2015,"Books, Journals & Subscriptions",Shropshire FNP,NCT SHOP,206120,2.48,
Department of Health,CT Revenue Funds,07/04/2015,"Books, Journals & Subscriptions",Shropshire FNP,NCT SHOP,206120,12.37,
Department of Health,CT Revenue Funds,07/04/2015,"Books, Journals & Subscriptions",Shropshire FNP,NCT SHOP,206120,12.37,
Department of Health,CT Revenue Funds,07/04/2015,"Books, Journals & Subscriptions",Library & Knowledge Service,JOHN WILEY & SONS LTD,91328,4350,
Department of Health,CT Revenue Funds,07/04/2015,"Books, Journals & Subscriptions",Trainee Health Visitors,EARLY INTERVENTION WALES TRAINING LTD,jh-IY-3307,75,
Department of Health,CT Revenue Funds,07/04/2015,"Books, Journals & Subscriptions",Trainee Health Visitors,EARLY INTERVENTION WALES TRAINING LTD,jh-IY-3307,208.4,
Department of Health,CT Revenue Funds,07/04/2015,"Books, Journals & Subscriptions",Trainee Health Visitors,EARLY INTERVENTION WALES TRAINING LTD,jh-IY-3307,1042,
Department of Health,CT Revenue Funds,07/04/2015,Buffers Compound Solutions,Bishops Castle Hospital Inpatient Ward,NHS SUPPLY CHAIN,1015229915,1.8,654 4347 29
Department of Health,CT Revenue Funds,07/04/2015,Buffers Compound Solutions,Bishops Castle Hospital Inpatient Ward,NHS SUPPLY CHAIN,1015229915,8.99,654 4347 29
Department of Health,CT Revenue Funds,07/04/2015,Buffers Compound Solutions,Bishops Castle Hospital Inpatient Ward,NHS SUPPLY CHAIN,1015233762,1.8,654 4347 29
Department of Health,CT Revenue Funds,07/04/2015,Buffers Compound Solutions,Bishops Castle Hospital Inpatient Ward,NHS SUPPLY CHAIN,1015233762,8.99,654 4347 29
Department of Health,CT Revenue Funds,07/04/2015,Buffers Compound Solutions,Whitchurch Hospital Inpatient Ward,NHS SUPPLY CHAIN,1015237441,3.6,654 4347 29
Department of Health,CT Revenue Funds,07/04/2015,Buffers Compound Solutions,Whitchurch Hospital Inpatient Ward,NHS SUPPLY CHAIN,1015237441,17.98,654 4347 29
Department of Health,CT Revenue Funds,07/04/2015,Catering Equipment - Purchase,Ludlow Hospital Hotel Services,NHS SUPPLY CHAIN,1015229915,-0.01,654 4347 29
Department of Health,CT Revenue Funds,07/04/2015,Catering Equipment - Purchase,Ludlow Hospital Hotel Services,NHS SUPPLY CHAIN,1015229915,0.01,654 4347 29
Department of Health,CT Revenue Funds,07/04/2015,Catering Equipment - Purchase,Bridgnorth Hospital Catering,NHS SUPPLY CHAIN,1015229915,0.01,654 4347 29
Department of Health,CT Revenue Funds,07/04/2015,Catering Equipment - Purchase,Bridgnorth Hospital Catering,NHS SUPPLY CHAIN,1015229915,0.01,654 4347 29
Department of Health,CT Revenue Funds,07/04/2015,Catering Equipment - Purchase,Bridgnorth Hospital Catering,NHS SUPPLY CHAIN,1015229915,0.04,654 4347 29
Department of Health,CT Revenue Funds,07/04/2015,Catering Equipment - Purchase,Bridgnorth Hospital Catering,NHS SUPPLY CHAIN,1015229915,0.04,654 4347 29
Department of Health,CT Revenue Funds,07/04/2015,Catering Equipment - Purchase,Bridgnorth Hospital Minor Injuries Unit,NHS SUPPLY CHAIN,1015229915,0.25,654 4347 29
Department of Health,CT Revenue Funds,07/04/2015,Catering Equipment - Purchase,Ludlow Hospital Hotel Services,NHS SUPPLY CHAIN,1015229915,0.67,654 4347 29
Department of Health,CT Revenue Funds,07/04/2015,Catering Equipment - Purchase,Ludlow Hospital Hotel Services,NHS SUPPLY CHAIN,1015229915,1.05,654 4347 29
Department of Health,CT Revenue Funds,07/04/2015,Catering Equipment - Purchase,Whitchurch Hospital Administration,NHS SUPPLY CHAIN,1015229915,1.08,654 4347 29
Department of Health,CT Revenue Funds,07/04/2015,Catering Equipment - Purchase,Bridgnorth Hospital Minor Injuries Unit,NHS SUPPLY CHAIN,1015229915,1.23,654 4347 29
Department of Health,CT Revenue Funds,07/04/2015,Catering Equipment - Purchase,Bridgnorth Hospital Catering,NHS SUPPLY CHAIN,1015229915,1.63,654 4347 29
Department of Health,CT Revenue Funds,07/04/2015,Catering Equipment - Purchase,Bridgnorth Hospital Catering,NHS SUPPLY CHAIN,1015229915,1.87,654 4347 29
Department of Health,CT Revenue Funds,07/04/2015,Catering Equipment - Purchase,Ludlow Hospital Catering,NHS SUPPLY CHAIN,1015229915,3.24,654 4347 29
Department of Health,CT Revenue Funds,07/04/2015,Catering Equipment - Purchase,Ludlow Hospital Hotel Services,NHS SUPPLY CHAIN,1015229915,3.34,654 4347 29
Department of Health,CT Revenue Funds,07/04/2015,Catering Equipment - Purchase,Stoke Heath Prison Healthcare,NHS SUPPLY CHAIN,1015229915,4.8,654 4347 29
Department of Health,CT Revenue Funds,07/04/2015,Catering Equipment - Purchase,Ludlow Hospital Hotel Services,NHS SUPPLY CHAIN,1015229915,5.26,654 4347 29
Department of Health,CT Revenue Funds,07/04/2015,Catering Equipment - Purchase,Whitchurch Hospital Administration,NHS SUPPLY CHAIN,1015229915,5.38,654 4347 29
Department of Health,CT Revenue Funds,07/04/2015,Catering Equipment - Purchase,Bridgnorth Hospital Catering,NHS SUPPLY CHAIN,1015229915,8.16,654 4347 29
Department of Health,CT Revenue Funds,07/04/2015,Catering Equipment - Purchase,Bridgnorth Hospital Catering,NHS SUPPLY CHAIN,1015229915,8.42,654 4347 29
Department of Health,CT Revenue Funds,07/04/2015,Catering Equipment - Purchase,Community Equipment Stores,NHS SUPPLY CHAIN,1015229915,9.03,654 4347 29
Department of Health,CT Revenue Funds,07/04/2015,Catering Equipment - Purchase,Bridgnorth Hospital Catering,NHS SUPPLY CHAIN,1015229915,9.36,654 4347 29
Department of Health,CT Revenue Funds,07/04/2015,Catering Equipment - Purchase,Ludlow Hospital Catering,NHS SUPPLY CHAIN,1015229915,16.22,654 4347 29
Department of Health,CT Revenue Funds,07/04/2015,Catering Equipment - Purchase,Stoke Heath Prison Healthcare,NHS SUPPLY CHAIN,1015229915,24,654 4347 29
Department of Health,CT Revenue Funds,07/04/2015,Catering Equipment - Purchase,Bridgnorth Hospital Catering,NHS SUPPLY CHAIN,1015229915,42.11,654 4347 29
Department of Health,CT Revenue Funds,07/04/2015,Catering Equipment - Purchase,Community Equipment Stores,NHS SUPPLY CHAIN,1015229915,45.17,654 4347 29
Department of Health,CT Revenue Funds,07/04/2015,Catering Equipment - Purchase,Ludlow Hospital Inpatient Wards,NHS SUPPLY CHAIN,1015233762,-0.03,654 4347 29
Department of Health,CT Revenue Funds,07/04/2015,Catering Equipment - Purchase,Ludlow Hospital Inpatient Wards,NHS SUPPLY CHAIN,1015233762,-0.01,654 4347 29
Department of Health,CT Revenue Funds,07/04/2015,Catering Equipment - Purchase,Bishops Castle Hospital Management,NHS SUPPLY CHAIN,1015233762,0.01,654 4347 29
Department of Health,CT Revenue Funds,07/04/2015,Catering Equipment - Purchase,Ludlow Hospital Inpatient Wards,NHS SUPPLY CHAIN,1015233762,0.01,654 4347 29
Department of Health,CT Revenue Funds,07/04/2015,Catering Equipment - Purchase,Ludlow Hospital Inpatient Wards,NHS SUPPLY CHAIN,1015233762,0.05,654 4347 29
Department of Health,CT Revenue Funds,07/04/2015,Catering Equipment - Purchase,Bridgnorth Hospital Minor Injuries Unit,NHS SUPPLY CHAIN,1015233762,0.25,654 4347 29
Department of Health,CT Revenue Funds,07/04/2015,Catering Equipment - Purchase,Bishops Castle Hospital Management,NHS SUPPLY CHAIN,1015233762,0.49,654 4347 29
Department of Health,CT Revenue Funds,07/04/2015,Catering Equipment - Purchase,Bridgnorth Hospital Minor Injuries Unit,NHS SUPPLY CHAIN,1015233762,1.23,654 4347 29
Department of Health,CT Revenue Funds,07/04/2015,Catering Equipment - Purchase,Whitchurch Hospital Catering,NHS SUPPLY CHAIN,1015233762,1.34,654 4347 29
Department of Health,CT Revenue Funds,07/04/2015,Catering Equipment - Purchase,Ludlow Hospital Inpatient Wards,NHS SUPPLY CHAIN,1015233762,1.74,654 4347 29
Department of Health,CT Revenue Funds,07/04/2015,Catering Equipment - Purchase,Bishops Castle Hospital Management,NHS SUPPLY CHAIN,1015233762,2.46,654 4347 29
Department of Health,CT Revenue Funds,07/04/2015,Catering Equipment - Purchase,Ludlow Hospital Inpatient Wards,NHS SUPPLY CHAIN,1015233762,6.07,654 4347 29
Department of Health,CT Revenue Funds,07/04/2015,Catering Equipment - Purchase,Whitchurch Hospital Catering,NHS SUPPLY CHAIN,1015233762,6.72,654 4347 29
Department of Health,CT Revenue Funds,07/04/2015,Catering Equipment - Purchase,Ludlow Hospital Inpatient Wards,NHS SUPPLY CHAIN,1015233762,8.7,654 4347 29
Department of Health,CT Revenue Funds,07/04/2015,Catering Equipment - Purchase,Ludlow Hospital Inpatient Wards,NHS SUPPLY CHAIN,1015233762,30.31,654 4347 29
Department of Health,CT Revenue Funds,07/04/2015,Catering Equipment - Purchase,Whitchurch Hospital Inpatient Ward,NHS SUPPLY CHAIN,1015237441,-0.04,654 4347 29
Department of Health,CT Revenue Funds,07/04/2015,Catering Equipment - Purchase,Whitchurch Hospital Inpatient Ward,NHS SUPPLY CHAIN,1015237441,-0.01,654 4347 29
Department of Health,CT Revenue Funds,07/04/2015,Catering Equipment - Purchase,Whitchurch Hospital Inpatient Ward,NHS SUPPLY CHAIN,1015237441,-0.01,654 4347 29
Department of Health,CT Revenue Funds,07/04/2015,Catering Equipment - Purchase,Whitchurch Hospital Inpatient Ward,NHS SUPPLY CHAIN,1015237441,0.28,654 4347 29
Department of Health,CT Revenue Funds,07/04/2015,Catering Equipment - Purchase,Whitchurch Hospital Inpatient Ward,NHS SUPPLY CHAIN,1015237441,1.15,654 4347 29
Department of Health,CT Revenue Funds,07/04/2015,Catering Equipment - Purchase,Whitchurch Hospital Inpatient Ward,NHS SUPPLY CHAIN,1015237441,1.38,654 4347 29
Department of Health,CT Revenue Funds,07/04/2015,Catering Equipment - Purchase,Whitchurch Hospital Inpatient Ward,NHS SUPPLY CHAIN,1015237441,2.21,654 4347 29
Department of Health,CT Revenue Funds,07/04/2015,Catering Equipment - Purchase,Whitchurch Hospital Inpatient Ward,NHS SUPPLY CHAIN,1015237441,5.74,654 4347 29
Department of Health,CT Revenue Funds,07/04/2015,Catering Equipment - Purchase,Whitchurch Hospital Inpatient Ward,NHS SUPPLY CHAIN,1015237441,11.04,654 4347 29
Department of Health,CT Revenue Funds,07/04/2015,Catering Equipment - Purchase,Ludlow Hospital Hotel Services,SHROPSHIRE STAINLESS FABRICATIONS LTD,19621,42,
Department of Health,CT Revenue Funds,07/04/2015,Catering Equipment - Purchase,Ludlow Hospital Hotel Services,SHROPSHIRE STAINLESS FABRICATIONS LTD,19621,210,
Department of Health,CT Revenue Funds,07/04/2015,Catering Provisions,Ludlow Hospital Catering,RICHARD C SWIFT LTD,067841,9.47,
Department of Health,CT Revenue Funds,07/04/2015,Catering Provisions,Bridgnorth Hospital Inpatient Ward,NHS SUPPLY CHAIN,1015229915,0.01,654 4347 29
Department of Health,CT Revenue Funds,07/04/2015,Catering Provisions,Bridgnorth Hospital Inpatient Ward,NHS SUPPLY CHAIN,1015229915,0.75,654 4347 29
Department of Health,CT Revenue Funds,07/04/2015,Catering Provisions,Bridgnorth Hospital Catering,NHS SUPPLY CHAIN,1015229915,1.83,654 4347 29
Department of Health,CT Revenue Funds,07/04/2015,Catering Provisions,Bridgnorth Hospital Catering,NHS SUPPLY CHAIN,1015229915,1.83,654 4347 29
Department of Health,CT Revenue Funds,07/04/2015,Catering Provisions,M Drayton Dental Practice,NHS SUPPLY CHAIN,1015229915,1.83,654 4347 29
Department of Health,CT Revenue Funds,07/04/2015,Catering Provisions,Bridgnorth Hospital Catering,NHS SUPPLY CHAIN,1015229915,2,654 4347 29
Department of Health,CT Revenue Funds,07/04/2015,Catering Provisions,Bridgnorth Hospital Inpatient Ward,NHS SUPPLY CHAIN,1015229915,2.65,654 4347 29
Department of Health,CT Revenue Funds,07/04/2015,Catering Provisions,Bridgnorth Hospital Catering,NHS SUPPLY CHAIN,1015229915,2.65,654 4347 29
Department of Health,CT Revenue Funds,07/04/2015,Catering Provisions,Ludlow Hospital Catering,NHS SUPPLY CHAIN,1015229915,2.84,654 4347 29
Department of Health,CT Revenue Funds,07/04/2015,Catering Provisions,Shrewsbury and Atcham DAART,NHS SUPPLY CHAIN,1015229915,3.01,654 4347 29
Department of Health,CT Revenue Funds,07/04/2015,Catering Provisions,Monkmoor CDC,NHS SUPPLY CHAIN,1015229915,3.1,654 4347 29
Department of Health,CT Revenue Funds,07/04/2015,Catering Provisions,Bridgnorth Hospital Inpatient Ward,NHS SUPPLY CHAIN,1015229915,3.72,654 4347 29
Department of Health,CT Revenue Funds,07/04/2015,Catering Provisions,Ludlow Hospital Catering,NHS SUPPLY CHAIN,1015229915,4.71,654 4347 29
Department of Health,CT Revenue Funds,07/04/2015,Catering Provisions,Ludlow Hospital Catering,NHS SUPPLY CHAIN,1015229915,4.82,654 4347 29
Department of Health,CT Revenue Funds,07/04/2015,Catering Provisions,Bridgnorth Hospital Catering,NHS SUPPLY CHAIN,1015229915,6.6,654 4347 29
Department of Health,CT Revenue Funds,07/04/2015,Catering Provisions,Ludlow Hospital Catering,NHS SUPPLY CHAIN,1015229915,7.25,654 4347 29
Department of Health,CT Revenue Funds,07/04/2015,Catering Provisions,Ludlow Hospital Catering,NHS SUPPLY CHAIN,1015229915,8.12,654 4347 29
Department of Health,CT Revenue Funds,07/04/2015,Catering Provisions,Ludlow Hospital Catering,NHS SUPPLY CHAIN,1015229915,8.12,654 4347 29
Department of Health,CT Revenue Funds,07/04/2015,Catering Provisions,Ludlow Hospital Catering,NHS SUPPLY CHAIN,1015229915,8.7,654 4347 29
Department of Health,CT Revenue Funds,07/04/2015,Catering Provisions,Bridgnorth Hospital Catering,NHS SUPPLY CHAIN,1015229915,9.1,654 4347 29
Department of Health,CT Revenue Funds,07/04/2015,Catering Provisions,Bridgnorth Hospital Catering,NHS SUPPLY CHAIN,1015229915,9.17,654 4347 29
Department of Health,CT Revenue Funds,07/04/2015,Catering Provisions,Bridgnorth Hospital Catering,NHS SUPPLY CHAIN,1015229915,9.17,654 4347 29
Department of Health,CT Revenue Funds,07/04/2015,Catering Provisions,M Drayton Dental Practice,NHS SUPPLY CHAIN,1015229915,9.17,654 4347 29
Department of Health,CT Revenue Funds,07/04/2015,Catering Provisions,Ludlow Hospital Catering,NHS SUPPLY CHAIN,1015229915,9.2,654 4347 29
Department of Health,CT Revenue Funds,07/04/2015,Catering Provisions,Bridgnorth Hospital Catering,NHS SUPPLY CHAIN,1015229915,9.36,654 4347 29
Department of Health,CT Revenue Funds,07/04/2015,Catering Provisions,Ludlow Hospital Catering,NHS SUPPLY CHAIN,1015229915,9.64,654 4347 29
Department of Health,CT Revenue Funds,07/04/2015,Catering Provisions,Ludlow Hospital Catering,NHS SUPPLY CHAIN,1015229915,9.68,654 4347 29
Department of Health,CT Revenue Funds,07/04/2015,Catering Provisions,Bridgnorth Hospital Catering,NHS SUPPLY CHAIN,1015229915,10.01,654 4347 29
Department of Health,CT Revenue Funds,07/04/2015,Catering Provisions,Ludlow Hospital Catering,NHS SUPPLY CHAIN,1015229915,10.28,654 4347 29
Department of Health,CT Revenue Funds,07/04/2015,Catering Provisions,Ludlow Hospital Catering,NHS SUPPLY CHAIN,1015229915,11.92,654 4347 29
Department of Health,CT Revenue Funds,07/04/2015,Catering Provisions,Ludlow Hospital Catering,NHS SUPPLY CHAIN,1015229915,12.44,654 4347 29
Department of Health,CT Revenue Funds,07/04/2015,Catering Provisions,Bridgnorth Hospital Catering,NHS SUPPLY CHAIN,1015229915,13.25,654 4347 29
Department of Health,CT Revenue Funds,07/04/2015,Catering Provisions,Bridgnorth Hospital Inpatient Ward,NHS SUPPLY CHAIN,1015229915,13.25,654 4347 29
Department of Health,CT Revenue Funds,07/04/2015,Catering Provisions,Ludlow Hospital Catering,NHS SUPPLY CHAIN,1015229915,14.55,654 4347 29
Department of Health,CT Revenue Funds,07/04/2015,Catering Provisions,Ludlow Hospital Catering,NHS SUPPLY CHAIN,1015229915,15.6,654 4347 29
Department of Health,CT Revenue Funds,07/04/2015,Catering Provisions,Ludlow Hospital Catering,NHS SUPPLY CHAIN,1015229915,18.72,654 4347 29
Department of Health,CT Revenue Funds,07/04/2015,Catering Provisions,Ludlow Hospital Catering,NHS SUPPLY CHAIN,1015229915,19.76,654 4347 29
Department of Health,CT Revenue Funds,07/04/2015,Catering Provisions,Ludlow Hospital Catering,NHS SUPPLY CHAIN,1015229915,19.76,654 4347 29
Department of Health,CT Revenue Funds,07/04/2015,Catering Provisions,Ludlow Hospital Catering,NHS SUPPLY CHAIN,1015229915,24.12,654 4347 29
Department of Health,CT Revenue Funds,07/04/2015,Catering Provisions,Whitchurch Hospital Catering,NHS SUPPLY CHAIN,1015233762,0.01,654 4347 29
Department of Health,CT Revenue Funds,07/04/2015,Catering Provisions,Whitchurch Hospital Catering,NHS SUPPLY CHAIN,1015233762,0.01,654 4347 29
Department of Health,CT Revenue Funds,07/04/2015,Catering Provisions,Bridgnorth Hospital Inpatient Ward,NHS SUPPLY CHAIN,1015233762,0.01,654 4347 29
Department of Health,CT Revenue Funds,07/04/2015,Catering Provisions,Ludlow Hospital Catering,NHS SUPPLY CHAIN,1015233762,0.32,654 4347 29
Department of Health,CT Revenue Funds,07/04/2015,Catering Provisions,Falls Prevention,NHS SUPPLY CHAIN,1015233762,0.51,654 4347 29
Department of Health,CT Revenue Funds,07/04/2015,Catering Provisions,Falls Prevention,NHS SUPPLY CHAIN,1015233762,0.55,654 4347 29
Department of Health,CT Revenue Funds,07/04/2015,Catering Provisions,Falls Prevention,NHS SUPPLY CHAIN,1015233762,0.58,654 4347 29
Department of Health,CT Revenue Funds,07/04/2015,Catering Provisions,Bridgnorth Hospital Inpatient Ward,NHS SUPPLY CHAIN,1015233762,0.75,654 4347 29
Department of Health,CT Revenue Funds,07/04/2015,Catering Provisions,Ludlow Hospital Catering,NHS SUPPLY CHAIN,1015233762,0.99,654 4347 29
Department of Health,CT Revenue Funds,07/04/2015,Catering Provisions,Whitchurch Hospital Catering,NHS SUPPLY CHAIN,1015233762,1.01,654 4347 29
Department of Health,CT Revenue Funds,07/04/2015,Catering Provisions,Whitchurch Hospital Catering,NHS SUPPLY CHAIN,1015233762,1.01,654 4347 29
Department of Health,CT Revenue Funds,07/04/2015,Catering Provisions,Falls Prevention,NHS SUPPLY CHAIN,1015233762,1.17,654 4347 29
Department of Health,CT Revenue Funds,07/04/2015,Catering Provisions,Falls Prevention,NHS SUPPLY CHAIN,1015233762,1.32,654 4347 29
Department of Health,CT Revenue Funds,07/04/2015,Catering Provisions,Ludlow Hospital Catering,NHS SUPPLY CHAIN,1015233762,1.43,654 4347 29
Department of Health,CT Revenue Funds,07/04/2015,Catering Provisions,Ludlow Hospital Catering,NHS SUPPLY CHAIN,1015233762,1.68,654 4347 29
Department of Health,CT Revenue Funds,07/04/2015,Catering Provisions,Ludlow Hospital Catering,NHS SUPPLY CHAIN,1015233762,1.68,654 4347 29
Department of Health,CT Revenue Funds,07/04/2015,Catering Provisions,Ludlow Hospital Catering,NHS SUPPLY CHAIN,1015233762,1.74,654 4347 29
Department of Health,CT Revenue Funds,07/04/2015,Catering Provisions,Ludlow Hospital Catering,NHS SUPPLY CHAIN,1015233762,2,654 4347 29
Department of Health,CT Revenue Funds,07/04/2015,Catering Provisions,Falls Prevention,NHS SUPPLY CHAIN,1015233762,2.19,654 4347 29
Department of Health,CT Revenue Funds,07/04/2015,Catering Provisions,Falls Prevention,NHS SUPPLY CHAIN,1015233762,2.53,654 4347 29
Department of Health,CT Revenue Funds,07/04/2015,Catering Provisions,Ludlow Hospital Inpatient Wards,NHS SUPPLY CHAIN,1015233762,2.65,654 4347 29
Department of Health,CT Revenue Funds,07/04/2015,Catering Provisions,Ludlow Hospital Inpatient Wards,NHS SUPPLY CHAIN,1015233762,2.65,654 4347 29
Department of Health,CT Revenue Funds,07/04/2015,Catering Provisions,Falls Prevention,NHS SUPPLY CHAIN,1015233762,2.91,654 4347 29
Department of Health,CT Revenue Funds,07/04/2015,Catering Provisions,Ludlow Hospital Catering,NHS SUPPLY CHAIN,1015233762,3.19,654 4347 29
Department of Health,CT Revenue Funds,07/04/2015,Catering Provisions,Ludlow Hospital Catering,NHS SUPPLY CHAIN,1015233762,3.32,654 4347 29
Department of Health,CT Revenue Funds,07/04/2015,Catering Provisions,Ludlow Hospital Catering,NHS SUPPLY CHAIN,1015233762,3.37,654 4347 29
Department of Health,CT Revenue Funds,07/04/2015,Catering Provisions,Ludlow Hospital Catering,NHS SUPPLY CHAIN,1015233762,3.48,654 4347 29
Department of Health,CT Revenue Funds,07/04/2015,Catering Provisions,Ludlow Hospital Catering,NHS SUPPLY CHAIN,1015233762,3.6,654 4347 29
Department of Health,CT Revenue Funds,07/04/2015,Catering Provisions,Bridgnorth Hospital Inpatient Ward,NHS SUPPLY CHAIN,1015233762,3.72,654 4347 29
Department of Health,CT Revenue Funds,07/04/2015,Catering Provisions,Ludlow Hospital Catering,NHS SUPPLY CHAIN,1015233762,3.83,654 4347 29
Department of Health,CT Revenue Funds,07/04/2015,Catering Provisions,Falls Prevention,NHS SUPPLY CHAIN,1015233762,4.35,654 4347 29
Department of Health,CT Revenue Funds,07/04/2015,Catering Provisions,Ludlow Hospital Catering,NHS SUPPLY CHAIN,1015233762,4.7,654 4347 29
Department of Health,CT Revenue Funds,07/04/2015,Catering Provisions,Ludlow Hospital Catering,NHS SUPPLY CHAIN,1015233762,4.71,654 4347 29
Department of Health,CT Revenue Funds,07/04/2015,Catering Provisions,Ludlow Hospital Catering,NHS SUPPLY CHAIN,1015233762,4.82,654 4347 29
Department of Health,CT Revenue Funds,07/04/2015,Catering Provisions,Whitchurch Hospital Catering,NHS SUPPLY CHAIN,1015233762,5.06,654 4347 29
Department of Health,CT Revenue Funds,07/04/2015,Catering Provisions,Whitchurch Hospital Catering,NHS SUPPLY CHAIN,1015233762,5.06,654 4347 29
Department of Health,CT Revenue Funds,07/04/2015,Catering Provisions,Ludlow Hospital Catering,NHS SUPPLY CHAIN,1015233762,5.14,654 4347 29
Department of Health,CT Revenue Funds,07/04/2015,Catering Provisions,Ludlow Hospital Catering,NHS SUPPLY CHAIN,1015233762,5.4,654 4347 29
Department of Health,CT Revenue Funds,07/04/2015,Catering Provisions,Ludlow Hospital Inpatient Wards,NHS SUPPLY CHAIN,1015233762,5.8,654 4347 29
Department of Health,CT Revenue Funds,07/04/2015,Catering Provisions,Ludlow Hospital Catering,NHS SUPPLY CHAIN,1015233762,5.91,654 4347 29
Department of Health,CT Revenue Funds,07/04/2015,Catering Provisions,Whitchurch Hospital Catering,NHS SUPPLY CHAIN,1015233762,5.94,654 4347 29
Department of Health,CT Revenue Funds,07/04/2015,Catering Provisions,Ludlow Hospital Catering,NHS SUPPLY CHAIN,1015233762,6.14,654 4347 29
Department of Health,CT Revenue Funds,07/04/2015,Catering Provisions,Chairman and Chief Executives Office,NHS SUPPLY CHAIN,1015233762,6.2,654 4347 29
Department of Health,CT Revenue Funds,07/04/2015,Catering Provisions,Ludlow Hospital Catering,NHS SUPPLY CHAIN,1015233762,6.36,654 4347 29
Department of Health,CT Revenue Funds,07/04/2015,Catering Provisions,Ludlow Hospital Catering,NHS SUPPLY CHAIN,1015233762,7.17,654 4347 29
Department of Health,CT Revenue Funds,07/04/2015,Catering Provisions,Ludlow Hospital Catering,NHS SUPPLY CHAIN,1015233762,7.25,654 4347 29
Department of Health,CT Revenue Funds,07/04/2015,Catering Provisions,Ludlow Hospital Catering,NHS SUPPLY CHAIN,1015233762,7.89,654 4347 29
Department of Health,CT Revenue Funds,07/04/2015,Catering Provisions,Whitchurch Hospital Catering,NHS SUPPLY CHAIN,1015233762,8.12,654 4347 29
Department of Health,CT Revenue Funds,07/04/2015,Catering Provisions,Ludlow Hospital Catering,NHS SUPPLY CHAIN,1015233762,8.12,654 4347 29
Department of Health,CT Revenue Funds,07/04/2015,Catering Provisions,Ludlow Hospital Catering,NHS SUPPLY CHAIN,1015233762,8.12,654 4347 29
Department of Health,CT Revenue Funds,07/04/2015,Catering Provisions,Ludlow Hospital Catering,NHS SUPPLY CHAIN,1015233762,8.16,654 4347 29
Department of Health,CT Revenue Funds,07/04/2015,Catering Provisions,Whitchurch Hospital Catering,NHS SUPPLY CHAIN,1015233762,8.19,654 4347 29
Department of Health,CT Revenue Funds,07/04/2015,Catering Provisions,Ludlow Hospital Catering,NHS SUPPLY CHAIN,1015233762,8.38,654 4347 29
Department of Health,CT Revenue Funds,07/04/2015,Catering Provisions,Ludlow Hospital Catering,NHS SUPPLY CHAIN,1015233762,8.38,654 4347 29
Department of Health,CT Revenue Funds,07/04/2015,Catering Provisions,Ludlow Hospital Catering,NHS SUPPLY CHAIN,1015233762,8.68,654 4347 29
Department of Health,CT Revenue Funds,07/04/2015,Catering Provisions,Ludlow Hospital Inpatient Wards,NHS SUPPLY CHAIN,1015233762,8.7,654 4347 29
Department of Health,CT Revenue Funds,07/04/2015,Catering Provisions,Ludlow Hospital Catering,NHS SUPPLY CHAIN,1015233762,9.2,654 4347 29
Department of Health,CT Revenue Funds,07/04/2015,Catering Provisions,Ludlow Hospital Catering,NHS SUPPLY CHAIN,1015233762,9.42,654 4347 29
Department of Health,CT Revenue Funds,07/04/2015,Catering Provisions,Ludlow Hospital Catering,NHS SUPPLY CHAIN,1015233762,9.68,654 4347 29
Department of Health,CT Revenue Funds,07/04/2015,Catering Provisions,Whitchurch Hospital Catering,NHS SUPPLY CHAIN,1015233762,9.84,654 4347 29
Department of Health,CT Revenue Funds,07/04/2015,Catering Provisions,Whitchurch Hospital Catering,NHS SUPPLY CHAIN,1015233762,9.84,654 4347 29
Department of Health,CT Revenue Funds,07/04/2015,Catering Provisions,Ludlow Hospital Catering,NHS SUPPLY CHAIN,1015233762,10.01,654 4347 29
Department of Health,CT Revenue Funds,07/04/2015,Catering Provisions,Whitchurch Hospital Catering,NHS SUPPLY CHAIN,1015233762,10.52,654 4347 29
Department of Health,CT Revenue Funds,07/04/2015,Catering Provisions,Ludlow Hospital Catering,NHS SUPPLY CHAIN,1015233762,10.84,654 4347 29
Department of Health,CT Revenue Funds,07/04/2015,Catering Provisions,Whitchurch Hospital Catering,NHS SUPPLY CHAIN,1015233762,11.1,654 4347 29
Department of Health,CT Revenue Funds,07/04/2015,Catering Provisions,Whitchurch Hospital Catering,NHS SUPPLY CHAIN,1015233762,11.1,654 4347 29
Department of Health,CT Revenue Funds,07/04/2015,Catering Provisions,Whitchurch Hospital Catering,NHS SUPPLY CHAIN,1015233762,11.66,654 4347 29
Department of Health,CT Revenue Funds,07/04/2015,Catering Provisions,Whitchurch Hospital Catering,NHS SUPPLY CHAIN,1015233762,11.66,654 4347 29
Department of Health,CT Revenue Funds,07/04/2015,Catering Provisions,Whitchurch Hospital Catering,NHS SUPPLY CHAIN,1015233762,13.02,654 4347 29
Department of Health,CT Revenue Funds,07/04/2015,Catering Provisions,Ludlow Hospital Inpatient Wards,NHS SUPPLY CHAIN,1015233762,13.25,654 4347 29
Department of Health,CT Revenue Funds,07/04/2015,Catering Provisions,Ludlow Hospital Inpatient Wards,NHS SUPPLY CHAIN,1015233762,13.25,654 4347 29
Department of Health,CT Revenue Funds,07/04/2015,Catering Provisions,Whitchurch Hospital Catering,NHS SUPPLY CHAIN,1015233762,13.96,654 4347 29
Department of Health,CT Revenue Funds,07/04/2015,Catering Provisions,Whitchurch Hospital Catering,NHS SUPPLY CHAIN,1015233762,15.26,654 4347 29
Department of Health,CT Revenue Funds,07/04/2015,Catering Provisions,Whitchurch Hospital Catering,NHS SUPPLY CHAIN,1015233762,15.29,654 4347 29
Department of Health,CT Revenue Funds,07/04/2015,Catering Provisions,Whitchurch Hospital Catering,NHS SUPPLY CHAIN,1015233762,15.64,654 4347 29
Department of Health,CT Revenue Funds,07/04/2015,Catering Provisions,Ludlow Hospital Catering,NHS SUPPLY CHAIN,1015233762,15.97,654 4347 29
Department of Health,CT Revenue Funds,07/04/2015,Catering Provisions,Ludlow Hospital Catering,NHS SUPPLY CHAIN,1015233762,16.54,654 4347 29
Department of Health,CT Revenue Funds,07/04/2015,Catering Provisions,Ludlow Hospital Catering,NHS SUPPLY CHAIN,1015233762,16.62,654 4347 29
Department of Health,CT Revenue Funds,07/04/2015,Catering Provisions,Ludlow Hospital Catering,NHS SUPPLY CHAIN,1015233762,16.87,654 4347 29
Department of Health,CT Revenue Funds,07/04/2015,Catering Provisions,Whitchurch Hospital Catering,NHS SUPPLY CHAIN,1015233762,17.4,654 4347 29
Department of Health,CT Revenue Funds,07/04/2015,Catering Provisions,Whitchurch Hospital Catering,NHS SUPPLY CHAIN,1015233762,17.96,654 4347 29
Department of Health,CT Revenue Funds,07/04/2015,Catering Provisions,Whitchurch Hospital Catering,NHS SUPPLY CHAIN,1015233762,18.4,654 4347 29
Department of Health,CT Revenue Funds,07/04/2015,Catering Provisions,Whitchurch Hospital Catering,NHS SUPPLY CHAIN,1015233762,18.6,654 4347 29
Department of Health,CT Revenue Funds,07/04/2015,Catering Provisions,Whitchurch Hospital Catering,NHS SUPPLY CHAIN,1015233762,18.84,654 4347 29
Department of Health,CT Revenue Funds,07/04/2015,Catering Provisions,Ludlow Hospital Catering,NHS SUPPLY CHAIN,1015233762,19.15,654 4347 29
Department of Health,CT Revenue Funds,07/04/2015,Catering Provisions,Whitchurch Hospital Catering,NHS SUPPLY CHAIN,1015233762,20.08,654 4347 29
Department of Health,CT Revenue Funds,07/04/2015,Catering Provisions,Ludlow Hospital Catering,NHS SUPPLY CHAIN,1015233762,22.18,654 4347 29
Department of Health,CT Revenue Funds,07/04/2015,Catering Provisions,Whitchurch Hospital Catering,NHS SUPPLY CHAIN,1015233762,23.52,654 4347 29
Department of Health,CT Revenue Funds,07/04/2015,Catering Provisions,Whitchurch Hospital Catering,NHS SUPPLY CHAIN,1015233762,26.84,654 4347 29
Department of Health,CT Revenue Funds,07/04/2015,Catering Provisions,Whitchurch Hospital Catering,NHS SUPPLY CHAIN,1015233762,27.12,654 4347 29
Department of Health,CT Revenue Funds,07/04/2015,Catering Provisions,Whitchurch Hospital Catering,NHS SUPPLY CHAIN,1015233762,27.6,654 4347 29
Department of Health,CT Revenue Funds,07/04/2015,Catering Provisions,Whitchurch Hospital Catering,NHS SUPPLY CHAIN,1015233762,30,654 4347 29
Department of Health,CT Revenue Funds,07/04/2015,Catering Provisions,Whitchurch Hospital Catering,NHS SUPPLY CHAIN,1015233762,30.6,654 4347 29
Department of Health,CT Revenue Funds,07/04/2015,Catering Provisions,Whitchurch Hospital Catering,NHS SUPPLY CHAIN,1015233762,32.48,654 4347 29
Department of Health,CT Revenue Funds,07/04/2015,Catering Provisions,Whitchurch Hospital Catering,NHS SUPPLY CHAIN,1015233762,34.32,654 4347 29
Department of Health,CT Revenue Funds,07/04/2015,Catering Provisions,Whitchurch Hospital Catering,NHS SUPPLY CHAIN,1015233762,40.8,654 4347 29
Department of Health,CT Revenue Funds,07/04/2015,Catering Provisions,Whitchurch Hospital Catering,NHS SUPPLY CHAIN,1015233762,42.72,654 4347 29
Department of Health,CT Revenue Funds,07/04/2015,Catering Provisions,Whitchurch Hospital Catering,NHS SUPPLY CHAIN,1015233762,48.72,654 4347 29
Department of Health,CT Revenue Funds,07/04/2015,Catering Provisions,Whitchurch Hospital Catering,NHS SUPPLY CHAIN,1015233762,53.68,654 4347 29
Department of Health,CT Revenue Funds,07/04/2015,Catering Provisions,Whitchurch Hospital Catering,NHS SUPPLY CHAIN,1015233762,79.62,654 4347 29
Department of Health,CT Revenue Funds,07/04/2015,Catering Provisions,Whitchurch Hospital Catering,NHS SUPPLY CHAIN,1015233762,157.44,654 4347 29
Department of Health,CT Revenue Funds,07/04/2015,Catering Provisions,Bridgnorth Hospital Catering,3663,60692429,12.99,643 9946 92
Department of Health,CT Revenue Funds,07/04/2015,Catering Provisions,Bridgnorth Hospital Catering,3663,60692429,64.93,643 9946 92
Department of Health,CT Revenue Funds,07/04/2015,Catering Provisions,Bridgnorth Hospital Catering,3663,60692429,753.55,643 9946 92
Department of Health,CT Revenue Funds,07/04/2015,Catering Provisions,Whitchurch Hospital Catering,3663,60729329,7.2,643 9946 92
Department of Health,CT Revenue Funds,07/04/2015,Catering Provisions,Whitchurch Hospital Catering,3663,60729329,35.99,643 9946 92
Department of Health,CT Revenue Funds,07/04/2015,Catering Provisions,Whitchurch Hospital Catering,3663,60729329,177.96,643 9946 92
Department of Health,CT Revenue Funds,07/04/2015,Catering Provisions,Whitchurch Hospital Catering,MULLER WISEMAN DAIRIES,64831846,89.46,624 0831 65
Department of Health,CT Revenue Funds,07/04/2015,Catering Provisions,Ludlow Hospital Catering,BRAKE BROS FOODSERVICE LTD,9231097033,4.24,202 9353 88
Department of Health,CT Revenue Funds,07/04/2015,Catering Provisions,Ludlow Hospital Catering,BRAKE BROS FOODSERVICE LTD,9231097033,21.2,202 9353 88
Department of Health,CT Revenue Funds,07/04/2015,Catering Provisions,Ludlow Hospital Catering,BRAKE BROS FOODSERVICE LTD,9231097033,78.9,202 9353 88
Department of Health,CT Revenue Funds,07/04/2015,Catering Provisions,Ludlow Hospital Catering,BRAKE BROS FOODSERVICE LTD,9231098144,2.82,202 9353 88
Department of Health,CT Revenue Funds,07/04/2015,Catering Provisions,Ludlow Hospital Catering,BRAKE BROS FOODSERVICE LTD,9231098144,14.09,202 9353 88
Department of Health,CT Revenue Funds,07/04/2015,Catering Provisions,Ludlow Hospital Catering,BRAKE BROS FOODSERVICE LTD,9231098144,95.96,202 9353 88
Department of Health,CT Revenue Funds,07/04/2015,Catering Provisions,Ludlow Hospital Catering,BRAKE BROS FOODSERVICE LTD,9231099278,1.12,202 9353 88
Department of Health,CT Revenue Funds,07/04/2015,Catering Provisions,Ludlow Hospital Catering,BRAKE BROS FOODSERVICE LTD,9231099278,5.61,202 9353 88
Department of Health,CT Revenue Funds,07/04/2015,Catering Provisions,Ludlow Hospital Catering,BRAKE BROS FOODSERVICE LTD,9231099278,146.43,202 9353 88
Department of Health,CT Revenue Funds,07/04/2015,Catering Provisions,Ludlow Hospital Catering,TOTAL PRODUCE,HER-730566,55.25,896 5678 42
Department of Health,CT Revenue Funds,07/04/2015,Catering Provisions,Ludlow Hospital Catering,TOTAL PRODUCE,HER-732274,24.75,896 5678 42
Department of Health,CT Revenue Funds,07/04/2015,Catering Provisions,Ludlow Hospital Catering,TOTAL PRODUCE,HER-732616,78.66,896 5678 42
Department of Health,CT Revenue Funds,07/04/2015,Catering Provisions,Ludlow Hospital Catering,TOTAL PRODUCE,HER-732617,48.25,896 5678 42
Department of Health,CT Revenue Funds,07/04/2015,Catering Provisions,Ludlow Hospital Catering,TOTAL PRODUCE,HER-734709,48.94,896 5678 42
Department of Health,CT Revenue Funds,07/04/2015,Catering Provisions,Ludlow Hospital Catering,TOTAL PRODUCE,HER-734711,96.48,896 5678 42
Department of Health,CT Revenue Funds,07/04/2015,Catering Provisions,Ludlow Hospital Catering,TOTAL PRODUCE,HER-736231,78.01,896 5678 42
Department of Health,CT Revenue Funds,07/04/2015,Catering Provisions,Whitchurch Hospital Catering,NH CASE LTD,SI022132,352.8,130 0233 45
Department of Health,CT Revenue Funds,07/04/2015,Catering Provisions,Ludlow Hospital Catering,JOHN SHEPPARD BUTCHERS LTD,SINV346710,166.18,
Department of Health,CT Revenue Funds,07/04/2015,Catering Provisions,Ludlow Hospital Catering,JOHN SHEPPARD BUTCHERS LTD,SINV349041,143.05,
Department of Health,CT Revenue Funds,07/04/2015,Catering Provisions,Ludlow Hospital Catering,JOHN SHEPPARD BUTCHERS LTD,SINV351081,183.5,
Department of Health,CT Revenue Funds,07/04/2015,Catheters,North East Shropshire Interdisciplinary Teams,NHS SUPPLY CHAIN,1015229915,0.01,654 4347 29
Department of Health,CT Revenue Funds,07/04/2015,Catheters,Bishops Castle Hospital Inpatient Ward,NHS SUPPLY CHAIN,1015229915,0.01,654 4347 29
Department of Health,CT Revenue Funds,07/04/2015,Catheters,Bishops Castle Hospital Inpatient Ward,NHS SUPPLY CHAIN,1015229915,2.15,654 4347 29
Department of Health,CT Revenue Funds,07/04/2015,Catheters,North East Shropshire Interdisciplinary Teams,NHS SUPPLY CHAIN,1015229915,4.29,654 4347 29
Department of Health,CT Revenue Funds,07/04/2015,Catheters,Bishops Castle Hospital Inpatient Ward,NHS SUPPLY CHAIN,1015229915,6.44,654 4347 29
Department of Health,CT Revenue Funds,07/04/2015,Catheters,South West Interdisciplinary Teams,NHS SUPPLY CHAIN,1015229915,7.17,654 4347 29
Department of Health,CT Revenue Funds,07/04/2015,Catheters,Community Childrens Nurses,NHS SUPPLY CHAIN,1015229915,7.23,654 4347 29
Department of Health,CT Revenue Funds,07/04/2015,Catheters,Shrewsbury and Atcham North Interdisciplinary Teams,NHS SUPPLY CHAIN,1015229915,7.29,654 4347 29
Department of Health,CT Revenue Funds,07/04/2015,Catheters,Community Childrens Nurses,NHS SUPPLY CHAIN,1015229915,8.8,654 4347 29
Department of Health,CT Revenue Funds,07/04/2015,Catheters,Bishops Castle Hospital Inpatient Ward,NHS SUPPLY CHAIN,1015229915,10.73,654 4347 29
Department of Health,CT Revenue Funds,07/04/2015,Catheters,North East Shropshire Interdisciplinary Teams,NHS SUPPLY CHAIN,1015229915,21.46,654 4347 29
Department of Health,CT Revenue Funds,07/04/2015,Catheters,Bishops Castle Hospital Inpatient Ward,NHS SUPPLY CHAIN,1015229915,32.19,654 4347 29
Department of Health,CT Revenue Funds,07/04/2015,Catheters,South West Interdisciplinary Teams,NHS SUPPLY CHAIN,1015229915,35.85,654 4347 29
Department of Health,CT Revenue Funds,07/04/2015,Catheters,Community Childrens Nurses,NHS SUPPLY CHAIN,1015229915,36.13,654 4347 29
Department of Health,CT Revenue Funds,07/04/2015,Catheters,Shrewsbury and Atcham North Interdisciplinary Teams,NHS SUPPLY CHAIN,1015229915,36.46,654 4347 29
Department of Health,CT Revenue Funds,07/04/2015,Catheters,Community Childrens Nurses,NHS SUPPLY CHAIN,1015229915,43.98,654 4347 29
Department of Health,CT Revenue Funds,07/04/2015,Catheters,Bishops Castle Hospital Inpatient Ward,NHS SUPPLY CHAIN,1015233762,0.01,654 4347 29
Department of Health,CT Revenue Funds,07/04/2015,Catheters,Ludlow Hospital Inpatient Wards,NHS SUPPLY CHAIN,1015233762,0.01,654 4347 29
Department of Health,CT Revenue Funds,07/04/2015,Catheters,Ludlow Hospital Inpatient Wards,NHS SUPPLY CHAIN,1015233762,1.94,654 4347 29
Department of Health,CT Revenue Funds,07/04/2015,Catheters,Shrewsbury and Atcham North Interdisciplinary Teams,NHS SUPPLY CHAIN,1015233762,2.15,654 4347 29
Department of Health,CT Revenue Funds,07/04/2015,Catheters,Ludlow Hospital Inpatient Wards,NHS SUPPLY CHAIN,1015233762,4.85,654 4347 29
Department of Health,CT Revenue Funds,07/04/2015,Catheters,Bishops Castle Hospital Inpatient Ward,NHS SUPPLY CHAIN,1015233762,6.44,654 4347 29
Department of Health,CT Revenue Funds,07/04/2015,Catheters,Ludlow Hospital Inpatient Wards,NHS SUPPLY CHAIN,1015233762,9.69,654 4347 29
Department of Health,CT Revenue Funds,07/04/2015,Catheters,Shrewsbury and Atcham North Interdisciplinary Teams,NHS SUPPLY CHAIN,1015233762,10.73,654 4347 29
Department of Health,CT Revenue Funds,07/04/2015,Catheters,Ludlow Hospital Inpatient Wards,NHS SUPPLY CHAIN,1015233762,24.26,654 4347 29
Department of Health,CT Revenue Funds,07/04/2015,Catheters,Bishops Castle Hospital Inpatient Ward,NHS SUPPLY CHAIN,1015233762,32.19,654 4347 29
Department of Health,CT Revenue Funds,07/04/2015,Catheters,Whitchurch Hospital Inpatient Ward,NHS SUPPLY CHAIN,1015237441,0.01,654 4347 29
Department of Health,CT Revenue Funds,07/04/2015,Catheters,Whitchurch Hospital Inpatient Ward,NHS SUPPLY CHAIN,1015237441,4.29,654 4347 29
Department of Health,CT Revenue Funds,07/04/2015,Catheters,Whitchurch Hospital Inpatient Ward,NHS SUPPLY CHAIN,1015237441,21.46,654 4347 29
Department of Health,CT Revenue Funds,07/04/2015,Chemical Biochemical Diagnostics,Substance Misuse Teams,ALERE LIMITED,0000394040,82.8,
Department of Health,CT Revenue Funds,07/04/2015,Chemical Biochemical Diagnostics,Substance Misuse Teams,ALERE LIMITED,0000394040,414,
Department of Health,CT Revenue Funds,07/04/2015,Chemical Biochemical Diagnostics,South West Interdisciplinary Teams,NHS SUPPLY CHAIN,1015229915,3.17,654 4347 29
Department of Health,CT Revenue Funds,07/04/2015,Chemical Biochemical Diagnostics,South West Interdisciplinary Teams,NHS SUPPLY CHAIN,1015229915,15.83,654 4347 29
Department of Health,CT Revenue Funds,07/04/2015,Chemical Biochemical Diagnostics,North West Shropshire Interdisciplinary Teams,NHS SUPPLY CHAIN,1015233762,2.11,654 4347 29
Department of Health,CT Revenue Funds,07/04/2015,Chemical Biochemical Diagnostics,North West Shropshire Interdisciplinary Teams,NHS SUPPLY CHAIN,1015233762,10.57,654 4347 29
Department of Health,CT Revenue Funds,07/04/2015,Cleaning Equipment,Bridgnorth Hospital Administration,IR JAMES ASSOCIATES LTD,1680,9.48,
Department of Health,CT Revenue Funds,07/04/2015,Cleaning Equipment,Bridgnorth Hospital Administration,IR JAMES ASSOCIATES LTD,1680,47.4,
Department of Health,CT Revenue Funds,07/04/2015,Cleaning Materials,Ludlow Hospital Hotel Services,NHS SUPPLY CHAIN,1015229915,-0.06,654 4347 29
Department of Health,CT Revenue Funds,07/04/2015,Cleaning Materials,Community Equipment Stores,NHS SUPPLY CHAIN,1015229915,-0.06,654 4347 29
Department of Health,CT Revenue Funds,07/04/2015,Cleaning Materials,Bishops Castle Hospital Domestics,NHS SUPPLY CHAIN,1015229915,-0.03,654 4347 29
Department of Health,CT Revenue Funds,07/04/2015,Cleaning Materials,Ludlow Hospital Hotel Services,NHS SUPPLY CHAIN,1015229915,-0.03,654 4347 29
Department of Health,CT Revenue Funds,07/04/2015,Cleaning Materials,Ludlow Hospital Hotel Services,NHS SUPPLY CHAIN,1015229915,-0.03,654 4347 29
Department of Health,CT Revenue Funds,07/04/2015,Cleaning Materials,Ludlow Hospital Hotel Services,NHS SUPPLY CHAIN,1015229915,-0.03,654 4347 29
Department of Health,CT Revenue Funds,07/04/2015,Cleaning Materials,Whitchurch Hospital Hotel Services,NHS SUPPLY CHAIN,1015229915,-0.02,654 4347 29
Department of Health,CT Revenue Funds,07/04/2015,Cleaning Materials,Whitchurch Hospital Hotel Services,NHS SUPPLY CHAIN,1015229915,-0.01,654 4347 29
Department of Health,CT Revenue Funds,07/04/2015,Cleaning Materials,Ludlow Hospital Hotel Services,NHS SUPPLY CHAIN,1015229915,-0.01,654 4347 29
Department of Health,CT Revenue Funds,07/04/2015,Cleaning Materials,M Drayton Dental Practice,NHS SUPPLY CHAIN,1015229915,-0.01,654 4347 29
Department of Health,CT Revenue Funds,07/04/2015,Cleaning Materials,Shrewsbury and Atcham North Interdisciplinary Teams,NHS SUPPLY CHAIN,1015229915,-0.01,654 4347 29
Department of Health,CT Revenue Funds,07/04/2015,Cleaning Materials,Community Equipment Stores,NHS SUPPLY CHAIN,1015229915,-0.01,654 4347 29
Department of Health,CT Revenue Funds,07/04/2015,Cleaning Materials,Bishops Castle Hospital Domestics,NHS SUPPLY CHAIN,1015229915,-0.01,654 4347 29
Department of Health,CT Revenue Funds,07/04/2015,Cleaning Materials,Ludlow Hospital Hotel Services,NHS SUPPLY CHAIN,1015229915,-0.01,654 4347 29
Department of Health,CT Revenue Funds,07/04/2015,Cleaning Materials,Ludlow Hospital Hotel Services,NHS SUPPLY CHAIN,1015229915,-0.01,654 4347 29
Department of Health,CT Revenue Funds,07/04/2015,Cleaning Materials,Ludlow Hospital Hotel Services,NHS SUPPLY CHAIN,1015229915,-0.01,654 4347 29
Department of Health,CT Revenue Funds,07/04/2015,Cleaning Materials,Ludlow Hospital Hotel Services,NHS SUPPLY CHAIN,1015229915,-0.01,654 4347 29
Department of Health,CT Revenue Funds,07/04/2015,Cleaning Materials,Ludlow Hospital Hotel Services,NHS SUPPLY CHAIN,1015229915,0.01,654 4347 29
Department of Health,CT Revenue Funds,07/04/2015,Cleaning Materials,Podiatry Services,NHS SUPPLY CHAIN,1015229915,0.01,654 4347 29
Department of Health,CT Revenue Funds,07/04/2015,Cleaning Materials,APCS - Rheumatology,NHS SUPPLY CHAIN,1015229915,0.01,654 4347 29
Department of Health,CT Revenue Funds,07/04/2015,Cleaning Materials,Whitchurch Hospital Inpatient Ward,NHS SUPPLY CHAIN,1015229915,0.21,654 4347 29
Department of Health,CT Revenue Funds,07/04/2015,Cleaning Materials,Podiatry Services,NHS SUPPLY CHAIN,1015229915,0.45,654 4347 29
Department of Health,CT Revenue Funds,07/04/2015,Cleaning Materials,Ludlow Hospital Hotel Services,NHS SUPPLY CHAIN,1015229915,0.47,654 4347 29
Department of Health,CT Revenue Funds,07/04/2015,Cleaning Materials,Shrewsbury and Atcham North Interdisciplinary Teams,NHS SUPPLY CHAIN,1015229915,0.49,654 4347 29
Department of Health,CT Revenue Funds,07/04/2015,Cleaning Materials,APCS - Rheumatology,NHS SUPPLY CHAIN,1015229915,0.62,654 4347 29
Department of Health,CT Revenue Funds,07/04/2015,Cleaning Materials,M Drayton Dental Practice,NHS SUPPLY CHAIN,1015229915,0.64,654 4347 29
Department of Health,CT Revenue Funds,07/04/2015,Cleaning Materials,Ludlow Hospital Hotel Services,NHS SUPPLY CHAIN,1015229915,0.72,654 4347 29
Department of Health,CT Revenue Funds,07/04/2015,Cleaning Materials,South West Interdisciplinary Teams,NHS SUPPLY CHAIN,1015229915,0.78,654 4347 29
Department of Health,CT Revenue Funds,07/04/2015,Cleaning Materials,Podiatry Services,NHS SUPPLY CHAIN,1015229915,0.8,654 4347 29
Department of Health,CT Revenue Funds,07/04/2015,Cleaning Materials,Ludlow Hospital Hotel Services,NHS SUPPLY CHAIN,1015229915,1.01,654 4347 29
Department of Health,CT Revenue Funds,07/04/2015,Cleaning Materials,Whitchurch Hospital Inpatient Ward,NHS SUPPLY CHAIN,1015229915,1.03,654 4347 29
Department of Health,CT Revenue Funds,07/04/2015,Cleaning Materials,Bishops Castle Hospital Domestics,NHS SUPPLY CHAIN,1015229915,1.15,654 4347 29
Department of Health,CT Revenue Funds,07/04/2015,Cleaning Materials,Ludlow Hospital Hotel Services,NHS SUPPLY CHAIN,1015229915,1.15,654 4347 29
Department of Health,CT Revenue Funds,07/04/2015,Cleaning Materials,M Drayton Dental Practice,NHS SUPPLY CHAIN,1015229915,1.15,654 4347 29
Department of Health,CT Revenue Funds,07/04/2015,Cleaning Materials,Ludlow Hospital Hotel Services,NHS SUPPLY CHAIN,1015229915,1.3,654 4347 29
Department of Health,CT Revenue Funds,07/04/2015,Cleaning Materials,Ludlow Hospital Hotel Services,NHS SUPPLY CHAIN,1015229915,1.3,654 4347 29
Department of Health,CT Revenue Funds,07/04/2015,Cleaning Materials,Ludlow Hospital Hotel Services,NHS SUPPLY CHAIN,1015229915,1.3,654 4347 29
Department of Health,CT Revenue Funds,07/04/2015,Cleaning Materials,Bishops Castle Hospital Domestics,NHS SUPPLY CHAIN,1015229915,1.72,654 4347 29
Department of Health,CT Revenue Funds,07/04/2015,Cleaning Materials,Whitchurch Hospital Hotel Services,NHS SUPPLY CHAIN,1015229915,1.93,654 4347 29
Department of Health,CT Revenue Funds,07/04/2015,Cleaning Materials,Podiatry Services,NHS SUPPLY CHAIN,1015229915,2.22,654 4347 29
Department of Health,CT Revenue Funds,07/04/2015,Cleaning Materials,Ludlow Hospital Hotel Services,NHS SUPPLY CHAIN,1015229915,2.34,654 4347 29
Department of Health,CT Revenue Funds,07/04/2015,Cleaning Materials,Ludlow Hospital Hotel Services,NHS SUPPLY CHAIN,1015229915,2.4,654 4347 29
Department of Health,CT Revenue Funds,07/04/2015,Cleaning Materials,Shrewsbury and Atcham North Interdisciplinary Teams,NHS SUPPLY CHAIN,1015229915,2.46,654 4347 29
Department of Health,CT Revenue Funds,07/04/2015,Cleaning Materials,Ludlow Hospital Hotel Services,NHS SUPPLY CHAIN,1015229915,2.64,654 4347 29
Department of Health,CT Revenue Funds,07/04/2015,Cleaning Materials,Ludlow Hospital Hotel Services,NHS SUPPLY CHAIN,1015229915,2.67,654 4347 29
Department of Health,CT Revenue Funds,07/04/2015,Cleaning Materials,APCS - Rheumatology,NHS SUPPLY CHAIN,1015229915,3.09,654 4347 29
Department of Health,CT Revenue Funds,07/04/2015,Cleaning Materials,M Drayton Dental Practice,NHS SUPPLY CHAIN,1015229915,3.21,654 4347 29
Department of Health,CT Revenue Funds,07/04/2015,Cleaning Materials,Whitchurch Hospital Inpatient Ward,NHS SUPPLY CHAIN,1015229915,3.21,654 4347 29
Department of Health,CT Revenue Funds,07/04/2015,Cleaning Materials,Monkmoor CDC,NHS SUPPLY CHAIN,1015229915,3.38,654 4347 29
Department of Health,CT Revenue Funds,07/04/2015,Cleaning Materials,Ludlow Hospital Hotel Services,NHS SUPPLY CHAIN,1015229915,3.6,654 4347 29
Department of Health,CT Revenue Funds,07/04/2015,Cleaning Materials,Whitchurch Hospital Hotel Services,NHS SUPPLY CHAIN,1015229915,3.86,654 4347 29
Department of Health,CT Revenue Funds,07/04/2015,Cleaning Materials,South West Interdisciplinary Teams,NHS SUPPLY CHAIN,1015229915,3.9,654 4347 29
Department of Health,CT Revenue Funds,07/04/2015,Cleaning Materials,Podiatry Services,NHS SUPPLY CHAIN,1015229915,4,654 4347 29
Department of Health,CT Revenue Funds,07/04/2015,Cleaning Materials,Community Equipment Stores,NHS SUPPLY CHAIN,1015229915,4.51,654 4347 29
Department of Health,CT Revenue Funds,07/04/2015,Cleaning Materials,Ludlow Hospital Hotel Services,NHS SUPPLY CHAIN,1015229915,4.51,654 4347 29
Department of Health,CT Revenue Funds,07/04/2015,Cleaning Materials,Ludlow Hospital Hotel Services,NHS SUPPLY CHAIN,1015229915,5.04,654 4347 29
Department of Health,CT Revenue Funds,07/04/2015,Cleaning Materials,Bishops Castle Hospital Domestics,NHS SUPPLY CHAIN,1015229915,5.74,654 4347 29
Department of Health,CT Revenue Funds,07/04/2015,Cleaning Materials,Ludlow Hospital Hotel Services,NHS SUPPLY CHAIN,1015229915,5.74,654 4347 29
Department of Health,CT Revenue Funds,07/04/2015,Cleaning Materials,M Drayton Dental Practice,NHS SUPPLY CHAIN,1015229915,5.74,654 4347 29
Department of Health,CT Revenue Funds,07/04/2015,Cleaning Materials,Whitchurch Hospital Hotel Services,NHS SUPPLY CHAIN,1015229915,6.17,654 4347 29
Department of Health,CT Revenue Funds,07/04/2015,Cleaning Materials,Ludlow Hospital Hotel Services,NHS SUPPLY CHAIN,1015229915,6.48,654 4347 29
Department of Health,CT Revenue Funds,07/04/2015,Cleaning Materials,Ludlow Hospital Hotel Services,NHS SUPPLY CHAIN,1015229915,6.48,654 4347 29
Department of Health,CT Revenue Funds,07/04/2015,Cleaning Materials,Ludlow Hospital Hotel Services,NHS SUPPLY CHAIN,1015229915,6.48,654 4347 29
Department of Health,CT Revenue Funds,07/04/2015,Cleaning Materials,Bishops Castle Hospital Domestics,NHS SUPPLY CHAIN,1015229915,8.56,654 4347 29
Department of Health,CT Revenue Funds,07/04/2015,Cleaning Materials,Whitchurch Hospital Hotel Services,NHS SUPPLY CHAIN,1015229915,9.66,654 4347 29
Department of Health,CT Revenue Funds,07/04/2015,Cleaning Materials,Ludlow Hospital Hotel Services,NHS SUPPLY CHAIN,1015229915,10.56,654 4347 29
Department of Health,CT Revenue Funds,07/04/2015,Cleaning Materials,Ludlow Hospital Hotel Services,NHS SUPPLY CHAIN,1015229915,12,654 4347 29
Department of Health,CT Revenue Funds,07/04/2015,Cleaning Materials,Ludlow Hospital Hotel Services,NHS SUPPLY CHAIN,1015229915,13.2,654 4347 29
Department of Health,CT Revenue Funds,07/04/2015,Cleaning Materials,Ludlow Hospital Hotel Services,NHS SUPPLY CHAIN,1015229915,13.33,654 4347 29
Department of Health,CT Revenue Funds,07/04/2015,Cleaning Materials,Whitchurch Hospital Inpatient Ward,NHS SUPPLY CHAIN,1015229915,16.05,654 4347 29
Department of Health,CT Revenue Funds,07/04/2015,Cleaning Materials,Monkmoor CDC,NHS SUPPLY CHAIN,1015229915,16.9,654 4347 29
Department of Health,CT Revenue Funds,07/04/2015,Cleaning Materials,Whitchurch Hospital Hotel Services,NHS SUPPLY CHAIN,1015229915,19.32,654 4347 29
Department of Health,CT Revenue Funds,07/04/2015,Cleaning Materials,Ludlow Hospital Hotel Services,NHS SUPPLY CHAIN,1015229915,22.56,654 4347 29
Department of Health,CT Revenue Funds,07/04/2015,Cleaning Materials,Community Equipment Stores,NHS SUPPLY CHAIN,1015229915,22.56,654 4347 29
Department of Health,CT Revenue Funds,07/04/2015,Cleaning Materials,Whitchurch Hospital Hotel Services,NHS SUPPLY CHAIN,1015229915,30.85,654 4347 29
Department of Health,CT Revenue Funds,07/04/2015,Cleaning Materials,Ludlow Hospital Hotel Services,NHS SUPPLY CHAIN,1015229915,52.78,654 4347 29
Department of Health,CT Revenue Funds,07/04/2015,Cleaning Materials,Whitchurch Hospital Hotel Services,NHS SUPPLY CHAIN,1015233762,-0.12,654 4347 29
Department of Health,CT Revenue Funds,07/04/2015,Cleaning Materials,Bridgnorth Hospital Hotel Services,NHS SUPPLY CHAIN,1015233762,-0.06,654 4347 29
Department of Health,CT Revenue Funds,07/04/2015,Cleaning Materials,Bridgnorth Hospital Hotel Services,NHS SUPPLY CHAIN,1015233762,-0.05,654 4347 29
Department of Health,CT Revenue Funds,07/04/2015,Cleaning Materials,Whitchurch Hospital Hotel Services,NHS SUPPLY CHAIN,1015233762,-0.03,654 4347 29
Department of Health,CT Revenue Funds,07/04/2015,Cleaning Materials,Whitchurch Hospital Hotel Services,NHS SUPPLY CHAIN,1015233762,-0.03,654 4347 29
Department of Health,CT Revenue Funds,07/04/2015,Cleaning Materials,Bishops Castle Hospital Domestics,NHS SUPPLY CHAIN,1015233762,-0.03,654 4347 29
Department of Health,CT Revenue Funds,07/04/2015,Cleaning Materials,Bishops Castle Hospital Domestics,NHS SUPPLY CHAIN,1015233762,-0.03,654 4347 29
Department of Health,CT Revenue Funds,07/04/2015,Cleaning Materials,Bishops Castle Hospital Domestics,NHS SUPPLY CHAIN,1015233762,-0.03,654 4347 29
Department of Health,CT Revenue Funds,07/04/2015,Cleaning Materials,Whitchurch Hospital Hotel Services,NHS SUPPLY CHAIN,1015233762,-0.02,654 4347 29
Department of Health,CT Revenue Funds,07/04/2015,Cleaning Materials,Whitchurch Hospital Hotel Services,NHS SUPPLY CHAIN,1015233762,-0.02,654 4347 29
Department of Health,CT Revenue Funds,07/04/2015,Cleaning Materials,Whitchurch Hospital Hotel Services,NHS SUPPLY CHAIN,1015233762,-0.02,654 4347 29
Department of Health,CT Revenue Funds,07/04/2015,Cleaning Materials,Ludlow Hospital Hotel Services,NHS SUPPLY CHAIN,1015233762,-0.01,654 4347 29
Department of Health,CT Revenue Funds,07/04/2015,Cleaning Materials,Bridgnorth Hospital Hotel Services,NHS SUPPLY CHAIN,1015233762,-0.01,654 4347 29
Department of Health,CT Revenue Funds,07/04/2015,Cleaning Materials,Bridgnorth Hospital Hotel Services,NHS SUPPLY CHAIN,1015233762,-0.01,654 4347 29
Department of Health,CT Revenue Funds,07/04/2015,Cleaning Materials,Bishops Castle Hospital Domestics,NHS SUPPLY CHAIN,1015233762,-0.01,654 4347 29
Department of Health,CT Revenue Funds,07/04/2015,Cleaning Materials,Bishops Castle Hospital Domestics,NHS SUPPLY CHAIN,1015233762,-0.01,654 4347 29
Department of Health,CT Revenue Funds,07/04/2015,Cleaning Materials,Bishops Castle Hospital Domestics,NHS SUPPLY CHAIN,1015233762,-0.01,654 4347 29
Department of Health,CT Revenue Funds,07/04/2015,Cleaning Materials,Whitchurch Hospital Hotel Services,NHS SUPPLY CHAIN,1015233762,-0.01,654 4347 29
Department of Health,CT Revenue Funds,07/04/2015,Cleaning Materials,Whitchurch Hospital Hotel Services,NHS SUPPLY CHAIN,1015233762,-0.01,654 4347 29
Department of Health,CT Revenue Funds,07/04/2015,Cleaning Materials,Ludlow Hospital Hotel Services,NHS SUPPLY CHAIN,1015233762,0.01,654 4347 29
Department of Health,CT Revenue Funds,07/04/2015,Cleaning Materials,Bridgnorth Hospital Hotel Services,NHS SUPPLY CHAIN,1015233762,0.03,654 4347 29
Department of Health,CT Revenue Funds,07/04/2015,Cleaning Materials,Bridgnorth Hospital Hotel Services,NHS SUPPLY CHAIN,1015233762,0.16,654 4347 29
Department of Health,CT Revenue Funds,07/04/2015,Cleaning Materials,Bridgnorth Hospital Hotel Services,NHS SUPPLY CHAIN,1015233762,0.55,654 4347 29
Department of Health,CT Revenue Funds,07/04/2015,Cleaning Materials,Ludlow Hospital Hotel Services,NHS SUPPLY CHAIN,1015233762,1.01,654 4347 29
Department of Health,CT Revenue Funds,07/04/2015,Cleaning Materials,Whitchurch Hospital Hotel Services,NHS SUPPLY CHAIN,1015233762,1.03,654 4347 29
Department of Health,CT Revenue Funds,07/04/2015,Cleaning Materials,Whitchurch Hospital Hotel Services,NHS SUPPLY CHAIN,1015233762,1.24,654 4347 29
Department of Health,CT Revenue Funds,07/04/2015,Cleaning Materials,Bishops Castle Hospital Domestics,NHS SUPPLY CHAIN,1015233762,1.3,654 4347 29
Department of Health,CT Revenue Funds,07/04/2015,Cleaning Materials,Bishops Castle Hospital Domestics,NHS SUPPLY CHAIN,1015233762,1.3,654 4347 29
Department of Health,CT Revenue Funds,07/04/2015,Cleaning Materials,Bishops Castle Hospital Domestics,NHS SUPPLY CHAIN,1015233762,1.72,654 4347 29
Department of Health,CT Revenue Funds,07/04/2015,Cleaning Materials,Whitchurch Hospital Hotel Services,NHS SUPPLY CHAIN,1015233762,2.4,654 4347 29
Department of Health,CT Revenue Funds,07/04/2015,Cleaning Materials,Bridgnorth Hospital Hotel Services,NHS SUPPLY CHAIN,1015233762,2.59,654 4347 29
Department of Health,CT Revenue Funds,07/04/2015,Cleaning Materials,Bridgnorth Hospital Hotel Services,NHS SUPPLY CHAIN,1015233762,2.76,654 4347 29
Department of Health,CT Revenue Funds,07/04/2015,Cleaning Materials,Bridgnorth Hospital Hotel Services,NHS SUPPLY CHAIN,1015233762,2.76,654 4347 29
Department of Health,CT Revenue Funds,07/04/2015,Cleaning Materials,Whitchurch Hospital Hotel Services,NHS SUPPLY CHAIN,1015233762,3.5,654 4347 29
Department of Health,CT Revenue Funds,07/04/2015,Cleaning Materials,Whitchurch Hospital Hotel Services,NHS SUPPLY CHAIN,1015233762,3.86,654 4347 29
Department of Health,CT Revenue Funds,07/04/2015,Cleaning Materials,Whitchurch Hospital Hotel Services,NHS SUPPLY CHAIN,1015233762,4.55,654 4347 29
Department of Health,CT Revenue Funds,07/04/2015,Cleaning Materials,Ludlow Hospital Hotel Services,NHS SUPPLY CHAIN,1015233762,5.04,654 4347 29
Department of Health,CT Revenue Funds,07/04/2015,Cleaning Materials,Whitchurch Hospital Hotel Services,NHS SUPPLY CHAIN,1015233762,5.13,654 4347 29
Department of Health,CT Revenue Funds,07/04/2015,Cleaning Materials,Ludlow Hospital Hotel Services,NHS SUPPLY CHAIN,1015233762,5.33,654 4347 29
Department of Health,CT Revenue Funds,07/04/2015,Cleaning Materials,Whitchurch Hospital Hotel Services,NHS SUPPLY CHAIN,1015233762,5.8,654 4347 29
Department of Health,CT Revenue Funds,07/04/2015,Cleaning Materials,Whitchurch Hospital Hotel Services,NHS SUPPLY CHAIN,1015233762,6.18,654 4347 29
Department of Health,CT Revenue Funds,07/04/2015,Cleaning Materials,Bishops Castle Hospital Domestics,NHS SUPPLY CHAIN,1015233762,6.48,654 4347 29
Department of Health,CT Revenue Funds,07/04/2015,Cleaning Materials,Bishops Castle Hospital Domestics,NHS SUPPLY CHAIN,1015233762,6.48,654 4347 29
Department of Health,CT Revenue Funds,07/04/2015,Cleaning Materials,Bishops Castle Hospital Domestics,NHS SUPPLY CHAIN,1015233762,8.56,654 4347 29
Department of Health,CT Revenue Funds,07/04/2015,Cleaning Materials,Whitchurch Hospital Hotel Services,NHS SUPPLY CHAIN,1015233762,9.27,654 4347 29
Department of Health,CT Revenue Funds,07/04/2015,Cleaning Materials,Whitchurch Hospital Hotel Services,NHS SUPPLY CHAIN,1015233762,12,654 4347 29
Department of Health,CT Revenue Funds,07/04/2015,Cleaning Materials,Ludlow Hospital Hotel Services,NHS SUPPLY CHAIN,1015233762,12.34,654 4347 29
Department of Health,CT Revenue Funds,07/04/2015,Cleaning Materials,Bridgnorth Hospital Hotel Services,NHS SUPPLY CHAIN,1015233762,12.96,654 4347 29
Department of Health,CT Revenue Funds,07/04/2015,Cleaning Materials,Whitchurch Hospital Hotel Services,NHS SUPPLY CHAIN,1015233762,13.33,654 4347 29
Department of Health,CT Revenue Funds,07/04/2015,Cleaning Materials,Bridgnorth Hospital Hotel Services,NHS SUPPLY CHAIN,1015233762,13.8,654 4347 29
Department of Health,CT Revenue Funds,07/04/2015,Cleaning Materials,Whitchurch Hospital Hotel Services,NHS SUPPLY CHAIN,1015233762,17.52,654 4347 29
Department of Health,CT Revenue Funds,07/04/2015,Cleaning Materials,Whitchurch Hospital Hotel Services,NHS SUPPLY CHAIN,1015233762,19.32,654 4347 29
Department of Health,CT Revenue Funds,07/04/2015,Cleaning Materials,Whitchurch Hospital Hotel Services,NHS SUPPLY CHAIN,1015233762,22.73,654 4347 29
Department of Health,CT Revenue Funds,07/04/2015,Cleaning Materials,Ludlow Hospital Hotel Services,NHS SUPPLY CHAIN,1015233762,26.66,654 4347 29
Department of Health,CT Revenue Funds,07/04/2015,Cleaning Materials,Whitchurch Hospital Hotel Services,NHS SUPPLY CHAIN,1015233762,28.98,654 4347 29
Department of Health,CT Revenue Funds,07/04/2015,Cleaning Materials,Whitchurch Hospital Hotel Services,NHS SUPPLY CHAIN,1015233762,46.35,654 4347 29
Department of Health,CT Revenue Funds,07/04/2015,Cleaning Materials,Ludlow Hospital Hotel Services,NHS SUPPLY CHAIN,1015233762,61.7,654 4347 29
Department of Health,CT Revenue Funds,07/04/2015,Cleaning Materials,Whitchurch Hospital Hotel Services,NHS SUPPLY CHAIN,1015233762,66.65,654 4347 29
Department of Health,CT Revenue Funds,07/04/2015,"Colostomy, Ileostomy, Urostomy & Incontinence Products",Bridgnorth Hospital Minor Injuries Unit,NHS SUPPLY CHAIN,1015229915,0.47,654 4347 29
Department of Health,CT Revenue Funds,07/04/2015,"Colostomy, Ileostomy, Urostomy & Incontinence Products",Bridgnorth Hospital Inpatient Ward,NHS SUPPLY CHAIN,1015229915,1.12,654 4347 29
Department of Health,CT Revenue Funds,07/04/2015,"Colostomy, Ileostomy, Urostomy & Incontinence Products",Bishops Castle Hospital Inpatient Ward,NHS SUPPLY CHAIN,1015229915,1.34,654 4347 29
Department of Health,CT Revenue Funds,07/04/2015,"Colostomy, Ileostomy, Urostomy & Incontinence Products",Whitchurch Hospital Inpatient Ward,NHS SUPPLY CHAIN,1015229915,1.78,654 4347 29
Department of Health,CT Revenue Funds,07/04/2015,"Colostomy, Ileostomy, Urostomy & Incontinence Products",Bridgnorth Hospital Inpatient Ward,NHS SUPPLY CHAIN,1015229915,1.85,654 4347 29
Department of Health,CT Revenue Funds,07/04/2015,"Colostomy, Ileostomy, Urostomy & Incontinence Products",Bishops Castle Hospital Inpatient Ward,NHS SUPPLY CHAIN,1015229915,1.88,654 4347 29
Department of Health,CT Revenue Funds,07/04/2015,"Colostomy, Ileostomy, Urostomy & Incontinence Products",Bridgnorth Hospital Minor Injuries Unit,NHS SUPPLY CHAIN,1015229915,2.35,654 4347 29
Department of Health,CT Revenue Funds,07/04/2015,"Colostomy, Ileostomy, Urostomy & Incontinence Products",Shrewsbury and Atcham North Interdisciplinary Teams,NHS SUPPLY CHAIN,1015229915,2.68,654 4347 29
Department of Health,CT Revenue Funds,07/04/2015,"Colostomy, Ileostomy, Urostomy & Incontinence Products",Shrewsbury and Atcham North Interdisciplinary Teams,NHS SUPPLY CHAIN,1015229915,2.68,654 4347 29
Department of Health,CT Revenue Funds,07/04/2015,"Colostomy, Ileostomy, Urostomy & Incontinence Products",Shrewsbury and Atcham North Interdisciplinary Teams,NHS SUPPLY CHAIN,1015229915,2.68,654 4347 29
Department of Health,CT Revenue Funds,07/04/2015,"Colostomy, Ileostomy, Urostomy & Incontinence Products",Bridgnorth Hospital Inpatient Ward,NHS SUPPLY CHAIN,1015229915,5.6,654 4347 29
Department of Health,CT Revenue Funds,07/04/2015,"Colostomy, Ileostomy, Urostomy & Incontinence Products",Bishops Castle Hospital Inpatient Ward,NHS SUPPLY CHAIN,1015229915,6.7,654 4347 29
Department of Health,CT Revenue Funds,07/04/2015,"Colostomy, Ileostomy, Urostomy & Incontinence Products",Whitchurch Hospital Inpatient Ward,NHS SUPPLY CHAIN,1015229915,8.9,654 4347 29
Department of Health,CT Revenue Funds,07/04/2015,"Colostomy, Ileostomy, Urostomy & Incontinence Products",Bridgnorth Hospital Inpatient Ward,NHS SUPPLY CHAIN,1015229915,9.23,654 4347 29
Department of Health,CT Revenue Funds,07/04/2015,"Colostomy, Ileostomy, Urostomy & Incontinence Products",Bishops Castle Hospital Inpatient Ward,NHS SUPPLY CHAIN,1015229915,9.4,654 4347 29
Department of Health,CT Revenue Funds,07/04/2015,"Colostomy, Ileostomy, Urostomy & Incontinence Products",Shrewsbury and Atcham North Interdisciplinary Teams,NHS SUPPLY CHAIN,1015229915,13.4,654 4347 29
Department of Health,CT Revenue Funds,07/04/2015,"Colostomy, Ileostomy, Urostomy & Incontinence Products",Shrewsbury and Atcham North Interdisciplinary Teams,NHS SUPPLY CHAIN,1015229915,13.4,654 4347 29
Department of Health,CT Revenue Funds,07/04/2015,"Colostomy, Ileostomy, Urostomy & Incontinence Products",Shrewsbury and Atcham North Interdisciplinary Teams,NHS SUPPLY CHAIN,1015229915,13.4,654 4347 29
Department of Health,CT Revenue Funds,07/04/2015,"Colostomy, Ileostomy, Urostomy & Incontinence Products",Ludlow Hospital Inpatient Wards,NHS SUPPLY CHAIN,1015233762,-0.02,654 4347 29
Department of Health,CT Revenue Funds,07/04/2015,"Colostomy, Ileostomy, Urostomy & Incontinence Products",Ludlow Hospital Inpatient Wards,NHS SUPPLY CHAIN,1015233762,-0.02,654 4347 29
Department of Health,CT Revenue Funds,07/04/2015,"Colostomy, Ileostomy, Urostomy & Incontinence Products",Ludlow Hospital Inpatient Wards,NHS SUPPLY CHAIN,1015233762,-0.02,654 4347 29
Department of Health,CT Revenue Funds,07/04/2015,"Colostomy, Ileostomy, Urostomy & Incontinence Products",Bridgnorth Hospital Inpatient Ward,NHS SUPPLY CHAIN,1015233762,-0.01,654 4347 29
Department of Health,CT Revenue Funds,07/04/2015,"Colostomy, Ileostomy, Urostomy & Incontinence Products",Ludlow Hospital Inpatient Wards,NHS SUPPLY CHAIN,1015233762,-0.01,654 4347 29
Department of Health,CT Revenue Funds,07/04/2015,"Colostomy, Ileostomy, Urostomy & Incontinence Products",Ludlow Hospital Inpatient Wards,NHS SUPPLY CHAIN,1015233762,-0.01,654 4347 29
Department of Health,CT Revenue Funds,07/04/2015,"Colostomy, Ileostomy, Urostomy & Incontinence Products",Bridgnorth Hospital Inpatient Ward,NHS SUPPLY CHAIN,1015233762,0.01,654 4347 29
Department of Health,CT Revenue Funds,07/04/2015,"Colostomy, Ileostomy, Urostomy & Incontinence Products",Bishops Castle Hospital Inpatient Ward,NHS SUPPLY CHAIN,1015233762,0.94,654 4347 29
Department of Health,CT Revenue Funds,07/04/2015,"Colostomy, Ileostomy, Urostomy & Incontinence Products",Bishops Castle Hospital Inpatient Ward,NHS SUPPLY CHAIN,1015233762,1.34,654 4347 29
Department of Health,CT Revenue Funds,07/04/2015,"Colostomy, Ileostomy, Urostomy & Incontinence Products",Bishops Castle Hospital Inpatient Ward,NHS SUPPLY CHAIN,1015233762,1.34,654 4347 29
Department of Health,CT Revenue Funds,07/04/2015,"Colostomy, Ileostomy, Urostomy & Incontinence Products",Bishops Castle Hospital Inpatient Ward,NHS SUPPLY CHAIN,1015233762,1.34,654 4347 29
Department of Health,CT Revenue Funds,07/04/2015,"Colostomy, Ileostomy, Urostomy & Incontinence Products",Bridgnorth Hospital Inpatient Ward,NHS SUPPLY CHAIN,1015233762,1.85,654 4347 29
Department of Health,CT Revenue Funds,07/04/2015,"Colostomy, Ileostomy, Urostomy & Incontinence Products",Ludlow Hospital Inpatient Wards,NHS SUPPLY CHAIN,1015233762,1.88,654 4347 29
Department of Health,CT Revenue Funds,07/04/2015,"Colostomy, Ileostomy, Urostomy & Incontinence Products",Bridgnorth Hospital Inpatient Ward,NHS SUPPLY CHAIN,1015233762,2.24,654 4347 29
Department of Health,CT Revenue Funds,07/04/2015,"Colostomy, Ileostomy, Urostomy & Incontinence Products",Bridgnorth Hospital Inpatient Ward,NHS SUPPLY CHAIN,1015233762,2.82,654 4347 29
Department of Health,CT Revenue Funds,07/04/2015,"Colostomy, Ileostomy, Urostomy & Incontinence Products",Bridgnorth Hospital Inpatient Ward,NHS SUPPLY CHAIN,1015233762,3.03,654 4347 29
Department of Health,CT Revenue Funds,07/04/2015,"Colostomy, Ileostomy, Urostomy & Incontinence Products",Bridgnorth Hospital Inpatient Ward,NHS SUPPLY CHAIN,1015233762,4.13,654 4347 29
Department of Health,CT Revenue Funds,07/04/2015,"Colostomy, Ileostomy, Urostomy & Incontinence Products",Bishops Castle Hospital Inpatient Ward,NHS SUPPLY CHAIN,1015233762,4.7,654 4347 29
Department of Health,CT Revenue Funds,07/04/2015,"Colostomy, Ileostomy, Urostomy & Incontinence Products",Ludlow Hospital Inpatient Wards,NHS SUPPLY CHAIN,1015233762,5.5,654 4347 29
Department of Health,CT Revenue Funds,07/04/2015,"Colostomy, Ileostomy, Urostomy & Incontinence Products",Ludlow Hospital Inpatient Wards,NHS SUPPLY CHAIN,1015233762,5.5,654 4347 29
Department of Health,CT Revenue Funds,07/04/2015,"Colostomy, Ileostomy, Urostomy & Incontinence Products",Ludlow Hospital Inpatient Wards,NHS SUPPLY CHAIN,1015233762,5.5,654 4347 29
Department of Health,CT Revenue Funds,07/04/2015,"Colostomy, Ileostomy, Urostomy & Incontinence Products",Ludlow Hospital Inpatient Wards,NHS SUPPLY CHAIN,1015233762,6.53,654 4347 29
Department of Health,CT Revenue Funds,07/04/2015,"Colostomy, Ileostomy, Urostomy & Incontinence Products",Ludlow Hospital Inpatient Wards,NHS SUPPLY CHAIN,1015233762,6.53,654 4347 29
Department of Health,CT Revenue Funds,07/04/2015,"Colostomy, Ileostomy, Urostomy & Incontinence Products",Bishops Castle Hospital Inpatient Ward,NHS SUPPLY CHAIN,1015233762,6.7,654 4347 29
Department of Health,CT Revenue Funds,07/04/2015,"Colostomy, Ileostomy, Urostomy & Incontinence Products",Bishops Castle Hospital Inpatient Ward,NHS SUPPLY CHAIN,1015233762,6.7,654 4347 29
Department of Health,CT Revenue Funds,07/04/2015,"Colostomy, Ileostomy, Urostomy & Incontinence Products",Bishops Castle Hospital Inpatient Ward,NHS SUPPLY CHAIN,1015233762,6.7,654 4347 29
Department of Health,CT Revenue Funds,07/04/2015,"Colostomy, Ileostomy, Urostomy & Incontinence Products",Bridgnorth Hospital Inpatient Ward,NHS SUPPLY CHAIN,1015233762,9.23,654 4347 29
Department of Health,CT Revenue Funds,07/04/2015,"Colostomy, Ileostomy, Urostomy & Incontinence Products",Ludlow Hospital Inpatient Wards,NHS SUPPLY CHAIN,1015233762,9.4,654 4347 29
Department of Health,CT Revenue Funds,07/04/2015,"Colostomy, Ileostomy, Urostomy & Incontinence Products",Ludlow Hospital Inpatient Wards,NHS SUPPLY CHAIN,1015233762,9.4,654 4347 29
Department of Health,CT Revenue Funds,07/04/2015,"Colostomy, Ileostomy, Urostomy & Incontinence Products",Bridgnorth Hospital Inpatient Ward,NHS SUPPLY CHAIN,1015233762,11.2,654 4347 29
Department of Health,CT Revenue Funds,07/04/2015,"Colostomy, Ileostomy, Urostomy & Incontinence Products",Bridgnorth Hospital Inpatient Ward,NHS SUPPLY CHAIN,1015233762,14.1,654 4347 29
